Workbook

Sheet Main
B10: 2020-08-31
B12: Sheet No. | C12: Template Name | D12: Summary
B13: 1 | C13: Future Intra | D13: For Intraday trading in F&O segment
B14: 2 | C14: Cash Intra | D14: For Intraday trading in cash market segment
B15: 3 | C15: Mid-cap Intra | D15: For Intraday trading in Mid-cap stocks
B16: 4 | C16: Bulk Deals | D16: Reveals Bulk Deals carried on NSE & BSE
B17: 5 | C17: Call Tracker
K27: `

Sheet Future Intra
M5: Back to Main Page
A6: FOR INTRA DAY TRADING | L6: =Main!B10 -> 2020-08-31
A9: Sr.no | B9: Sector | C9: Scrip | D9: CLOSE RATE | E9: Pivot Point | F9: Supports | I9: Resistances
B10: Sector | D10: Point | E10: Point | F10: S1 | G10: S2 | H10: S3 | I10: R1 | J10: R2 | K10: R3 | L10: HIGH | M10: LOW | N10: OI | O10: % Change in OI
A11: 1 | B11: Index | C11: BANKNIFTY | D11: 24539.35 | E11: 24266.52 | F11: 23874.33 | G11: 23209.32 | H11: 22817.13 | I11: 24931.53 | J11: 25323.72 | K11: 25988.73 | L11: 24658.7 | M11: 23601.5 | N11: 1565400 | O11: 18.38%
A12: 2 | B12: Index | C12: NIFTY | D12: 11675.25 | E12: 11658.42 | F12: 11618.83 | G12: 11562.42 | H12: 11522.83 | I12: 11714.83 | J12: 11754.42 | K12: 11810.83 | L12: 11698 | M12: 11602 | N12: 12723225 | O12: 4.62%
A13: 3 | B13: Cement | C13: ACC | D13: 1401.35 | E13: 1406.42 | F13: 1389.98 | G13: 1378.62 | H13: 1362.18 | I13: 1417.78 | J13: 1434.22 | K13: 1445.58 | L13: 1422.85 | M13: 1395.05 | N13: 2522500 | O13: 0.88%
A14: 4 | B14: Others | C14: ADANIENT | D14: 289.90 | E14: 291.45 | F14: 286.30 | G14: 282.70 | H14: 277.55 | I14: 295.05 | J14: 300.20 | K14: 303.80 | L14: 296.6 | M14: 287.85 | N14: 14092000 | O14: 3.34%
A15: 5 | B15: Others | C15: ADANIPORTS | D15: 361.40 | E15: 358.77 | F15: 352.93 | G15: 344.47 | H15: 338.63 | I15: 367.23 | J15: 373.07 | K15: 381.53 | L15: 364.6 | M15: 350.3 | N15: 28752500 | O15: 2.39%
A16: 6 | B16: Automobile | C16: AMARAJABAT | D16: 738.05 | E16: 740.75 | F16: 733.00 | G16: 727.95 | H16: 720.20 | I16: 745.80 | J16: 753.55 | K16: 758.60 | L16: 748.5 | M16: 735.7 | N16: 1028000 | O16: 1.98%
A17: 7 | B17: Cement | C17: AMBUJACEM | D17: 222.65 | E17: 222.97 | F17: 220.53 | G17: 218.42 | H17: 215.98 | I17: 225.08 | J17: 227.52 | K17: 229.63 | L17: 225.4 | M17: 220.85 | N17: 13134000 | O17: -2.25%
A18: 8 | B18: Others | C18: APOLLOHOSP | D18: 1665.15 | E18: 1666.82 | F18: 1651.83 | G18: 1638.52 | H18: 1623.53 | I18: 1680.13 | J18: 1695.12 | K18: 1708.43 | L18: 1681.8 | M18: 1653.5 | N18: 1056000 | O18: 7.70%
A19: 9 | B19: Automobile | C19: APOLLOTYRE | D19: 134.05 | E19: 134.92 | F19: 131.98 | G19: 129.92 | H19: 126.98 | I19: 136.98 | J19: 139.92 | K19: 141.98 | L19: 137.85 | M19: 132.85 | N19: 12850000 | O19: -7.25%
A20: 10 | B20: Automobile | C20: ASHOKLEY | D20: 70.90 | E20: 71.67 | F20: 69.73 | G20: 68.57 | H20: 66.63 | I20: 72.83 | J20: 74.77 | K20: 75.93 | L20: 73.6 | M20: 70.5 | N20: 22095000 | O20: 23.68%
A21: 11 | B21: FMCG | C21: ASIANPAINT | D21: 1969.00 | E21: 1978.12 | F21: 1955.03 | G21: 1941.07 | H21: 1917.98 | I21: 1992.08 | J21: 2015.17 | K21: 2029.13 | L21: 2001.2 | M21: 1964.15 | N21: 3986100 | O21: -0.61%
A22: 12 | B22: Pharma | C22: AUROPHARMA | D22: 873.80 | E22: 878.43 | F22: 867.37 | G22: 860.93 | H22: 849.87 | I22: 884.87 | J22: 895.93 | K22: 902.37 | L22: 889.5 | M22: 872 | N22: 13513500 | O22: 3.84%
A23: 13 | B23: Banking | C23: AXISBANK | D23: 511.40 | E23: 501.12 | F23: 487.23 | G23: 463.07 | H23: 449.18 | I23: 525.28 | J23: 539.17 | K23: 563.33 | L23: 515 | M23: 476.95 | N23: 50469600 | O23: 4.55%
A24: 14 | B24: Automobile | C24: BAJAJ-AUTO | D24: 3023.95 | E24: 3035.02 | F24: 3001.03 | G24: 2978.12 | H24: 2944.13 | I24: 3057.93 | J24: 3091.92 | K24: 3114.83 | L24: 3069 | M24: 3012.1 | N24: 1732750 | O24: 1.73%
A25: 15 | B25: Finance | C25: BAJAJFINSV | D25: 6575.40 | E25: 6593.13 | F25: 6504.57 | G25: 6433.73 | H25: 6345.17 | I25: 6663.97 | J25: 6752.53 | K25: 6823.37 | L25: 6681.7 | M25: 6522.3 | N25: 737625 | O25: 2.68%
A26: 16 | B26: Finance | C26: BAJFINANCE | D26: 3663.10 | E26: 3646.87 | F26: 3616.23 | G26: 3569.37 | H26: 3538.73 | I26: 3693.73 | J26: 3724.37 | K26: 3771.23 | L26: 3677.5 | M26: 3600 | N26: 5179250 | O26: 2.61%
A27: 17 | B27: Automobile | C27: BALKRISIND | D27: 1385.45 | E27: 1392.75 | F27: 1370.55 | G27: 1355.65 | H27: 1333.45 | I27: 1407.65 | J27: 1429.85 | K27: 1444.75 | L27: 1414.95 | M27: 1377.85 | N27: 1427200 | O27: 1.08%
A28: 18 | B28: Banking | C28: BANDHANBNK | D28: 320.60 | E28: 320.87 | F28: 313.73 | G28: 306.87 | H28: 299.73 | I28: 327.73 | J28: 334.87 | K28: 341.73 | L28: 328 | M28: 314 | N28: 26856000 | O28: 9.26%
A29: 19 | B29: Banking | C29: BANKBARODA | D29: 51.85 | E29: 51.23 | F29: 49.87 | G29: 47.88 | H29: 46.52 | I29: 53.22 | J29: 54.58 | K29: 56.57 | L29: 52.6 | M29: 49.25 | N29: 72463400 | O29: 30.67%
A30: 20 | B30: FMCG | C30: BATAINDIA | D30: 1345.35 | E30: 1351.22 | F30: 1329.43 | G30: 1313.52 | H30: 1291.73 | I30: 1367.13 | J30: 1388.92 | K30: 1404.83 | L30: 1373 | M30: 1335.3 | N30: 1653300 | O30: 4.67%
A31: 21 | B31: Capital_Goods | C31: BEL | D31: 111.60 | E31: 112.02 | F31: 109.83 | G31: 108.07 | H31: 105.88 | I31: 113.78 | J31: 115.97 | K31: 117.73 | L31: 114.2 | M31: 110.25 | N31: 30126400 | O31: 4.59%
A32: 22 | B32: FMCG | C32: BERGEPAINT | D32: 565.55 | E32: 564.37 | F32: 559.68 | G32: 553.82 | H32: 549.13 | I32: 570.23 | J32: 574.92 | K32: 580.78 | L32: 569.05 | M32: 558.5 | N32: 3252700 | O32: -0.87%
A33: 23 | B33: Automobile | C33: BHARATFORG | D33: 505.15 | E33: 510.03 | F33: 497.17 | G33: 489.18 | H33: 476.32 | I33: 518.02 | J33: 530.88 | K33: 538.87 | L33: 522.9 | M33: 502.05 | N33: 5037000 | O33: 8.60%
A34: 24 | B34: Telecom | C34: BHARTIARTL | D34: 524.20 | E34: 522.83 | F34: 514.37 | G34: 504.53 | H34: 496.07 | I34: 532.67 | J34: 541.13 | K34: 550.97 | L34: 531.3 | M34: 513 | N34: 105327453 | O34: 1.09%
A35: 25 | B35: Capital_Goods | C35: BHEL | D35: 41.90 | E35: 41.53 | F35: 40.67 | G35: 39.43 | H35: 38.57 | I35: 42.77 | J35: 43.63 | K35: 44.87 | L35: 42.4 | M35: 40.3 | N35: 62223000 | O35: 102.67%
A36: 26 | B36: Pharma | C36: BIOCON | D36: 393.15 | E36: 392.33 | F36: 390.12 | G36: 387.08 | H36: 384.87 | I36: 395.37 | J36: 397.58 | K36: 400.62 | L36: 394.55 | M36: 389.3 | N36: 15830900 | O36: -0.58%
A37: 27 | B37: Automobile | C37: BOSCHLTD | D37: 14068.25 | E37: 14136.43 | F37: 13930.87 | G37: 13793.48 | H37: 13587.92 | I37: 14273.82 | J37: 14479.38 | K37: 14616.77 | L37: 14342 | M37: 13999.05 | N37: 102500 | O37: 0.00%
A38: 28 | B38: Oil_Gas | C38: BPCL | D38: 417.25 | E38: 418.77 | F38: 413.78 | G38: 410.32 | H38: 405.33 | I38: 422.23 | J38: 427.22 | K38: 430.68 | L38: 423.75 | M38: 415.3 | N38: 19425600 | O38: 5.10%
A39: 29 | B39: FMCG | C39: BRITANNIA | D39: 3812.55 | E39: 3820.22 | F39: 3795.43 | G39: 3778.32 | H39: 3753.53 | I39: 3837.33 | J39: 3862.12 | K39: 3879.23 | L39: 3845 | M39: 3803.1 | N39: 986800 | O39: 6.24%
A40: 30 | B40: Pharma | C40: CADILAHC | D40: 390.95 | E40: 391.32 | F40: 388.23 | G40: 385.52 | H40: 382.43 | I40: 394.03 | J40: 397.12 | K40: 399.83 | L40: 394.4 | M40: 388.6 | N40: 8749400 | O40: 5.57%
A41: 31 | B41: Banking | C41: CANBK | D41: 115.25 | E41: 112.77 | F41: 109.38 | G41: 103.52 | H41: 100.13 | I41: 118.63 | J41: 122.02 | K41: 127.88 | L41: 116.15 | M41: 106.9 | N41: 13840000 | O41: 49.38%
A42: 32 | B42: Finance | C42: CHOLAFIN | D42: 246.45 | E42: 246.27 | F42: 239.93 | G42: 233.42 | H42: 227.08 | I42: 252.78 | J42: 259.12 | K42: 265.63 | L42: 252.6 | M42: 239.75 | N42: 6087500 | O42: 15.29%
A43: 33 | B43: Pharma | C43: CIPLA | D43: 752.45 | E43: 758.63 | F43: 744.32 | G43: 736.18 | H43: 721.87 | I43: 766.77 | J43: 781.08 | K43: 789.22 | L43: 772.95 | M43: 750.5 | N43: 14066000 | O43: 3.94%
A44: 34 | B44: Others | C44: COALINDIA | D44: 139.80 | E44: 140.73 | F44: 138.57 | G44: 137.33 | H44: 135.17 | I44: 141.97 | J44: 144.13 | K44: 145.37 | L44: 142.9 | M44: 139.5 | N44: 32201100 | O44: 4.00%
A45: 35 | B45: Technology | C45: COFORGE | D45: 2014.55 | E45: 1999.85 | F45: 1966.70 | G45: 1918.85 | H45: 1885.70 | I45: 2047.70 | J45: 2080.85 | K45: 2128.70 | L45: 2033 | M45: 1952 | N45: 341250 | O45: 11.79%
A46: 36 | B46: FMCG | C46: COLPAL | D46: 1398.55 | E46: 1402.87 | F46: 1390.68 | G46: 1382.82 | H46: 1370.63 | I46: 1410.73 | J46: 1422.92 | K46: 1430.78 | L46: 1415.05 | M46: 1395 | N46: 3156300 | O46: 3.42%
A47: 37 | B47: Others | C47: CONCOR | D47: 409.05 | E47: 405.95 | F47: 398.55 | G47: 388.05 | H47: 380.65 | I47: 416.45 | J47: 423.85 | K47: 434.35 | L47: 413.35 | M47: 395.45 | N47: 4929702 | O47: 11.96%
A48: 38 | B48: Capital_Goods | C48: CUMMINSIND | D48: 470.35 | E48: 468.63 | F48: 462.67 | G48: 454.98 | H48: 449.02 | I48: 476.32 | J48: 482.28 | K48: 489.97 | L48: 474.6 | M48: 460.95 | N48: 1687200 | O48: 6.35%
A49: 39 | B49: FMCG | C49: DABUR | D49: 490.05 | E49: 491.68 | F49: 487.37 | G49: 484.68 | H49: 480.37 | I49: 494.37 | J49: 498.68 | K49: 501.37 | L49: 496 | M49: 489 | N49: 11130000 | O49: 1.68%
A50: 40 | B50: Pharma | C50: DIVISLAB | D50: 3279.00 | E50: 3281.88 | F50: 3259.72 | G50: 3240.43 | H50: 3218.27 | I50: 3301.17 | J50: 3323.33 | K50: 3342.62 | L50: 3304.05 | M50: 3262.6 | N50: 2863600 | O50: -1.89%
A51: 41 | B51: Realty | C51: DLF | D51: 173.20 | E51: 174.83 | F51: 170.67 | G51: 168.13 | H51: 163.97 | I51: 177.37 | J51: 181.53 | K51: 184.07 | L51: 179 | M51: 172.3 | N51: 21971400 | O51: -2.07%
A52: 42 | B52: Pharma | C52: DRREDDY | D52: 4392.50 | E52: 4416.52 | F52: 4356.98 | G52: 4321.47 | H52: 4261.93 | I52: 4452.03 | J52: 4511.57 | K52: 4547.08 | L52: 4476.05 | M52: 4381 | N52: 3142500 | O52: 2.01%
A53: 43 | B53: Automobile | C53: EICHERMOT | D53: 2220.90 | E53: 2229.93 | F53: 2194.87 | G53: 2168.83 | H53: 2133.77 | I53: 2255.97 | J53: 2291.03 | K53: 2317.07 | L53: 2265 | M53: 2203.9 | N53: 2679600 | O53: 2.72%
A54: 44 | B54: Automobile | C54: ESCORTS | D54: 1142.85 | E54: 1150.27 | F54: 1126.78 | G54: 1110.72 | H54: 1087.23 | I54: 1166.33 | J54: 1189.82 | K54: 1205.88 | L54: 1173.75 | M54: 1134.2 | N54: 2274800 | O54: -11.55%
A55: 45 | B55: Automobile | C55: EXIDEIND | D55: 172.75 | E55: 173.98 | F55: 170.82 | G55: 168.88 | H55: 165.72 | I55: 175.92 | J55: 179.08 | K55: 181.02 | L55: 177.15 | M55: 172.05 | N55: 9748800 | O55: 1.96%
A56: 46 | B56: Banking | C56: FEDERALBNK | D56: 60.80 | E56: 59.57 | F56: 57.68 | G56: 54.57 | H56: 52.68 | I56: 62.68 | J56: 64.57 | K56: 67.68 | L56: 61.45 | M56: 56.45 | N56: 106700500 | O56: 13.96%
A57: 47 | B57: Oil_Gas | C57: GAIL | D57: 99.70 | E57: 99.92 | F57: 98.93 | G57: 98.17 | H57: 97.18 | I57: 100.68 | J57: 101.67 | K57: 102.43 | L57: 100.9 | M57: 99.15 | N57: 22960400 | O57: 1.21%
A58: 48 | B58: Pharma | C58: GLENMARK | D58: 495.50 | E58: 496.83 | F58: 490.12 | G58: 484.73 | H58: 478.02 | I58: 502.22 | J58: 508.93 | K58: 514.32 | L58: 503.55 | M58: 491.45 | N58: 7173700 | O58: 1.86%
A59: 49 | B59: Infrastructure | C59: GMRINFRA | D59: 25.90 | E59: 26.53 | F59: 24.87 | G59: 23.83 | H59: 22.17 | I59: 27.57 | J59: 29.23 | K59: 30.27 | L59: 28.2 | M59: 25.5 | N59: 77940000 | O59: 19.53%
A60: 50 | B60: FMCG | C60: GODREJCP | D60: 674.70 | E60: 678.27 | F60: 669.88 | G60: 665.07 | H60: 656.68 | I60: 683.08 | J60: 691.47 | K60: 696.28 | L60: 686.65 | M60: 673.45 | N60: 4128000 | O60: 3.36%
A61: 51 | B61: Others | C61: GODREJPROP | D61: 904.50 | E61: 907.62 | F61: 893.28 | G61: 882.07 | H61: 867.73 | I61: 918.83 | J61: 933.17 | K61: 944.38 | L61: 921.95 | M61: 896.4 | N61: 819000 | O61: -14.69%
A62: 52 | B62: Cement | C62: GRASIM | D62: 702.15 | E62: 702.02 | F62: 685.98 | G62: 669.82 | H62: 653.78 | I62: 718.18 | J62: 734.22 | K62: 750.38 | L62: 718.05 | M62: 685.85 | N62: 17570250 | O62: -4.11%
A63: 53 | B63: Others | C63: HAVELLS | D63: 642.30 | E63: 647.28 | F63: 635.27 | G63: 628.23 | H63: 616.22 | I63: 654.32 | J63: 666.33 | K63: 673.37 | L63: 659.3 | M63: 640.25 | N63: 5697000 | O63: -1.42%
A64: 54 | B64: Technology | C64: HCLTECH | D64: 708.80 | E64: 711.17 | F64: 703.88 | G64: 698.97 | H64: 691.68 | I64: 716.08 | J64: 723.37 | K64: 728.28 | L64: 718.45 | M64: 706.25 | N64: 12308800 | O64: 1.44%
A65: 55 | B65: Finance | C65: HDFC | D65: 1892.90 | E65: 1886.83 | F65: 1874.67 | G65: 1856.43 | H65: 1844.27 | I65: 1905.07 | J65: 1917.23 | K65: 1935.47 | L65: 1899 | M65: 1868.6 | N65: 26429400 | O65: 1.40%
A66: 56 | B66: Banking | C66: HDFCBANK | D66: 1115.90 | E66: 1110.40 | F66: 1096.90 | G66: 1077.90 | H66: 1064.40 | I66: 1129.40 | J66: 1142.90 | K66: 1161.90 | L66: 1123.9 | M66: 1091.4 | N66: 38344350 | O66: 4.44%
A67: 57 | B67: Finance | C67: HDFCLIFE | D67: 592.55 | E67: 596.33 | F67: 587.42 | G67: 582.28 | H67: 573.37 | I67: 601.47 | J67: 610.38 | K67: 615.52 | L67: 605.25 | M67: 591.2 | N67: 11308000 | O67: 6.34%
A68: 58 | B68: Automobile | C68: HEROMOTOCO | D68: 3076.00 | E68: 3104.20 | F68: 3040.15 | G68: 3004.30 | H68: 2940.25 | I68: 3140.05 | J68: 3204.10 | K68: 3239.95 | L68: 3168.25 | M68: 3068.35 | N68: 1953600 | O68: -0.29%
A69: 59 | B69: Metals | C69: HINDALCO | D69: 193.75 | E69: 193.93 | F69: 191.97 | G69: 190.18 | H69: 188.22 | I69: 195.72 | J69: 197.68 | K69: 199.47 | L69: 195.9 | M69: 192.15 | N69: 20012200 | O69: 0.06%
A70: 60 | B70: Oil_Gas | C70: HINDPETRO | D70: 210.60 | E70: 211.08 | F70: 208.97 | G70: 207.33 | H70: 205.22 | I70: 212.72 | J70: 214.83 | K70: 216.47 | L70: 213.2 | M70: 209.45 | N70: 30439800 | O70: -1.14%
A71: 61 | B71: FMCG | C71: HINDUNILVR | D71: 2159.30 | E71: 2168.18 | F71: 2146.62 | G71: 2133.93 | H71: 2112.37 | I71: 2180.87 | J71: 2202.43 | K71: 2215.12 | L71: 2189.75 | M71: 2155.5 | N71: 14117100 | O71: 0.99%
A72: 62 | B72: Finance | C72: IBULHSGFIN | D72: 225.15 | E72: 226.38 | F72: 221.57 | G72: 217.98 | H72: 213.17 | I72: 229.97 | J72: 234.78 | K72: 238.37 | L72: 231.2 | M72: 222.8 | N72: 19381200 | O72: 23.24%
A73: 63 | B73: Banking | C73: ICICIBANK | D73: 410.40 | E73: 405.78 | F73: 398.52 | G73: 386.63 | H73: 379.37 | I73: 417.67 | J73: 424.93 | K73: 436.82 | L73: 413.05 | M73: 393.9 | N73: 114838625 | O73: -6.94%
A74: 64 | B74: Finance | C74: ICICIPRULI | D74: 453.70 | E74: 455.73 | F74: 449.22 | G74: 444.73 | H74: 438.22 | I74: 460.22 | J74: 466.73 | K74: 471.22 | L74: 462.25 | M74: 451.25 | N74: 8091000 | O74: 1.68%
A75: 65 | B75: Telecom | C75: IDEA | D75: 10.20 | E75: 9.88 | F75: 9.32 | G75: 8.43 | H75: 7.87 | I75: 10.77 | J75: 11.33 | K75: 12.22 | L75: 10.45 | M75: 9 | N75: 507500000 | O75: 49.98%
A76: 66 | B76: Banking | C76: IDFCFIRSTB | D76: 33.80 | E76: 33.22 | F76: 32.28 | G76: 30.77 | H76: 29.83 | I76: 34.73 | J76: 35.67 | K76: 37.18 | L76: 34.15 | M76: 31.7 | N76: 111568000 | O76: -2.67%
A77: 67 | B77: Oil_Gas | C77: IGL | D77: 410.55 | E77: 408.85 | F77: 404.20 | G77: 397.85 | H77: 393.20 | I77: 415.20 | J77: 419.85 | K77: 426.20 | L77: 413.5 | M77: 402.5 | N77: 8493375 | O77: 6.39%
A78: 68 | B78: Others | C78: INDIGO | D78: 1188.55 | E78: 1193.93 | F78: 1174.87 | G78: 1161.18 | H78: 1142.12 | I78: 1207.62 | J78: 1226.68 | K78: 1240.37 | L78: 1213 | M78: 1180.25 | N78: 2493000 | O78: 3.85%
A79: 69 | B79: Banking | C79: INDUSINDBK | D79: 669.55 | E79: 651.47 | F79: 616.08 | G79: 562.62 | H79: 527.23 | I79: 704.93 | J79: 740.32 | K79: 793.78 | L79: 686.85 | M79: 598 | N79: 32021600 | O79: -5.60%
A80: 70 | B80: Telecom | C80: INFRATEL | D80: 202.85 | E80: 205.85 | F80: 196.85 | G80: 190.85 | H80: 181.85 | I80: 211.85 | J80: 220.85 | K80: 226.85 | L80: 214.85 | M80: 199.85 | N80: 15495200 | O80: 41.68%
A81: 71 | B81: Technology | C81: INFY | D81: 940.30 | E81: 945.32 | F81: 933.33 | G81: 926.37 | H81: 914.38 | I81: 952.28 | J81: 964.27 | K81: 971.23 | L81: 957.3 | M81: 938.35 | N81: 41290800 | O81: 5.30%
A82: 72 | B82: Oil_Gas | C82: IOC | D82: 88.35 | E82: 88.38 | F82: 87.37 | G82: 86.38 | H82: 85.37 | I82: 89.37 | J82: 90.38 | K82: 91.37 | L82: 89.4 | M82: 87.4 | N82: 49196700 | O82: -0.29%
A83: 73 | B83: FMCG | C83: ITC | D83: 196.55 | E83: 196.08 | F83: 195.17 | G83: 193.78 | H83: 192.87 | I83: 197.47 | J83: 198.38 | K83: 199.77 | L83: 197 | M83: 194.7 | N83: 110313600 | O83: 4.97%
A84: 74 | B84: Metals | C84: JINDALSTEL | D84: 217.50 | E84: 220.33 | F84: 213.97 | G84: 210.43 | H84: 204.07 | I84: 223.87 | J84: 230.23 | K84: 233.77 | L84: 226.7 | M84: 216.8 | N84: 21690000 | O84: 2.80%
A85: 75 | B85: Metals | C85: JSWSTEEL | D85: 282.25 | E85: 284.77 | F85: 278.98 | G85: 275.72 | H85: 269.93 | I85: 288.03 | J85: 293.82 | K85: 297.08 | L85: 290.55 | M85: 281.5 | N85: 48470400 | O85: -1.94%
A86: 76 | B86: Others | C86: JUBLFOOD | D86: 2155.75 | E86: 2144.35 | F86: 2125.40 | G86: 2095.05 | H86: 2076.10 | I86: 2174.70 | J86: 2193.65 | K86: 2224.00 | L86: 2163.3 | M86: 2114 | N86: 2708500 | O86: 4.53%
A87: 77 | B87: Banking | C87: KOTAKBANK | D87: 1461.20 | E87: 1440.77 | F87: 1414.38 | G87: 1367.57 | H87: 1341.18 | I87: 1487.58 | J87: 1513.97 | K87: 1560.78 | L87: 1467.15 | M87: 1393.95 | N87: 12260000 | O87: 10.63%
A88: 78 | B88: Finance | C88: L&TFH | D88: 71.95 | E88: 72.23 | F88: 71.07 | G88: 70.18 | H88: 69.02 | I88: 73.12 | J88: 74.28 | K88: 75.17 | L88: 73.4 | M88: 71.35 | N88: 34544000 | O88: 2.07%
A89: 79 | B89: Finance | C89: LICHSGFIN | D89: 308.00 | E89: 306.63 | F89: 300.82 | G89: 293.63 | H89: 287.82 | I89: 313.82 | J89: 319.63 | K89: 326.82 | L89: 312.45 | M89: 299.45 | N89: 10118000 | O89: 9.05%
A90: 80 | B90: Capital_Goods | C90: LT | D90: 987.35 | E90: 992.83 | F90: 978.62 | G90: 969.88 | H90: 955.67 | I90: 1001.57 | J90: 1015.78 | K90: 1024.52 | L90: 1007.05 | M90: 984.1 | N90: 11265100 | O90: 7.60%
A91: 81 | B91: Pharma | C91: LUPIN | D91: 981.20 | E91: 983.95 | F91: 972.45 | G91: 963.70 | H91: 952.20 | I91: 992.70 | J91: 1004.20 | K91: 1012.95 | L91: 995.45 | M91: 975.2 | N91: 7701850 | O91: -1.16%
A92: 82 | B92: Automobile | C92: M&M | D92: 632.90 | E92: 637.27 | F92: 626.53 | G92: 620.17 | H92: 609.43 | I92: 643.63 | J92: 654.37 | K92: 660.73 | L92: 648 | M92: 630.9 | N92: 13552000 | O92: -5.08%
A93: 83 | B93: Finance | C93: M&MFIN | D93: 144.25 | E93: 144.70 | F93: 141.90 | G93: 139.55 | H93: 136.75 | I93: 147.05 | J93: 149.85 | K93: 152.20 | L93: 147.5 | M93: 142.35 | N93: 16775724 | O93: -5.84%
A94: 84 | B94: Finance | C94: MANAPPURAM | D94: 157.50 | E94: 156.82 | F94: 155.18 | G94: 152.87 | H94: 151.23 | I94: 159.13 | J94: 160.77 | K94: 163.08 | L94: 158.45 | M94: 154.5 | N94: 18882000 | O94: 2.37%
A95: 85 | B95: FMCG | C95: MARICO | D95: 375.00 | E95: 375.08 | F95: 373.42 | G95: 371.83 | H95: 370.17 | I95: 376.67 | J95: 378.33 | K95: 379.92 | L95: 376.75 | M95: 373.5 | N95: 9384000 | O95: 0.28%
A96: 86 | B96: Automobile | C96: MARUTI | D96: 7115.50 | E96: 7113.27 | F96: 7043.53 | G96: 6971.57 | H96: 6901.83 | I96: 7185.23 | J96: 7254.97 | K96: 7326.93 | L96: 7183 | M96: 7041.3 | N96: 2051000 | O96: 0.66%
A97: 87 | B97: FMCG | C97: MCDOWELL-N | D97: 588.15 | E97: 584.02 | F97: 576.28 | G97: 564.42 | H97: 556.68 | I97: 595.88 | J97: 603.62 | K97: 615.48 | L97: 591.75 | M97: 572.15 | N97: 16605000 | O97: 2.75%
A98: 88 | B98: Finance | C98: MFSL | D98: 601.00 | E98: 601.45 | F98: 589.55 | G98: 578.10 | H98: 566.20 | I98: 612.90 | J98: 624.80 | K98: 636.25 | L98: 613.35 | M98: 590 | N98: 1864200 | O98: -5.60%
A99: 89 | B99: Oil_Gas | C99: MGL | D99: 972.40 | E99: 974.37 | F99: 965.58 | G99: 958.77 | H99: 949.98 | I99: 981.18 | J99: 989.97 | K99: 996.78 | L99: 983.15 | M99: 967.55 | N99: 1539600 | O99: 15.33%
A100: 90 | B100: Technology | C100: MINDTREE | D100: 1188.95 | E100: 1174.68 | F100: 1147.57 | G100: 1106.18 | H100: 1079.07 | I100: 1216.07 | J100: 1243.18 | K100: 1284.57 | L100: 1201.8 | M100: 1133.3 | N100: 1332000 | O100: 11.15%
A101: 91 | B101: Automobile | C101: MOTHERSUMI | D101: 117.35 | E101: 118.03 | F101: 116.22 | G101: 115.08 | H101: 113.27 | I101: 119.17 | J101: 120.98 | K101: 122.12 | L101: 119.85 | M101: 116.9 | N101: 25760000 | O101: 4.81%
A102: 92 | B102: Automobile | C102: MRF | D102: 59828.45 | E102: 59796.78 | F102: 59351.72 | G102: 58874.98 | H102: 58429.92 | I102: 60273.52 | J102: 60718.58 | K102: 61195.32 | L102: 60241.85 | M102: 59320.05 | N102: 51930 | O102: 5.23%
A103: 93 | B103: Finance | C103: MUTHOOTFIN | D103: 1214.65 | E103: 1215.60 | F103: 1196.20 | G103: 1177.75 | H103: 1158.35 | I103: 1234.05 | J103: 1253.45 | K103: 1271.90 | L103: 1235 | M103: 1197.15 | N103: 2253750 | O103: -0.20%
A104: 94 | B104: Metals | C104: NATIONALUM | D104: 37.75 | E104: 37.80 | F104: 37.30 | G104: 36.85 | H104: 36.35 | I104: 38.25 | J104: 38.75 | K104: 39.20 | L104: 38.3 | M104: 37.35 | N104: 34187000 | O104: 1.77%
A105: 95 | B105: Others | C105: NAUKRI | D105: 3408.65 | E105: 3369.15 | F105: 3315.30 | G105: 3221.95 | H105: 3168.10 | I105: 3462.50 | J105: 3516.35 | K105: 3609.70 | L105: 3423 | M105: 3275.8 | N105: 663000 | O105: 2.75%
A106: 96 | B106: FMCG | C106: NESTLEIND | D106: 16190.15 | E106: 16246.05 | F106: 16105.10 | G106: 16020.05 | H106: 15879.10 | I106: 16331.10 | J106: 16472.05 | K106: 16557.10 | L106: 16387 | M106: 16161 | N106: 440750 | O106: 3.96%
A107: 97 | B107: Metals | C107: NMDC | D107: 107.65 | E107: 105.57 | F107: 101.93 | G107: 96.22 | H107: 92.58 | I107: 111.28 | J107: 114.92 | K107: 120.63 | L107: 109.2 | M107: 99.85 | N107: 29895400 | O107: -9.47%
A108: 98 | B108: Power | C108: NTPC | D108: 102.15 | E108: 102.88 | F108: 101.12 | G108: 100.08 | H108: 98.32 | I108: 103.92 | J108: 105.68 | K108: 106.72 | L108: 104.65 | M108: 101.85 | N108: 41826600 | O108: 3.85%
A109: 99 | B109: Oil_Gas | C109: ONGC | D109: 80.65 | E109: 81.05 | F109: 79.80 | G109: 78.95 | H109: 77.70 | I109: 81.90 | J109: 83.15 | K109: 84.00 | L109: 82.3 | M109: 80.2 | N109: 49403200 | O109: 2.97%
A110: 100 | B110: Textile | C110: PAGEIND | D110: 20174.45 | E110: 20225.70 | F110: 19984.75 | G110: 19795.05 | H110: 19554.10 | I110: 20415.40 | J110: 20656.35 | K110: 20846.05 | L110: 20466.65 | M110: 20036 | N110: 125790 | O110: -3.43%
A111: 101 | B111: Pharma | C111: PEL | D111: 1517.40 | E111: 1529.72 | F111: 1492.43 | G111: 1467.47 | H111: 1430.18 | I111: 1554.68 | J111: 1591.97 | K111: 1616.93 | L111: 1567 | M111: 1504.75 | N111: 3226850 | O111: -2.86%
A112: 102 | B112: Oil_Gas | C112: PETRONET | D112: 249.65 | E112: 248.05 | F112: 245.70 | G112: 241.75 | H112: 239.40 | I112: 252.00 | J112: 254.35 | K112: 258.30 | L112: 250.4 | M112: 244.1 | N112: 10536000 | O112: -3.25%
A113: 103 | B113: Finance | C113: PFC | D113: 98.75 | E113: 99.48 | F113: 97.27 | G113: 95.78 | H113: 93.57 | I113: 100.97 | J113: 103.18 | K113: 104.67 | L113: 101.7 | M113: 98 | N113: 45198000 | O113: 3.80%
A114: 104 | B114: FMCG | C114: PIDILITIND | D114: 1453.70 | E114: 1461.93 | F114: 1442.07 | G114: 1430.43 | H114: 1410.57 | I114: 1473.57 | J114: 1493.43 | K114: 1505.07 | L114: 1481.8 | M114: 1450.3 | N114: 3142000 | O114: 0.56%
A115: 105 | B115: Banking | C115: PNB | D115: 37.25 | E115: 36.87 | F115: 36.13 | G115: 35.02 | H115: 34.28 | I115: 37.98 | J115: 38.72 | K115: 39.83 | L115: 37.6 | M115: 35.75 | N115: 48496000 | O115: 107.67%
A116: 106 | B116: Power | C116: POWERGRID | D116: 179.30 | E116: 180.55 | F116: 177.55 | G116: 175.80 | H116: 172.80 | I116: 182.30 | J116: 185.30 | K116: 187.05 | L116: 183.55 | M116: 178.8 | N116: 10184000 | O116: 16.47%
A117: 107 | B117: Media | C117: PVR | D117: 1399.40 | E117: 1375.17 | F117: 1335.33 | G117: 1271.27 | H117: 1231.43 | I117: 1439.23 | J117: 1479.07 | K117: 1543.13 | L117: 1415 | M117: 1311.1 | N117: 1296295 | O117: 9.15%
A118: 108 | B118: Cement | C118: RAMCOCEM | D118: 722.50 | E118: 720.38 | F118: 715.07 | G118: 707.63 | H118: 702.32 | I118: 727.82 | J118: 733.13 | K118: 740.57 | L118: 725.7 | M118: 712.95 | N118: 1096500 | O118: -4.16%
A119: 109 | B119: Banking | C119: RBLBANK | D119: 211.55 | E119: 210.25 | F119: 205.70 | G119: 199.85 | H119: 195.30 | I119: 216.10 | J119: 220.65 | K119: 226.50 | L119: 214.8 | M119: 204.4 | N119: 21000200 | O119: -1.70%
A120: 110 | B120: Power | C120: RECLTD | D120: 112.20 | E120: 112.17 | F120: 110.08 | G120: 107.97 | H120: 105.88 | I120: 114.28 | J120: 116.37 | K120: 118.48 | L120: 114.25 | M120: 110.05 | N120: 20286000 | O120: 3.52%
A121: 111 | B121: Oil_Gas | C121: RELIANCE | D121: 2127.10 | E121: 2127.73 | F121: 2111.57 | G121: 2096.03 | H121: 2079.87 | I121: 2143.27 | J121: 2159.43 | K121: 2174.97 | L121: 2143.9 | M121: 2112.2 | N121: 33989530 | O121: 2.52%
A122: 112 | B122: Metals | C122: SAIL | D122: 41.25 | E122: 41.78 | F122: 40.27 | G122: 39.28 | H122: 37.77 | I122: 42.77 | J122: 44.28 | K122: 45.27 | L122: 43.3 | M122: 40.8 | N122: 39786000 | O122: 32.53%
A123: 113 | B123: Finance | C123: SBILIFE | D123: 856.50 | E123: 854.50 | F123: 847.15 | G123: 837.80 | H123: 830.45 | I123: 863.85 | J123: 871.20 | K123: 880.55 | L123: 861.85 | M123: 845.15 | N123: 6727500 | O123: -0.14%
A124: 114 | B124: Banking | C124: SBIN | D124: 225.40 | E124: 223.03 | F124: 219.72 | G124: 214.03 | H124: 210.72 | I124: 228.72 | J124: 232.03 | K124: 237.72 | L124: 226.35 | M124: 217.35 | N124: 117222000 | O124: -0.75%
A125: 115 | B125: Cement | C125: SHREECEM | D125: 21454.00 | E125: 21554.18 | F125: 21310.12 | G125: 21166.23 | H125: 20922.17 | I125: 21698.07 | J125: 21942.13 | K125: 22086.02 | L125: 21798.25 | M125: 21410.3 | N125: 127100 | O125: 8.73%
A126: 116 | B126: Capital_Goods | C126: SIEMENS | D126: 1227.15 | E126: 1229.72 | F126: 1219.48 | G126: 1211.82 | H126: 1201.58 | I126: 1237.38 | J126: 1247.62 | K126: 1255.28 | L126: 1239.95 | M126: 1222.05 | N126: 1930500 | O126: 8.50%
A127: 117 | B127: Textile | C127: SRF | D127: 4246.00 | E127: 4256.25 | F127: 4220.75 | G127: 4195.50 | H127: 4160.00 | I127: 4281.50 | J127: 4317.00 | K127: 4342.25 | L127: 4291.75 | M127: 4231 | N127: 583000 | O127: 3.37%
A128: 118 | B128: Finance | C128: SRTRANSFIN | D128: 775.50 | E128: 763.73 | F128: 739.77 | G128: 704.03 | H128: 680.07 | I128: 799.47 | J128: 823.43 | K128: 859.17 | L128: 787.7 | M128: 728 | N128: 5197931 | O128: 11.01%
A129: 119 | B129: Pharma | C129: SUNPHARMA | D129: 556.75 | E129: 552.70 | F129: 539.65 | G129: 522.55 | H129: 509.50 | I129: 569.80 | J129: 582.85 | K129: 599.95 | L129: 565.75 | M129: 535.6 | N129: 33334000 | O129: 3.98%
A130: 120 | B130: Media | C130: SUNTV | D130: 479.50 | E130: 482.57 | F130: 475.33 | G130: 471.17 | H130: 463.93 | I130: 486.73 | J130: 493.97 | K130: 498.13 | L130: 489.8 | M130: 478.4 | N130: 4464000 | O130: 6.82%
A131: 121 | B131: Fertilisers | C131: TATACHEM | D131: 330.00 | E131: 331.83 | F131: 326.27 | G131: 322.53 | H131: 316.97 | I131: 335.57 | J131: 341.13 | K131: 344.87 | L131: 337.4 | M131: 328.1 | N131: 7094000 | O131: 8.80%
A132: 122 | B132: Others | C132: TATACONSUM | D132: 550.05 | E132: 551.42 | F132: 545.28 | G132: 540.52 | H132: 534.38 | I132: 556.18 | J132: 562.32 | K132: 567.08 | L132: 557.55 | M132: 546.65 | N132: 10470600 | O132: 1.23%
A133: 123 | B133: Automobile | C133: TATAMOTORS | D133: 143.45 | E133: 143.67 | F133: 140.58 | G133: 137.72 | H133: 134.63 | I133: 146.53 | J133: 149.62 | K133: 152.48 | L133: 146.75 | M133: 140.8 | N133: 69072600 | O133: -4.21%
A134: 124 | B134: Power | C134: TATAPOWER | D134: 61.55 | E134: 61.55 | F134: 60.60 | G134: 59.65 | H134: 58.70 | I134: 62.50 | J134: 63.45 | K134: 64.40 | L134: 62.5 | M134: 60.6 | N134: 82984500 | O134: 3.33%
A135: 125 | B135: Metals | C135: TATASTEEL | D135: 426.50 | E135: 430.73 | F135: 421.27 | G135: 416.03 | H135: 406.57 | I135: 435.97 | J135: 445.43 | K135: 450.67 | L135: 440.2 | M135: 425.5 | N135: 18246100 | O135: 6.52%
A136: 126 | B136: Technology | C136: TCS | D136: 2250.65 | E136: 2263.63 | F136: 2234.32 | G136: 2217.98 | H136: 2188.67 | I136: 2279.97 | J136: 2309.28 | K136: 2325.62 | L136: 2292.95 | M136: 2247.3 | N136: 10400100 | O136: 6.95%
A137: 127 | B137: Technology | C137: TECHM | D137: 753.05 | E137: 751.15 | F137: 743.30 | G137: 733.55 | H137: 725.70 | I137: 760.90 | J137: 768.75 | K137: 778.50 | L137: 759 | M137: 741.4 | N137: 9903600 | O137: 0.51%
A138: 128 | B138: FMCG | C138: TITAN | D138: 1140.20 | E138: 1142.28 | F138: 1133.62 | G138: 1127.03 | H138: 1118.37 | I138: 1148.87 | J138: 1157.53 | K138: 1164.12 | L138: 1150.95 | M138: 1135.7 | N138: 5833500 | O138: -3.22%
A139: 129 | B139: Pharma | C139: TORNTPHARM | D139: 2724.80 | E139: 2739.97 | F139: 2704.93 | G139: 2685.07 | H139: 2650.03 | I139: 2759.83 | J139: 2794.87 | K139: 2814.73 | L139: 2775 | M139: 2720.1 | N139: 1655000 | O139: 9.86%
A140: 130 | B140: Power | C140: TORNTPOWER | D140: 346.15 | E140: 348.12 | F140: 343.23 | G140: 340.32 | H140: 335.43 | I140: 351.03 | J140: 355.92 | K140: 358.83 | L140: 353 | M140: 345.2 | N140: 2445000 | O140: 9.25%
A141: 131 | B141: Automobile | C141: TVSMOTOR | D141: 448.70 | E141: 451.37 | F141: 445.13 | G141: 441.57 | H141: 435.33 | I141: 454.93 | J141: 461.17 | K141: 464.73 | L141: 457.6 | M141: 447.8 | N141: 5199600 | O141: -5.40%
A142: 132 | B142: FMCG | C142: UBL | D142: 1045.45 | E142: 1049.53 | F142: 1034.07 | G142: 1022.68 | H142: 1007.22 | I142: 1060.92 | J142: 1076.38 | K142: 1087.77 | L142: 1065 | M142: 1038.15 | N142: 1150800 | O142: 2.05%
A143: 133 | B143: Cement | C143: ULTRACEMCO | D143: 4071.40 | E143: 4073.45 | F143: 4048.90 | G143: 4026.40 | H143: 4001.85 | I143: 4095.95 | J143: 4120.50 | K143: 4143.00 | L143: 4098 | M143: 4050.95 | N143: 2113600 | O143: 0.55%
A144: 134 | B144: Fertilisers | C144: UPL | D144: 520.35 | E144: 514.57 | F144: 506.58 | G144: 492.82 | H144: 484.83 | I144: 528.33 | J144: 536.32 | K144: 550.08 | L144: 522.55 | M144: 500.8 | N144: 9922900 | O144: 0.97%
A145: 135 | B145: Metals | C145: VEDL | D145: 129.65 | E145: 130.00 | F145: 128.00 | G145: 126.35 | H145: 124.35 | I145: 131.65 | J145: 133.65 | K145: 135.30 | L145: 132 | M145: 128.35 | N145: 85088800 | O145: 17.59%
A146: 136 | B146: Capital_Goods | C146: VOLTAS | D146: 662.80 | E146: 662.92 | F146: 658.33 | G146: 653.87 | H146: 649.28 | I146: 667.38 | J146: 671.97 | K146: 676.43 | L146: 667.5 | M146: 658.45 | N146: 1937000 | O146: 0.89%
A147: 137 | B147: Technology | C147: WIPRO | D147: 273.65 | E147: 274.00 | F147: 272.30 | G147: 270.95 | H147: 269.25 | I147: 275.35 | J147: 277.05 | K147: 278.40 | L147: 275.7 | M147: 272.65 | N147: 24598400 | O147: 2.62%
A148: 138 | B148: Media | C148: ZEEL | D148: 214.65 | E148: 215.10 | F148: 211.00 | G148: 207.35 | H148: 203.25 | I148: 218.75 | J148: 222.85 | K148: 226.50 | L148: 219.2 | M148: 211.45 | N148: 32640000 | O148: -0.96%
A149: 139
A150: 140
A151: 141
A152: 142
A153: 143
A154: 144
A155: 145
A156: 146
A157: 147
A175: Pivot Point: This is trigger point for intra day buy/sell based on the price range of the previous day
A176: As per the tool,the trader should take BUY position just above Pivot and keep the stop loss of pivot point and the first target would be Resistance 1(R1)
A177: If R1 is crossed then R2 becomes the next target with stop loss of at R1
A178: Similarly if price goes below pivot point then the trader should sell and keep a stop loss of pivot point and the first target would be S1
A179: If S1 is crossed then S2 becomes the next target with stop loss of at S1
A181: Disclaimer:
A182: This document has been prepared by the Retail Research Desk of Asit C Mehta
A183: Investment Intermediates Ltd. and is meant for use of the recipient only
A184: and is not for circulation. This document is not to be reported or
A185: copied or made available to others. It should not be considered to be
A186: taken as an offer to sell or a solicitation to buy any security. The
A187: information contained herein is from sources believed reliable. We do
A188: not represent that it is accurate or complete and it should not be
A189: relied upon as such. We may from time to time have positions in and buy
A190: and sell securities referred to herein

Sheet Cash Intra
M5: Back to Main Page
A6: FOR INTRA DAY TRADING | K6: =Main!B10 -> 2020-08-31
A8: Sr.no | B8: Scrip | C8: CLOSE RATE | D8: Pivot Point | E8: Supports | H8: Resistances
C9: Point | E9: S1 | F9: S2 | G9: S3 | H9: R1 | I9: R2 | J9: R3 | K9: HIGH | L9: LOW | M9: Total Trade Quanity in Lakhs
A10: 1 | B10: Nifty 50 | C10: 11647.6 | D10: 11641.02 | E10: 11595.98 | F10: 11544.37 | G10: 11499.33 | H10: 11692.63 | I10: 11737.67 | J10: 11789.28 | K10: 11686.05 | L10: 11589.4
A11: 2 | B11: Nifty Bank | C11: 24523.8 | D11: 24244.93 | E11: 23878.07 | F11: 23232.33 | G11: 22865.47 | H11: 24890.67 | I11: 25257.53 | J11: 25903.27 | K11: 24611.8 | L11: 23599.2
A12: 3 | B12: Nifty CPSE | C12: 1547.1 | D12: 1554.23 | E12: 1537.82 | F12: 1528.53 | G12: 1512.12 | H12: 1563.52 | I12: 1579.93 | J12: 1589.22 | K12: 1570.65 | L12: 1544.95
A13: 4 | B13: Nifty Infra | C13: 3254.45 | D13: 3258.48 | E13: 3244.47 | F13: 3234.48 | G13: 3220.47 | H13: 3268.47 | I13: 3282.48 | J13: 3292.47 | K13: 3272.5 | L13: 3248.5
A14: 5 | B14: Nifty IT | C14: 18122 | D14: 18156.35 | E14: 18059.10 | F14: 17996.20 | G14: 17898.95 | H14: 18219.25 | I14: 18316.50 | J14: 18379.40 | K14: 18253.6 | L14: 18093.45
A15: 6 | B15: Nifty PSE | C15: 2644.45 | D15: 2655.12 | E15: 2630.83 | F15: 2617.22 | G15: 2592.93 | H15: 2668.73 | I15: 2693.02 | J15: 2706.63 | K15: 2679.4 | L15: 2641.5
A16: 7 | B16: Nifty Midcap 50 | C16: 4829.55 | D16: 4836.48 | E16: 4810.92 | F16: 4792.28 | G16: 4766.72 | H16: 4855.12 | I16: 4880.68 | J16: 4899.32 | K16: 4862.05 | L16: 4817.85
A17: 8 | B17: AARTIIND | C17: 1086.7 | D17: 1102.23 | E17: 1064.57 | F17: 1042.43 | G17: 1004.77 | H17: 1124.37 | I17: 1162.03 | J17: 1184.17 | K17: 1139.9 | L17: 1080.1 | M17: 4.84976
A18: 9 | B18: ABBOTINDIA | C18: 16816.05 | D18: 16930.28 | E18: 16665.77 | F18: 16515.48 | G18: 16250.97 | H18: 17080.57 | I18: 17345.08 | J18: 17495.37 | K18: 17194.8 | L18: 16780 | M18: 0.11894
A19: 10 | B19: ABCAPITAL | C19: 64.8 | D19: 65.40 | E19: 63.85 | F19: 62.90 | G19: 61.35 | H19: 66.35 | I19: 67.90 | J19: 68.85 | K19: 66.95 | L19: 64.45 | M19: 58.37158
A20: 11 | B20: ABFRL | C20: 143.65 | D20: 145.58 | E20: 141.17 | F20: 138.68 | G20: 134.27 | H20: 148.07 | I20: 152.48 | J20: 154.97 | K20: 150 | L20: 143.1 | M20: 14.58076
A21: 12 | B21: ACC | C21: 1396.4 | D21: 1402.50 | E21: 1385.00 | F21: 1373.60 | G21: 1356.10 | H21: 1413.90 | I21: 1431.40 | J21: 1442.80 | K21: 1420 | L21: 1391.1 | M21: 4.67029
A22: 13 | B22: ADANIGAS | C22: 186.55 | D22: 186.88 | E22: 183.17 | F22: 179.78 | G22: 176.07 | H22: 190.27 | I22: 193.98 | J22: 197.37 | K22: 190.6 | L22: 183.5 | M22: 23.4401
A23: 14 | B23: ADANIPORTS | C23: 360.05 | D23: 357.18 | E23: 351.37 | F23: 342.68 | G23: 336.87 | H23: 365.87 | I23: 371.68 | J23: 380.37 | K23: 363 | L23: 348.5 | M23: 54.06554
A24: 15 | B24: ADANIPOWER | C24: 39.25 | D24: 39.40 | E24: 38.95 | F24: 38.65 | G24: 38.20 | H24: 39.70 | I24: 40.15 | J24: 40.45 | K24: 39.85 | L24: 39.1 | M24: 38.35614
A25: 16 | B25: ADANITRANS | C25: 275.65 | D25: 278.42 | E25: 269.23 | F25: 262.82 | G25: 253.63 | H25: 284.83 | I25: 294.02 | J25: 300.43 | K25: 287.6 | L25: 272 | M25: 6.73176
A26: 17 | B26: AJANTPHARM | C26: 1570.1 | D26: 1570.70 | E26: 1549.40 | F26: 1528.70 | G26: 1507.40 | H26: 1591.40 | I26: 1612.70 | J26: 1633.40 | K26: 1592 | L26: 1550 | M26: 2.08779
A27: 18 | B27: ALKEM | C27: 2873.45 | D27: 2873.15 | E27: 2851.30 | F27: 2829.15 | G27: 2807.30 | H27: 2895.30 | I27: 2917.15 | J27: 2939.30 | K27: 2895 | L27: 2851 | M27: 1.73469
A28: 19 | B28: AMARAJABAT | C28: 734.95 | D28: 739.88 | E28: 726.87 | F28: 718.78 | G28: 705.77 | H28: 747.97 | I28: 760.98 | J28: 769.07 | K28: 752.9 | L28: 731.8 | M28: 7.02794
A29: 20 | B29: AMBUJACEM | C29: 222.45 | D29: 222.65 | E29: 220.15 | F29: 217.85 | G29: 215.35 | H29: 224.95 | I29: 227.45 | J29: 229.75 | K29: 225.15 | L29: 220.35 | M29: 41.1419
A30: 21 | B30: APOLLOHOSP | C30: 1661.95 | D30: 1661.80 | E30: 1647.70 | F30: 1633.45 | G30: 1619.35 | H30: 1676.05 | I30: 1690.15 | J30: 1704.40 | K30: 1675.9 | L30: 1647.55 | M30: 5.48815
A31: 22 | B31: APOLLOTYRE | C31: 133.55 | D31: 134.68 | E31: 131.47 | F31: 129.38 | G31: 126.17 | H31: 136.77 | I31: 139.98 | J31: 142.07 | K31: 137.9 | L31: 132.6 | M31: 76.24362
A32: 23 | B32: ASHOKLEY | C32: 70.5 | D32: 71.33 | E32: 69.37 | F32: 68.23 | G32: 66.27 | H32: 72.47 | I32: 74.43 | J32: 75.57 | K32: 73.3 | L32: 70.2 | M32: 384.021
A33: 24 | B33: ASIANPAINT | C33: 1958.1 | D33: 1969.47 | E33: 1941.93 | F33: 1925.77 | G33: 1898.23 | H33: 1985.63 | I33: 2013.17 | J33: 2029.33 | K33: 1997 | L33: 1953.3 | M33: 18.42553
A34: 25 | B34: AUBANK | C34: 736.7 | D34: 743.57 | E34: 725.13 | F34: 713.57 | G34: 695.13 | H34: 755.13 | I34: 773.57 | J34: 785.13 | K34: 762 | L34: 732 | M34: 14.66947
A35: 26 | B35: AUROPHARMA | C35: 868.9 | D35: 873.28 | E35: 861.32 | F35: 853.73 | G35: 841.77 | H35: 880.87 | I35: 892.83 | J35: 900.42 | K35: 885.25 | L35: 865.7 | M35: 23.3668
A36: 27 | B36: AXISBANK | C36: 509.2 | D36: 499.42 | E36: 485.83 | F36: 462.47 | G36: 448.88 | H36: 522.78 | I36: 536.37 | J36: 559.73 | K36: 513 | L36: 476.05 | M36: 591.80165
A37: 28 | B37: BAJAJ-AUTO | C37: 3014.15 | D37: 3026.20 | E37: 2989.95 | F37: 2965.75 | G37: 2929.50 | H37: 3050.40 | I37: 3086.65 | J37: 3110.85 | K37: 3062.45 | L37: 3002 | M37: 6.79405
A38: 29 | B38: BAJAJFINSV | C38: 6545.55 | D38: 6570.18 | E38: 6490.37 | F38: 6435.18 | G38: 6355.37 | H38: 6625.37 | I38: 6705.18 | J38: 6760.37 | K38: 6650 | L38: 6515 | M38: 4.90168
A39: 30 | B39: BAJAJHLDNG | C39: 2782.15 | D39: 2809.05 | E39: 2738.10 | F39: 2694.05 | G39: 2623.10 | H39: 2853.10 | I39: 2924.05 | J39: 2968.10 | K39: 2880 | L39: 2765 | M39: 0.53007
A40: 31 | B40: BAJFINANCE | C40: 3670.8 | D40: 3658.62 | E40: 3629.23 | F40: 3587.67 | G40: 3558.28 | H40: 3700.18 | I40: 3729.57 | J40: 3771.13 | K40: 3688 | L40: 3617.05 | M40: 42.51575
A41: 32 | B41: BALKRISIND | C41: 1379.7 | D41: 1389.40 | E41: 1365.80 | F41: 1351.90 | G41: 1328.30 | H41: 1403.30 | I41: 1426.90 | J41: 1440.80 | K41: 1413 | L41: 1375.5 | M41: 4.40254
A42: 33 | B42: BANDHANBNK | C42: 320.05 | D42: 320.05 | E42: 313.10 | F42: 306.15 | G42: 299.20 | H42: 327.00 | I42: 333.95 | J42: 340.90 | K42: 327 | L42: 313.1 | M42: 432.19718
A43: 34 | B43: BANKBARODA | C43: 51.6 | D43: 50.90 | E43: 49.60 | F43: 47.60 | G43: 46.30 | H43: 52.90 | I43: 54.20 | J43: 56.20 | K43: 52.2 | L43: 48.9 | M43: 1016.56705
A44: 35 | B44: BANKINDIA | C44: 52.55 | D44: 52.05 | E44: 50.60 | F44: 48.65 | G44: 47.20 | H44: 54.00 | I44: 55.45 | J44: 57.40 | K44: 53.5 | L44: 50.1 | M44: 142.48949
A45: 36 | B45: BATAINDIA | C45: 1340.75 | D45: 1347.93 | E45: 1323.87 | F45: 1306.98 | G45: 1282.92 | H45: 1364.82 | I45: 1388.88 | J45: 1405.77 | K45: 1372 | L45: 1331.05 | M45: 10.7167
A46: 37 | B46: BBTC | C46: 1483.5 | D46: 1498.27 | E46: 1456.58 | F46: 1429.67 | G46: 1387.98 | H46: 1525.18 | I46: 1566.87 | J46: 1593.78 | K46: 1539.95 | L46: 1471.35 | M46: 2.34328
A47: 38 | B47: BEL | C47: 112.05 | D47: 112.53 | E47: 110.32 | F47: 108.58 | G47: 106.37 | H47: 114.27 | I47: 116.48 | J47: 118.22 | K47: 114.75 | L47: 110.8 | M47: 162.02183
A48: 39 | B48: BERGEPAINT | C48: 564.3 | D48: 563.27 | E48: 558.03 | F48: 551.77 | G48: 546.53 | H48: 569.53 | I48: 574.77 | J48: 581.03 | K48: 568.5 | L48: 557 | M48: 9.37871
A49: 40 | B49: BHARATFORG | C49: 502.25 | D49: 507.88 | E49: 493.67 | F49: 485.08 | G49: 470.87 | H49: 516.47 | I49: 530.68 | J49: 539.27 | K49: 522.1 | L49: 499.3 | M49: 39.39607
A50: 41 | B50: BHARTIARTL | C50: 523.45 | D50: 521.70 | E50: 513.85 | F50: 504.25 | G50: 496.40 | H50: 531.30 | I50: 539.15 | J50: 548.75 | K50: 529.55 | L50: 512.1 | M50: 218.08591
A51: 42 | B51: BHEL | C51: 41.65 | D51: 41.28 | E51: 40.47 | F51: 39.28 | G51: 38.47 | H51: 42.47 | I51: 43.28 | J51: 44.47 | K51: 42.1 | L51: 40.1 | M51: 1336.53715
A52: 43 | B52: BIOCON | C52: 391.55 | D52: 391.07 | E52: 388.48 | F52: 385.42 | G52: 382.83 | H52: 394.13 | I52: 396.72 | J52: 399.78 | K52: 393.65 | L52: 388 | M52: 28.49943
A53: 44 | B53: BOSCHLTD | C53: 14007.65 | D53: 14086.22 | E53: 13872.43 | F53: 13737.22 | G53: 13523.43 | H53: 14221.43 | I53: 14435.22 | J53: 14570.43 | K53: 14300 | L53: 13951 | M53: 0.30109
A54: 45 | B54: BPCL | C54: 415.05 | D54: 416.85 | E54: 411.70 | F54: 408.35 | G54: 403.20 | H54: 420.20 | I54: 425.35 | J54: 428.70 | K54: 422 | L54: 413.5 | M54: 87.44341
A55: 46 | B55: BRITANNIA | C55: 3793.85 | D55: 3802.82 | E55: 3778.03 | F55: 3762.22 | G55: 3737.43 | H55: 3818.63 | I55: 3843.42 | J55: 3859.23 | K55: 3827.6 | L55: 3787 | M55: 5.12488
A56: 47 | B56: CADILAHC | C56: 388.85 | D56: 390.05 | E56: 386.35 | F56: 383.85 | G56: 380.15 | H56: 392.55 | I56: 396.25 | J56: 398.75 | K56: 393.75 | L56: 387.55 | M56: 24.3436
A57: 48 | B57: CANBK | C57: 114.8 | D57: 112.33 | E57: 108.77 | F57: 102.73 | G57: 99.17 | H57: 118.37 | I57: 121.93 | J57: 127.97 | K57: 115.9 | L57: 106.3 | M57: 473.67334
A58: 49 | B58: CASTROLIND | C58: 122.4 | D58: 122.67 | E58: 121.93 | F58: 121.47 | G58: 120.73 | H58: 123.13 | I58: 123.87 | J58: 124.33 | K58: 123.4 | L58: 122.2 | M58: 5.5466
A59: 50 | B59: CESC | C59: 626.05 | D59: 633.82 | E59: 613.78 | F59: 601.52 | G59: 581.48 | H59: 646.08 | I59: 666.12 | J59: 678.38 | K59: 653.85 | L59: 621.55 | M59: 3.58227
A60: 51 | B60: CHOLAFIN | C60: 249.75 | D60: 249.70 | E60: 240.40 | F60: 231.05 | G60: 221.75 | H60: 259.05 | I60: 268.35 | J60: 277.70 | K60: 259 | L60: 240.35 | M60: 177.83814
A61: 52 | B61: CIPLA | C61: 748.6 | D61: 755.43 | E61: 739.87 | F61: 731.13 | G61: 715.57 | H61: 764.17 | I61: 779.73 | J61: 788.47 | K61: 771 | L61: 746.7 | M61: 82.06125
A62: 53 | B62: COALINDIA | C62: 139.05 | D62: 140.03 | E62: 137.67 | F62: 136.28 | G62: 133.92 | H62: 141.42 | I62: 143.78 | J62: 145.17 | K62: 142.4 | L62: 138.65 | M62: 90.56537
A63: 54 | B63: COFORGE | C63: 2001.45 | D63: 1990.37 | E63: 1956.28 | F63: 1911.12 | G63: 1877.03 | H63: 2035.53 | I63: 2069.62 | J63: 2114.78 | K63: 2024.45 | L63: 1945.2 | M63: 1.56148
A64: 55 | B64: COLPAL | C64: 1390.2 | D64: 1396.30 | E64: 1381.60 | F64: 1373.00 | G64: 1358.30 | H64: 1404.90 | I64: 1419.60 | J64: 1428.20 | K64: 1411 | L64: 1387.7 | M64: 7.5118
A65: 56 | B65: CONCOR | C65: 409.1 | D65: 405.35 | E65: 397.80 | F65: 386.50 | G65: 378.95 | H65: 416.65 | I65: 424.20 | J65: 435.50 | K65: 412.9 | L65: 394.05 | M65: 55.27749
A66: 57 | B66: COROMANDEL | C66: 812.3 | D66: 814.77 | E66: 799.53 | F66: 786.77 | G66: 771.53 | H66: 827.53 | I66: 842.77 | J66: 855.53 | K66: 830 | L66: 802 | M66: 7.79095
A67: 58 | B67: CROMPTON | C67: 270.25 | D67: 269.93 | E67: 267.32 | F67: 264.38 | G67: 261.77 | H67: 272.87 | I67: 275.48 | J67: 278.42 | K67: 272.55 | L67: 267 | M67: 6.16853
A68: 59 | B68: CUB | C68: 150 | D68: 147.07 | E68: 142.13 | F68: 134.27 | G68: 129.33 | H68: 154.93 | I68: 159.87 | J68: 167.73 | K68: 152 | L68: 139.2 | M68: 113.3293
A69: 60 | B69: CUMMINSIND | C69: 471.75 | D69: 470.58 | E69: 466.17 | F69: 460.58 | G69: 456.17 | H69: 476.17 | I69: 480.58 | J69: 486.17 | K69: 475 | L69: 465 | M69: 9.76134
A70: 61 | B70: DABUR | C70: 489.1 | D70: 490.92 | E70: 486.18 | F70: 483.27 | G70: 478.53 | H70: 493.83 | I70: 498.57 | J70: 501.48 | K70: 495.65 | L70: 488 | M70: 18.54758
A71: 62 | B71: DALBHARAT | C71: 749.55 | D71: 748.18 | E71: 740.37 | F71: 731.18 | G71: 723.37 | H71: 757.37 | I71: 765.18 | J71: 774.37 | K71: 756 | L71: 739 | M71: 0.8502
A72: 63 | B72: DIVISLAB | C72: 3272.85 | D72: 3276.58 | E72: 3255.27 | F72: 3237.68 | G72: 3216.37 | H72: 3294.17 | I72: 3315.48 | J72: 3333.07 | K72: 3297.9 | L72: 3259 | M72: 6.36725
A73: 64 | B73: DLF | C73: 173.05 | D73: 174.95 | E73: 170.20 | F73: 167.35 | G73: 162.60 | H73: 177.80 | I73: 182.55 | J73: 185.40 | K73: 179.7 | L73: 172.1 | M73: 251.28213
A74: 65 | B74: DMART | C74: 2319.4 | D74: 2332.10 | E74: 2287.30 | F74: 2255.20 | G74: 2210.40 | H74: 2364.20 | I74: 2409.00 | J74: 2441.10 | K74: 2376.9 | L74: 2300 | M74: 6.1776
A75: 66 | B75: DRREDDY | C75: 4374.3 | D75: 4400.37 | E75: 4334.73 | F75: 4295.17 | G75: 4229.53 | H75: 4439.93 | I75: 4505.57 | J75: 4545.13 | K75: 4466 | L75: 4360.8 | M75: 11.62854
A76: 67 | B76: EDELWEISS | C76: 84.25 | D76: 84.33 | E76: 82.17 | F76: 80.08 | G76: 77.92 | H76: 86.42 | I76: 88.58 | J76: 90.67 | K76: 86.5 | L76: 82.25 | M76: 37.21608
A77: 68 | B77: EICHERMOT | C77: 2213.6 | D77: 2223.20 | E77: 2190.40 | F77: 2167.20 | G77: 2134.40 | H77: 2246.40 | I77: 2279.20 | J77: 2302.40 | K77: 2256 | L77: 2200 | M77: 14.70743
A78: 69 | B78: EMAMILTD | C78: 353.8 | D78: 356.22 | E78: 349.63 | F78: 345.47 | G78: 338.88 | H78: 360.38 | I78: 366.97 | J78: 371.13 | K78: 362.8 | L78: 352.05 | M78: 4.71049
A79: 70 | B79: ENDURANCE | C79: 1126.4 | D79: 1119.80 | E79: 1101.65 | F79: 1076.90 | G79: 1058.75 | H79: 1144.55 | I79: 1162.70 | J79: 1187.45 | K79: 1137.95 | L79: 1095.05 | M79: 0.96307
A80: 71 | B80: ESCORTS | C80: 1141.1 | D80: 1148.38 | E80: 1124.72 | F80: 1108.33 | G80: 1084.67 | H80: 1164.77 | I80: 1188.43 | J80: 1204.82 | K80: 1172.05 | L80: 1132 | M80: 15.69698
A81: 72 | B81: EXIDEIND | C81: 172.35 | D81: 174.00 | E81: 169.60 | F81: 166.85 | G81: 162.45 | H81: 176.75 | I81: 181.15 | J81: 183.90 | K81: 178.4 | L81: 171.25 | M81: 77.27585
A82: 73 | B82: FEDERALBNK | C82: 60.45 | D82: 59.28 | E82: 57.42 | F82: 54.38 | G82: 52.52 | H82: 62.32 | I82: 64.18 | J82: 67.22 | K82: 61.15 | L82: 56.25 | M82: 1312.79166
A83: 74 | B83: FORTIS | C83: 133.15 | D83: 134.08 | E83: 132.07 | F83: 130.98 | G83: 128.97 | H83: 135.17 | I83: 137.18 | J83: 138.27 | K83: 136.1 | L83: 133 | M83: 8.61716
A84: 75 | B84: FRETAIL | C84: 135.3 | D84: 136.10 | E84: 131.85 | F84: 128.40 | G84: 124.15 | H84: 139.55 | I84: 143.80 | J84: 147.25 | K84: 140.35 | L84: 132.65 | M84: 340.85907
A85: 76 | B85: GAIL | C85: 99.1 | D85: 99.47 | E85: 98.43 | F85: 97.77 | G85: 96.73 | H85: 100.13 | I85: 101.17 | J85: 101.83 | K85: 100.5 | L85: 98.8 | M85: 87.17459
A86: 77 | B86: GICRE | C86: 154.6 | D86: 156.57 | E86: 151.28 | F86: 147.97 | G86: 142.68 | H86: 159.88 | I86: 165.17 | J86: 168.48 | K86: 161.85 | L86: 153.25 | M86: 7.97469
A87: 78 | B87: GLENMARK | C87: 493.95 | D87: 495.62 | E87: 489.33 | F87: 484.72 | G87: 478.43 | H87: 500.23 | I87: 506.52 | J87: 511.13 | K87: 501.9 | L87: 491 | M87: 20.29973
A88: 79 | B88: GMRINFRA | C88: 25.75 | D88: 26.47 | E88: 24.68 | F88: 23.62 | G88: 21.83 | H88: 27.53 | I88: 29.32 | J88: 30.38 | K88: 28.25 | L88: 25.4 | M88: 1174.22995
A89: 80 | B89: GODREJAGRO | C89: 490.1 | D89: 491.75 | E89: 485.90 | F89: 481.70 | G89: 475.85 | H89: 495.95 | I89: 501.80 | J89: 506.00 | K89: 497.6 | L89: 487.55 | M89: 1.01467
A90: 81 | B90: GODREJCP | C90: 670.95 | D90: 675.63 | E90: 665.32 | F90: 659.68 | G90: 649.37 | H90: 681.27 | I90: 691.58 | J90: 697.22 | K90: 685.95 | L90: 670 | M90: 9.59825
A91: 82 | B91: GODREJIND | C91: 448.5 | D91: 445.62 | E91: 438.93 | F91: 429.37 | G91: 422.68 | H91: 455.18 | I91: 461.87 | J91: 471.43 | K91: 452.3 | L91: 436.05 | M91: 5.05213
A92: 83 | B92: GODREJPROP | C92: 902.9 | D92: 905.73 | E92: 891.57 | F92: 880.23 | G92: 866.07 | H92: 917.07 | I92: 931.23 | J92: 942.57 | K92: 919.9 | L92: 894.4 | M92: 9.66869
A93: 84 | B93: GRASIM | C93: 701.15 | D93: 700.88 | E93: 684.27 | F93: 667.38 | G93: 650.77 | H93: 717.77 | I93: 734.38 | J93: 751.27 | K93: 717.5 | L93: 684 | M93: 73.87214
A94: 85 | B94: GSPL | C94: 212.75 | D94: 215.30 | E94: 209.25 | F94: 205.75 | G94: 199.70 | H94: 218.80 | I94: 224.85 | J94: 228.35 | K94: 221.35 | L94: 211.8 | M94: 7.08195
A95: 86 | B95: GUJGASLTD | C95: 320.9 | D95: 322.13 | E95: 316.77 | F95: 312.63 | G95: 307.27 | H95: 326.27 | I95: 331.63 | J95: 335.77 | K95: 327.5 | L95: 318 | M95: 4.81098
A96: 87 | B96: HAVELLS | C96: 639.25 | D96: 645.35 | E96: 631.10 | F96: 622.95 | G96: 608.70 | H96: 653.50 | I96: 667.75 | J96: 675.90 | K96: 659.6 | L96: 637.2 | M96: 14.78637
A97: 88 | B97: HCLTECH | C97: 706.45 | D97: 708.77 | E97: 700.88 | F97: 695.32 | G97: 687.43 | H97: 714.33 | I97: 722.22 | J97: 727.78 | K97: 716.65 | L97: 703.2 | M97: 54.16682
A98: 89 | B98: HDFC | C98: 1883.25 | D98: 1878.35 | E98: 1867.70 | F98: 1852.15 | G98: 1841.50 | H98: 1893.90 | I98: 1904.55 | J98: 1920.10 | K98: 1889 | L98: 1862.8 | M98: 49.03981
A99: 90 | B99: HDFCAMC | C99: 2501.25 | D99: 2499.45 | E99: 2476.80 | F99: 2452.35 | G99: 2429.70 | H99: 2523.90 | I99: 2546.55 | J99: 2571.00 | K99: 2522.1 | L99: 2475 | M99: 3.23851
A100: 91 | B100: HDFCBANK | C100: 1114.5 | D100: 1111.50 | E100: 1098.00 | F100: 1081.50 | G100: 1068.00 | H100: 1128.00 | I100: 1141.50 | J100: 1158.00 | K100: 1125 | L100: 1095 | M100: 193.49069
A101: 92 | B101: HDFCLIFE | C101: 589.35 | D101: 593.67 | E101: 583.83 | F101: 578.32 | G101: 568.48 | H101: 599.18 | I101: 609.02 | J101: 614.53 | K101: 603.5 | L101: 588.15 | M101: 36.38732
A102: 93 | B102: HEROMOTOCO | C102: 3059.3 | D102: 3091.32 | E102: 3018.63 | F102: 2977.97 | G102: 2905.28 | H102: 3131.98 | I102: 3204.67 | J102: 3245.33 | K102: 3164 | L102: 3050.65 | M102: 18.3801
A103: 94 | B103: HEXAWARE | C103: 407.35 | D103: 412.12 | E103: 400.33 | F103: 393.32 | G103: 381.53 | H103: 419.13 | I103: 430.92 | J103: 437.93 | K103: 423.9 | L103: 405.1 | M103: 9.97017
A104: 95 | B104: HINDALCO | C104: 193.8 | D104: 194.32 | E104: 192.48 | F104: 191.17 | G104: 189.33 | H104: 195.63 | I104: 197.47 | J104: 198.78 | K104: 196.15 | L104: 193 | M104: 81.53155
A105: 96 | B105: HINDPETRO | C105: 209.6 | D105: 210.35 | E105: 208.55 | F105: 207.50 | G105: 205.70 | H105: 211.40 | I105: 213.20 | J105: 214.25 | K105: 212.15 | L105: 209.3 | M105: 39.4113
A106: 97 | B106: HINDUNILVR | C106: 2151.95 | D106: 2159.78 | E106: 2137.17 | F106: 2122.38 | G106: 2099.77 | H106: 2174.57 | I106: 2197.18 | J106: 2211.97 | K106: 2182.4 | L106: 2145 | M106: 19.39848
A107: 98 | B107: HINDZINC | C107: 228.7 | D107: 231.90 | E107: 224.35 | F107: 220.00 | G107: 212.45 | H107: 236.25 | I107: 243.80 | J107: 248.15 | K107: 239.45 | L107: 227.55 | M107: 19.59766
A108: 99 | B108: HUDCO | C108: 37.45 | D108: 37.57 | E108: 36.73 | F108: 36.02 | G108: 35.18 | H108: 38.28 | I108: 39.12 | J108: 39.83 | K108: 38.4 | L108: 36.85 | M108: 21.22075
A109: 100 | B109: IBULHSGFIN | C109: 223.9 | D109: 225.05 | E109: 220.50 | F109: 217.10 | G109: 212.55 | H109: 228.45 | I109: 233.00 | J109: 236.40 | K109: 229.6 | L109: 221.65 | M109: 267.43942
A110: 101 | B110: IBVENTURES | C110: 214.9 | D110: 211.75 | E110: 205.50 | F110: 196.10 | G110: 189.85 | H110: 221.15 | I110: 227.40 | J110: 236.80 | K110: 218 | L110: 202.35 | M110: 43.23998
A111: 102 | B111: ICICIBANK | C111: 409.7 | D111: 404.83 | E111: 397.77 | F111: 385.83 | G111: 378.77 | H111: 416.77 | I111: 423.83 | J111: 435.77 | K111: 411.9 | L111: 392.9 | M111: 834.72448
A112: 103 | B112: ICICIGI | C112: 1283.9 | D112: 1288.30 | E112: 1275.60 | F112: 1267.30 | G112: 1254.60 | H112: 1296.60 | I112: 1309.30 | J112: 1317.60 | K112: 1301 | L112: 1280 | M112: 8.00041
A113: 104 | B113: ICICIPRULI | C113: 451.3 | D113: 453.63 | E113: 446.77 | F113: 442.23 | G113: 435.37 | H113: 458.17 | I113: 465.03 | J113: 469.57 | K113: 460.5 | L113: 449.1 | M113: 19.09653
A114: 105 | B114: IDBI | C114: 41.55 | D114: 41.72 | E114: 41.13 | F114: 40.72 | G114: 40.13 | H114: 42.13 | I114: 42.72 | J114: 43.13 | K114: 42.3 | L114: 41.3 | M114: 29.06395
A115: 106 | B115: IDEA | C115: 10.1 | D115: 9.82 | E115: 9.18 | F115: 8.27 | G115: 7.63 | H115: 10.73 | I115: 11.37 | J115: 12.28 | K115: 10.45 | L115: 8.9 | M115: 12882.76832
A116: 107 | B116: IDFCFIRSTB | C116: 33.65 | D116: 33.20 | E116: 32.45 | F116: 31.25 | G116: 30.50 | H116: 34.40 | I116: 35.15 | J116: 36.35 | K116: 33.95 | L116: 32 | M116: 831.20798
A117: 108 | B117: IGL | C117: 410.75 | D117: 409.32 | E117: 405.93 | F117: 401.12 | G117: 397.73 | H117: 414.13 | I117: 417.52 | J117: 422.33 | K117: 412.7 | L117: 404.5 | M117: 49.65744
A118: 109 | B118: INDHOTEL | C118: 108.65 | D118: 108.72 | E118: 104.93 | F118: 101.22 | G118: 97.43 | H118: 112.43 | I118: 116.22 | J118: 119.93 | K118: 112.5 | L118: 105 | M118: 57.5967
A119: 110 | B119: INDIGO | C119: 1183.8 | D119: 1189.30 | E119: 1171.10 | F119: 1158.40 | G119: 1140.20 | H119: 1202.00 | I119: 1220.20 | J119: 1232.90 | K119: 1207.5 | L119: 1176.6 | M119: 15.89919
A120: 111 | B120: INDUSINDBK | C120: 665.65 | D120: 650.05 | E120: 611.10 | F120: 556.55 | G120: 517.60 | H120: 704.60 | I120: 743.55 | J120: 798.10 | K120: 689 | L120: 595.5 | M120: 559.86893
A121: 112 | B121: INFRATEL | C121: 201.5 | D121: 204.92 | E121: 196.08 | F121: 190.67 | G121: 181.83 | H121: 210.33 | I121: 219.17 | J121: 224.58 | K121: 213.75 | L121: 199.5 | M121: 236.6755
A122: 113 | B122: INFY | C122: 935.25 | D122: 940.27 | E122: 928.03 | F122: 920.82 | G122: 908.58 | H122: 947.48 | I122: 959.72 | J122: 966.93 | K122: 952.5 | L122: 933.05 | M122: 75.93988
A123: 114 | B123: IOC | C123: 87.8 | D123: 88.07 | E123: 87.13 | F123: 86.47 | G123: 85.53 | H123: 88.73 | I123: 89.67 | J123: 90.33 | K123: 89 | L123: 87.4 | M123: 176.11779
A124: 115 | B124: IPCALAB | C124: 2000.45 | D124: 2006.15 | E124: 1985.30 | F124: 1970.15 | G124: 1949.30 | H124: 2021.30 | I124: 2042.15 | J124: 2057.30 | K124: 2027 | L124: 1991 | M124: 1.89208
A125: 116 | B125: IRCTC | C125: 1366.5 | D125: 1369.62 | E125: 1359.43 | F125: 1352.37 | G125: 1342.18 | H125: 1376.68 | I125: 1386.87 | J125: 1393.93 | K125: 1379.8 | L125: 1362.55 | M125: 3.23813
A126: 117 | B126: ITC | C126: 195.55 | D126: 195.30 | E126: 194.30 | F126: 193.05 | G126: 192.05 | H126: 196.55 | I126: 197.55 | J126: 198.80 | K126: 196.3 | L126: 194.05 | M126: 346.45794
A127: 118 | B127: JINDALSTEL | C127: 216.3 | D127: 219.08 | E127: 212.72 | F127: 209.13 | G127: 202.77 | H127: 222.67 | I127: 229.03 | J127: 232.62 | K127: 225.45 | L127: 215.5 | M127: 113.33982
A128: 119 | B128: JSWENERGY | C128: 55.85 | D128: 55.95 | E128: 55.10 | F128: 54.35 | G128: 53.50 | H128: 56.70 | I128: 57.55 | J128: 58.30 | K128: 56.8 | L128: 55.2 | M128: 21.85568
A129: 120 | B129: JSWSTEEL | C129: 280.7 | D129: 283.50 | E129: 277.25 | F129: 273.80 | G129: 267.55 | H129: 286.95 | I129: 293.20 | J129: 296.65 | K129: 289.75 | L129: 280.05 | M129: 119.1449
A130: 121 | B130: JUBILANT | C130: 814.85 | D130: 822.25 | E130: 804.60 | F130: 794.35 | G130: 776.70 | H130: 832.50 | I130: 850.15 | J130: 860.40 | K130: 839.9 | L130: 812 | M130: 4.25313
A131: 122 | B131: JUBLFOOD | C131: 2168.1 | D131: 2161.37 | E131: 2138.73 | F131: 2109.37 | G131: 2086.73 | H131: 2190.73 | I131: 2213.37 | J131: 2242.73 | K131: 2184 | L131: 2132 | M131: 12.48885
A132: 123 | B132: KOTAKBANK | C132: 1467.1 | D132: 1447.37 | E132: 1420.73 | F132: 1374.37 | G132: 1347.73 | H132: 1493.73 | I132: 1520.37 | J132: 1566.73 | K132: 1474 | L132: 1401 | M132: 106.45875
A133: 124 | B133: L&TFH | C133: 71.6 | D133: 71.95 | E133: 70.95 | F133: 70.30 | G133: 69.30 | H133: 72.60 | I133: 73.60 | J133: 74.25 | K133: 72.95 | L133: 71.3 | M133: 159.22659
A134: 125 | B134: LALPATHLAB | C134: 1840.65 | D134: 1854.28 | E134: 1819.17 | F134: 1797.68 | G134: 1762.57 | H134: 1875.77 | I134: 1910.88 | J134: 1932.37 | K134: 1889.4 | L134: 1832.8 | M134: 1.27911
A135: 126 | B135: LICHSGFIN | C135: 314.3 | D135: 312.98 | E135: 306.97 | F135: 299.63 | G135: 293.62 | H135: 320.32 | I135: 326.33 | J135: 333.67 | K135: 319 | L135: 305.65 | M135: 108.54043
A136: 127 | B136: LT | C136: 981.85 | D136: 988.25 | E136: 971.80 | F136: 961.75 | G136: 945.30 | H136: 998.30 | I136: 1014.75 | J136: 1024.80 | K136: 1004.7 | L136: 978.2 | M136: 78.21217
A137: 128 | B137: LTI | C137: 2519.6 | D137: 2514.90 | E137: 2499.80 | F137: 2480.00 | G137: 2464.90 | H137: 2534.70 | I137: 2549.80 | J137: 2569.60 | K137: 2530 | L137: 2495.1 | M137: 2.39015
A138: 129 | B138: LTTS | C138: 1534.65 | D138: 1539.57 | E138: 1520.13 | F138: 1505.62 | G138: 1486.18 | H138: 1554.08 | I138: 1573.52 | J138: 1588.03 | K138: 1559 | L138: 1525.05 | M138: 0.81092
A139: 130 | B139: LUPIN | C139: 976.1 | D139: 979.95 | E139: 968.15 | F139: 960.20 | G139: 948.40 | H139: 987.90 | I139: 999.70 | J139: 1007.65 | K139: 991.75 | L139: 972 | M139: 25.31188
A140: 131 | B140: M&M | C140: 631.4 | D140: 635.92 | E140: 624.83 | F140: 618.27 | G140: 607.18 | H140: 642.48 | I140: 653.57 | J140: 660.13 | K140: 647 | L140: 629.35 | M140: 78.11624
A141: 132 | B141: M&MFIN | C141: 143.65 | D141: 144.05 | E141: 141.35 | F141: 139.05 | G141: 136.35 | H141: 146.35 | I141: 149.05 | J141: 151.35 | K141: 146.75 | L141: 141.75 | M141: 129.54658
A142: 133 | B142: MANAPPURAM | C142: 156.65 | D142: 156.33 | E142: 154.97 | F142: 153.28 | G142: 151.92 | H142: 158.02 | I142: 159.38 | J142: 161.07 | K142: 157.7 | L142: 154.65 | M142: 53.16132
A143: 134 | B143: MARICO | C143: 374.3 | D143: 374.20 | E143: 371.95 | F143: 369.60 | G143: 367.35 | H143: 376.55 | I143: 378.80 | J143: 381.15 | K143: 376.45 | L143: 371.85 | M143: 25.24959
A144: 135 | B144: MARUTI | C144: 7104.1 | D144: 7096.18 | E144: 7036.37 | F144: 6968.63 | G144: 6908.82 | H144: 7163.92 | I144: 7223.73 | J144: 7291.47 | K144: 7156 | L144: 7028.45 | M144: 10.19984
A145: 136 | B145: MCDOWELL-N | C145: 585.15 | D145: 581.15 | E145: 573.70 | F145: 562.25 | G145: 554.80 | H145: 592.60 | I145: 600.05 | J145: 611.50 | K145: 588.6 | L145: 569.7 | M145: 43.61073
A146: 137 | B146: MFSL | C146: 598.1 | D146: 599.28 | E146: 586.52 | F146: 574.93 | G146: 562.17 | H146: 610.87 | I146: 623.63 | J146: 635.22 | K146: 612.05 | L146: 587.7 | M146: 20.09912
A147: 138 | B147: MGL | C147: 992.25 | D147: 994.87 | E147: 985.03 | F147: 977.82 | G147: 967.98 | H147: 1002.08 | I147: 1011.92 | J147: 1019.13 | K147: 1004.7 | L147: 987.65 | M147: 8.46032
A148: 139 | B148: MINDTREE | C148: 1184.7 | D148: 1176.43 | E148: 1154.87 | F148: 1125.03 | G148: 1103.47 | H148: 1206.27 | I148: 1227.83 | J148: 1257.67 | K148: 1198 | L148: 1146.6 | M148: 11.3067
A149: 140 | B149: MOTHERSUMI | C149: 116.65 | D149: 117.47 | E149: 115.58 | F149: 114.52 | G149: 112.63 | H149: 118.53 | I149: 120.42 | J149: 121.48 | K149: 119.35 | L149: 116.4 | M149: 98.66205
A150: 141 | B150: MPHASIS | C150: 1165.45 | D150: 1172.82 | E150: 1148.63 | F150: 1131.82 | G150: 1107.63 | H150: 1189.63 | I150: 1213.82 | J150: 1230.63 | K150: 1197 | L150: 1156 | M150: 3.37484
A151: 142 | B151: MRF | C151: 59579.85 | D151: 59576.62 | E151: 59154.23 | F151: 58728.62 | G151: 58306.23 | H151: 60002.23 | I151: 60424.62 | J151: 60850.23 | K151: 59999 | L151: 59151 | M151: 0.1694
A152: 143 | B152: MRPL | C152: 33.5 | D152: 33.78 | E152: 33.12 | F152: 32.73 | G152: 32.07 | H152: 34.17 | I152: 34.83 | J152: 35.22 | K152: 34.45 | L152: 33.4 | M152: 16.79585
A153: 144 | B153: MUTHOOTFIN | C153: 1208.45 | D153: 1211.15 | E153: 1193.30 | F153: 1178.15 | G153: 1160.30 | H153: 1226.30 | I153: 1244.15 | J153: 1259.30 | K153: 1229 | L153: 1196 | M153: 24.24676
A154: 145 | B154: NAM-INDIA | C154: 285.8 | D154: 287.98 | E154: 281.82 | F154: 277.83 | G154: 271.67 | H154: 291.97 | I154: 298.13 | J154: 302.12 | K154: 294.15 | L154: 284 | M154: 11.09161
A155: 146 | B155: NATCOPHARM | C155: 800.2 | D155: 807.23 | E155: 791.97 | F155: 783.73 | G155: 768.47 | H155: 815.47 | I155: 830.73 | J155: 838.97 | K155: 822.5 | L155: 799 | M155: 4.19592
A156: 147 | B156: NATIONALUM | C156: 37.55 | D156: 37.63 | E156: 37.17 | F156: 36.78 | G156: 36.32 | H156: 38.02 | I156: 38.48 | J156: 38.87 | K156: 38.1 | L156: 37.25 | M156: 82.19037
A157: 148 | B157: NAUKRI | C157: 3389.95 | D157: 3356.65 | E157: 3308.30 | F157: 3226.65 | G157: 3178.30 | H157: 3438.30 | I157: 3486.65 | J157: 3568.30 | K157: 3405 | L157: 3275 | M157: 3.87742
A158: 149 | B158: NESTLEIND | C158: 16101.25 | D158: 16186.42 | E158: 16004.83 | F158: 15908.42 | G158: 15726.83 | H158: 16282.83 | I158: 16464.42 | J158: 16560.83 | K158: 16368 | L158: 16090 | M158: 1.48489
A159: 150 | B159: NHPC | C159: 22.7 | D159: 22.87 | E159: 22.28 | F159: 21.87 | G159: 21.28 | H159: 23.28 | I159: 23.87 | J159: 24.28 | K159: 23.45 | L159: 22.45 | M159: 87.73744
A160: 151 | B160: NMDC | C160: 107.5 | D160: 105.60 | E160: 101.80 | F160: 96.10 | G160: 92.30 | H160: 111.30 | I160: 115.10 | J160: 120.80 | K160: 109.4 | L160: 99.9 | M160: 672.46633
A161: 152 | B161: NTPC | C161: 101.55 | D161: 102.35 | E161: 100.45 | F161: 99.35 | G161: 97.45 | H161: 103.45 | I161: 105.35 | J161: 106.45 | K161: 104.25 | L161: 101.25 | M161: 213.59093
A162: 153 | B162: OBEROIRLTY | C162: 413.45 | D162: 407.22 | E162: 396.43 | F162: 379.42 | G162: 368.63 | H162: 424.23 | I162: 435.02 | J162: 452.03 | K162: 418 | L162: 390.2 | M162: 11.53626
A163: 154 | B163: OFSS | C163: 3042.15 | D163: 3049.05 | E163: 3019.10 | F163: 2996.05 | G163: 2966.10 | H163: 3072.10 | I163: 3102.05 | J163: 3125.10 | K163: 3079 | L163: 3026 | M163: 0.29854
A164: 155 | B164: OIL | C164: 96.85 | D164: 97.38 | E164: 96.17 | F164: 95.48 | G164: 94.27 | H164: 98.07 | I164: 99.28 | J164: 99.97 | K164: 98.6 | L164: 96.7 | M164: 9.62955
A165: 156 | B165: ONGC | C165: 80.35 | D165: 80.72 | E165: 79.63 | F165: 78.92 | G165: 77.83 | H165: 81.43 | I165: 82.52 | J165: 83.23 | K165: 81.8 | L165: 80 | M165: 146.67141
A166: 157 | B166: PAGEIND | C166: 20119.8 | D166: 20177.55 | E166: 19913.25 | F166: 19706.70 | G166: 19442.40 | H166: 20384.10 | I166: 20648.40 | J166: 20854.95 | K166: 20441.85 | L166: 19971 | M166: 0.3671
A167: 158 | B167: PEL | C167: 1511.2 | D167: 1525.40 | E167: 1487.80 | F167: 1464.40 | G167: 1426.80 | H167: 1548.80 | I167: 1586.40 | J167: 1609.80 | K167: 1563 | L167: 1502 | M167: 25.55169
A168: 159 | B168: PETRONET | C168: 249.25 | D168: 247.55 | E168: 245.00 | F168: 240.75 | G168: 238.20 | H168: 251.80 | I168: 254.35 | J168: 258.60 | K168: 250.1 | L168: 243.3 | M168: 39.7565
A169: 160 | B169: PFC | C169: 98.2 | D169: 99.00 | E169: 96.85 | F169: 95.50 | G169: 93.35 | H169: 100.35 | I169: 102.50 | J169: 103.85 | K169: 101.15 | L169: 97.65 | M169: 135.39588
A170: 161 | B170: PFIZER | C170: 4739.7 | D170: 4773.23 | E170: 4666.47 | F170: 4593.23 | G170: 4486.47 | H170: 4846.47 | I170: 4953.23 | J170: 5026.47 | K170: 4880 | L170: 4700 | M170: 0.33936
A171: 162 | B171: PGHH | C171: 10133.25 | D171: 10157.45 | E171: 10075.95 | F171: 10018.65 | G171: 9937.15 | H171: 10214.75 | I171: 10296.25 | J171: 10353.55 | K171: 10238.95 | L171: 10100.15 | M171: 0.18826
A172: 163 | B172: PIDILITIND | C172: 1445.5 | D172: 1456.30 | E172: 1431.60 | F172: 1417.70 | G172: 1393.00 | H172: 1470.20 | I172: 1494.90 | J172: 1508.80 | K172: 1481 | L172: 1442.4 | M172: 6.50405
A173: 164 | B173: PIIND | C173: 1967.05 | D173: 1975.42 | E173: 1950.63 | F173: 1934.22 | G173: 1909.43 | H173: 1991.83 | I173: 2016.62 | J173: 2033.03 | K173: 2000.2 | L173: 1959 | M173: 2.2305
A174: 165 | B174: PNB | C174: 37.05 | D174: 36.65 | E174: 35.90 | F174: 34.75 | G174: 34.00 | H174: 37.80 | I174: 38.55 | J174: 39.70 | K174: 37.4 | L174: 35.5 | M174: 859.67317
A175: 166 | B175: PNBHOUSING | C175: 302.2 | D175: 303.57 | E175: 297.63 | F175: 293.07 | G175: 287.13 | H175: 308.13 | I175: 314.07 | J175: 318.63 | K175: 309.5 | L175: 299 | M175: 11.63245
A176: 167 | B176: POLYCAB | C176: 900.25 | D176: 906.13 | E176: 889.67 | F176: 879.08 | G176: 862.62 | H176: 916.72 | I176: 933.18 | J176: 943.77 | K176: 922.6 | L176: 895.55 | M176: 2.19494
A177: 168 | B177: POWERGRID | C177: 182.3 | D177: 183.62 | E177: 180.48 | F177: 178.67 | G177: 175.53 | H177: 185.43 | I177: 188.57 | J177: 190.38 | K177: 186.75 | L177: 181.8 | M177: 68.15971
A178: 169 | B178: PRESTIGE | C178: 263.05 | D178: 261.90 | E178: 257.15 | F178: 251.25 | G178: 246.50 | H178: 267.80 | I178: 272.55 | J178: 278.45 | K178: 266.65 | L178: 256 | M178: 8.31759
A179: 170 | B179: QUESS | C179: 387.9 | D179: 387.28 | E179: 381.82 | F179: 375.73 | G179: 370.27 | H179: 393.37 | I179: 398.83 | J179: 404.92 | K179: 392.75 | L179: 381.2 | M179: 2.41553
A180: 171 | B180: RAJESHEXPO | C180: 464.95 | D180: 468.58 | E180: 459.67 | F180: 454.38 | G180: 445.47 | H180: 473.87 | I180: 482.78 | J180: 488.07 | K180: 477.5 | L180: 463.3 | M180: 1.1897
A181: 172 | B181: RAMCOCEM | C181: 719.65 | D181: 719.47 | E181: 713.93 | F181: 708.22 | G181: 702.68 | H181: 725.18 | I181: 730.72 | J181: 736.43 | K181: 725 | L181: 713.75 | M181: 13.32769
A182: 173 | B182: RBLBANK | C182: 210.5 | D182: 209.33 | E182: 204.67 | F182: 198.83 | G182: 194.17 | H182: 215.17 | I182: 219.83 | J182: 225.67 | K182: 214 | L182: 203.5 | M182: 427.84621
A183: 174 | B183: RECLTD | C183: 111.55 | D183: 111.50 | E183: 109.35 | F183: 107.15 | G183: 105.00 | H183: 113.70 | I183: 115.85 | J183: 118.05 | K183: 113.65 | L183: 109.3 | M183: 89.63965
A184: 175 | B184: RELIANCE | C184: 2116.15 | D184: 2118.43 | E184: 2103.97 | F184: 2091.78 | G184: 2077.32 | H184: 2130.62 | I184: 2145.08 | J184: 2157.27 | K184: 2132.9 | L184: 2106.25 | M184: 125.37684
A185: 176 | B185: SAIL | C185: 40.95 | D185: 41.55 | E185: 39.95 | F185: 38.95 | G185: 37.35 | H185: 42.55 | I185: 44.15 | J185: 45.15 | K185: 43.15 | L185: 40.55 | M185: 942.54926
A186: 177 | B186: SBICARD | C186: 838.9 | D186: 836.15 | E186: 826.30 | F186: 813.70 | G186: 803.85 | H186: 848.75 | I186: 858.60 | J186: 871.20 | K186: 846 | L186: 823.55 | M186: 23.09206
A187: 178 | B187: SBILIFE | C187: 851.55 | D187: 851.10 | E187: 843.50 | F187: 835.45 | G187: 827.85 | H187: 859.15 | I187: 866.75 | J187: 874.80 | K187: 858.7 | L187: 843.05 | M187: 16.40203
A188: 179 | B188: SBIN | C188: 224.85 | D188: 222.52 | E188: 219.13 | F188: 213.42 | G188: 210.03 | H188: 228.23 | I188: 231.62 | J188: 237.33 | K188: 225.9 | L188: 216.8 | M188: 959.8385
A189: 180 | B189: SHREECEM | C189: 21329.55 | D189: 21460.35 | E189: 21120.70 | F189: 20911.85 | G189: 20572.20 | H189: 21669.20 | I189: 22008.85 | J189: 22217.70 | K189: 21800 | L189: 21251.5 | M189: 0.5282
A190: 181 | B190: SIEMENS | C190: 1221.15 | D190: 1225.02 | E190: 1213.03 | F190: 1204.92 | G190: 1192.93 | H190: 1233.13 | I190: 1245.12 | J190: 1253.23 | K190: 1237 | L190: 1216.9 | M190: 5.28408
A191: 182 | B191: SRF | C191: 4226 | D191: 4237.33 | E191: 4198.67 | F191: 4171.33 | G191: 4132.67 | H191: 4264.67 | I191: 4303.33 | J191: 4330.67 | K191: 4276 | L191: 4210 | M191: 1.46907
A192: 183 | B192: SRTRANSFIN | C192: 772.75 | D192: 760.48 | E192: 737.27 | F192: 701.78 | G192: 678.57 | H192: 795.97 | I192: 819.18 | J192: 854.67 | K192: 783.7 | L192: 725 | M192: 135.56969
A193: 184 | B193: SUNPHARMA | C193: 555.75 | D193: 551.75 | E193: 538.75 | F193: 521.75 | G193: 508.75 | H193: 568.75 | I193: 581.75 | J193: 598.75 | K193: 564.75 | L193: 534.75 | M193: 290.18297
A194: 185 | B194: SUNTV | C194: 476.65 | D194: 479.67 | E194: 472.23 | F194: 467.82 | G194: 460.38 | H194: 484.08 | I194: 491.52 | J194: 495.93 | K194: 487.1 | L194: 475.25 | M194: 12.51824
A195: 186 | B195: SYNGENE | C195: 488.05 | D195: 489.20 | E195: 483.85 | F195: 479.65 | G195: 474.30 | H195: 493.40 | I195: 498.75 | J195: 502.95 | K195: 494.55 | L195: 485 | M195: 2.5857
A196: 187 | B196: TATACONSUM | C196: 547.05 | D196: 548.97 | E196: 542.08 | F196: 537.12 | G196: 530.23 | H196: 553.93 | I196: 560.82 | J196: 565.78 | K196: 555.85 | L196: 544 | M196: 26.92947
A197: 188 | B197: TATAMOTORS | C197: 142.8 | D197: 143.17 | E197: 140.13 | F197: 137.47 | G197: 134.43 | H197: 145.83 | I197: 148.87 | J197: 151.53 | K197: 146.2 | L197: 140.5 | M197: 951.96419
A198: 189 | B198: TATAPOWER | C198: 61.2 | D198: 61.25 | E198: 60.25 | F198: 59.30 | G198: 58.30 | H198: 62.20 | I198: 63.20 | J198: 64.15 | K198: 62.25 | L198: 60.3 | M198: 217.7573
A199: 190 | B199: TATASTEEL | C199: 424.2 | D199: 428.42 | E199: 418.83 | F199: 413.47 | G199: 403.88 | H199: 433.78 | I199: 443.37 | J199: 448.73 | K199: 438 | L199: 423.05 | M199: 152.12017
A200: 191 | B200: TCS | C200: 2238.55 | D200: 2251.20 | E200: 2222.45 | F200: 2206.35 | G200: 2177.60 | H200: 2267.30 | I200: 2296.05 | J200: 2312.15 | K200: 2279.95 | L200: 2235.1 | M200: 29.41156
A201: 192 | B201: TECHM | C201: 752.35 | D201: 750.23 | E201: 742.12 | F201: 731.88 | G201: 723.77 | H201: 760.47 | I201: 768.58 | J201: 778.82 | K201: 758.35 | L201: 740 | M201: 42.23382
A202: 193 | B202: TITAN | C202: 1134.1 | D202: 1137.98 | E202: 1127.72 | F202: 1121.33 | G202: 1111.07 | H202: 1144.37 | I202: 1154.63 | J202: 1161.02 | K202: 1148.25 | L202: 1131.6 | M202: 16.28959
A203: 194 | B203: TORNTPHARM | C203: 2709.45 | D203: 2727.15 | E203: 2686.30 | F203: 2663.15 | G203: 2622.30 | H203: 2750.30 | I203: 2791.15 | J203: 2814.30 | K203: 2768 | L203: 2704 | M203: 5.3842
A204: 195 | B204: TORNTPOWER | C204: 344.6 | D204: 346.40 | E204: 341.60 | F204: 338.60 | G204: 333.80 | H204: 349.40 | I204: 354.20 | J204: 357.20 | K204: 351.2 | L204: 343.4 | M204: 14.51691
A205: 196 | B205: TRENT | C205: 650.45 | D205: 652.48 | E205: 643.97 | F205: 637.48 | G205: 628.97 | H205: 658.97 | I205: 667.48 | J205: 673.97 | K205: 661 | L205: 646 | M205: 5.99641
... 29 more rows

Sheet MidCap Intra
L5: Back To Main Page
A6: FOR INTRA DAY TRADING | K6: =Main!B10 -> 2020-08-31
A9: Sr.no | B9: Scrip | C9: CLOSE RATE | D9: Pivot Point | E9: Supports | H9: Resistances
C10: Point | E10: S1 | F10: S2 | G10: S3 | H10: R1 | I10: R2 | J10: R3 | K10: HIGH | L10: LOW | M10: Total Trade Quanity in Lakhs
A11: 1 | B11: 3MINDIA | C11: 20907.35 | D11: 20974.75 | E11: 20732.60 | F11: 20557.85 | G11: 20315.70 | H11: 21149.50 | I11: 21391.65 | J11: 21566.40 | K11: 21216.9 | L11: 20800 | M11: 0.01767
A12: 2 | B12: AARTIIND | C12: 1086.7 | D12: 1102.23 | E12: 1064.57 | F12: 1042.43 | G12: 1004.77 | H12: 1124.37 | I12: 1162.03 | J12: 1184.17 | K12: 1139.9 | L12: 1080.1 | M12: 4.84976
A13: 3 | B13: AAVAS | C13: 1521.25 | D13: 1528.42 | E13: 1502.83 | F13: 1484.42 | G13: 1458.83 | H13: 1546.83 | I13: 1572.42 | J13: 1590.83 | K13: 1554 | L13: 1510 | M13: 0.46129
A14: 4 | B14: ABB | C14: 985.6 | D14: 984.10 | E14: 973.50 | F14: 961.40 | G14: 950.80 | H14: 996.20 | I14: 1006.80 | J14: 1018.90 | K14: 994.7 | L14: 972 | M14: 2.48761
A15: 5 | B15: ABBOTINDIA | C15: 16816.05 | D15: 16930.28 | E15: 16665.77 | F15: 16515.48 | G15: 16250.97 | H15: 17080.57 | I15: 17345.08 | J15: 17495.37 | K15: 17194.8 | L15: 16780 | M15: 0.11894
A16: 6 | B16: ABCAPITAL | C16: 64.8 | D16: 65.40 | E16: 63.85 | F16: 62.90 | G16: 61.35 | H16: 66.35 | I16: 67.90 | J16: 68.85 | K16: 66.95 | L16: 64.45 | M16: 58.37158
A17: 7 | B17: ABFRL | C17: 143.65 | D17: 145.58 | E17: 141.17 | F17: 138.68 | G17: 134.27 | H17: 148.07 | I17: 152.48 | J17: 154.97 | K17: 150 | L17: 143.1 | M17: 14.58076
A18: 8 | B18: ACC | C18: 1396.4 | D18: 1402.50 | E18: 1385.00 | F18: 1373.60 | G18: 1356.10 | H18: 1413.90 | I18: 1431.40 | J18: 1442.80 | K18: 1420 | L18: 1391.1 | M18: 4.67029
A19: 9 | B19: ADANIGAS | C19: 186.55 | D19: 186.88 | E19: 183.17 | F19: 179.78 | G19: 176.07 | H19: 190.27 | I19: 193.98 | J19: 197.37 | K19: 190.6 | L19: 183.5 | M19: 23.4401
A20: 10 | B20: ADANIGREEN | C20: 462.3 | D20: 456.93 | E20: 441.37 | F20: 420.43 | G20: 404.87 | H20: 477.87 | I20: 493.43 | J20: 514.37 | K20: 472.5 | L20: 436 | M20: 27.03686
A21: 11 | B21: ADANIPORTS | C21: 360.05 | D21: 357.18 | E21: 351.37 | F21: 342.68 | G21: 336.87 | H21: 365.87 | I21: 371.68 | J21: 380.37 | K21: 363 | L21: 348.5 | M21: 54.06554
A22: 12 | B22: ADANIPOWER | C22: 39.25 | D22: 39.40 | E22: 38.95 | F22: 38.65 | G22: 38.20 | H22: 39.70 | I22: 40.15 | J22: 40.45 | K22: 39.85 | L22: 39.1 | M22: 38.35614
A23: 13 | B23: ADANITRANS | C23: 275.65 | D23: 278.42 | E23: 269.23 | F23: 262.82 | G23: 253.63 | H23: 284.83 | I23: 294.02 | J23: 300.43 | K23: 287.6 | L23: 272 | M23: 6.73176
A24: 14 | B24: ADVENZYMES | C24: 217.6 | D24: 221.17 | E24: 212.43 | F24: 207.27 | G24: 198.53 | H24: 226.33 | I24: 235.07 | J24: 240.23 | K24: 229.9 | L24: 216 | M24: 4.75608
A25: 15 | B25: AEGISCHEM | C25: 219.65 | D25: 218.60 | E25: 212.90 | F25: 206.15 | G25: 200.45 | H25: 225.35 | I25: 231.05 | J25: 237.80 | K25: 224.3 | L25: 211.85 | M25: 6.68705
A26: 16 | B26: AFFLE | C26: 2654.65 | D26: 2669.77 | E26: 2639.53 | F26: 2624.42 | G26: 2594.18 | H26: 2684.88 | I26: 2715.12 | J26: 2730.23 | K26: 2700 | L26: 2654.65 | M26: 0.56097
A27: 17 | B27: AIAENG | C27: 1826.65 | D27: 1837.88 | E27: 1808.82 | F27: 1790.98 | G27: 1761.92 | H27: 1855.72 | I27: 1884.78 | J27: 1902.62 | K27: 1866.95 | L27: 1820.05 | M27: 0.15796
A28: 18 | B28: AJANTPHARM | C28: 1570.1 | D28: 1570.70 | E28: 1549.40 | F28: 1528.70 | G28: 1507.40 | H28: 1591.40 | I28: 1612.70 | J28: 1633.40 | K28: 1592 | L28: 1550 | M28: 2.08779
A29: 19 | B29: AKZOINDIA | C29: 2139.4 | D29: 2160.12 | E29: 2075.28 | F29: 2011.17 | G29: 1926.33 | H29: 2224.23 | I29: 2309.07 | J29: 2373.18 | K29: 2244.95 | L29: 2096 | M29: 0.28328
A30: 20 | B30: ALKEM | C30: 2873.45 | D30: 2873.15 | E30: 2851.30 | F30: 2829.15 | G30: 2807.30 | H30: 2895.30 | I30: 2917.15 | J30: 2939.30 | K30: 2895 | L30: 2851 | M30: 1.73469
A31: 21 | B31: ALKYLAMINE | C31: 3331.35 | D31: 3373.67 | E31: 3282.68 | F31: 3234.02 | G31: 3143.03 | H31: 3422.33 | I31: 3513.32 | J31: 3561.98 | K31: 3464.65 | L31: 3325 | M31: 0.58181
A32: 22 | B32: ALLCARGO | C32: 122.2 | D32: 122.87 | E32: 119.33 | F32: 116.47 | G32: 112.93 | H32: 125.73 | I32: 129.27 | J32: 132.13 | K32: 126.4 | L32: 120 | M32: 13.98415
A33: 23 | B33: AMARAJABAT | C33: 734.95 | D33: 739.88 | E33: 726.87 | F33: 718.78 | G33: 705.77 | H33: 747.97 | I33: 760.98 | J33: 769.07 | K33: 752.9 | L33: 731.8 | M33: 7.02794
A34: 24 | B34: AMBER | C34: 1818.6 | D34: 1816.48 | E34: 1802.17 | F34: 1785.73 | G34: 1771.42 | H34: 1832.92 | I34: 1847.23 | J34: 1863.67 | K34: 1830.8 | L34: 1800.05 | M34: 0.85165
A35: 25 | B35: AMBUJACEM | C35: 222.45 | D35: 222.65 | E35: 220.15 | F35: 217.85 | G35: 215.35 | H35: 224.95 | I35: 227.45 | J35: 229.75 | K35: 225.15 | L35: 220.35 | M35: 41.1419
A36: 26 | B36: APLAPOLLO | C36: 2431.85 | D36: 2434.60 | E36: 2390.25 | F36: 2348.65 | G36: 2304.30 | H36: 2476.20 | I36: 2520.55 | J36: 2562.15 | K36: 2478.95 | L36: 2393 | M36: 1.48201
A37: 27 | B37: APLLTD | C37: 988.95 | D37: 997.35 | E37: 975.70 | F37: 962.45 | G37: 940.80 | H37: 1010.60 | I37: 1032.25 | J37: 1045.50 | K37: 1019 | L37: 984.1 | M37: 4.35188
A38: 28 | B38: APOLLOHOSP | C38: 1661.95 | D38: 1661.80 | E38: 1647.70 | F38: 1633.45 | G38: 1619.35 | H38: 1676.05 | I38: 1690.15 | J38: 1704.40 | K38: 1675.9 | L38: 1647.55 | M38: 5.48815
A39: 29 | B39: APOLLOTYRE | C39: 133.55 | D39: 134.68 | E39: 131.47 | F39: 129.38 | G39: 126.17 | H39: 136.77 | I39: 139.98 | J39: 142.07 | K39: 137.9 | L39: 132.6 | M39: 76.24362
A40: 30 | B40: ARVINDFASN | C40: 155.5 | D40: 156.48 | E40: 153.12 | F40: 150.73 | G40: 147.37 | H40: 158.87 | I40: 162.23 | J40: 164.62 | K40: 159.85 | L40: 154.1 | M40: 2.31007
A41: 31 | B41: ASAHIINDIA | C41: 219.35 | D41: 221.28 | E41: 215.57 | F41: 211.78 | G41: 206.07 | H41: 225.07 | I41: 230.78 | J41: 234.57 | K41: 227 | L41: 217.5 | M41: 0.4167
A42: 32 | B42: ASHOKA | C42: 73.45 | D42: 74.17 | E42: 72.33 | F42: 71.22 | G42: 69.38 | H42: 75.28 | I42: 77.12 | J42: 78.23 | K42: 76 | L42: 73.05 | M42: 17.73325
A43: 33 | B43: ASHOKLEY | C43: 70.5 | D43: 71.33 | E43: 69.37 | F43: 68.23 | G43: 66.27 | H43: 72.47 | I43: 74.43 | J43: 75.57 | K43: 73.3 | L43: 70.2 | M43: 384.021
A44: 34 | B44: ASIANPAINT | C44: 1958.1 | D44: 1969.47 | E44: 1941.93 | F44: 1925.77 | G44: 1898.23 | H44: 1985.63 | I44: 2013.17 | J44: 2029.33 | K44: 1997 | L44: 1953.3 | M44: 18.42553
A45: 35 | B45: ASTERDM | C45: 141.55 | D45: 142.88 | E45: 138.77 | F45: 135.98 | G45: 131.87 | H45: 145.67 | I45: 149.78 | J45: 152.57 | K45: 147 | L45: 140.1 | M45: 1.5782
A46: 36 | B46: ASTRAL | C46: 1176.5 | D46: 1184.42 | E46: 1130.83 | F46: 1085.17 | G46: 1031.58 | H46: 1230.08 | I46: 1283.67 | J46: 1329.33 | K46: 1238 | L46: 1138.75 | M46: 3.18225
A47: 37 | B47: ASTRAZEN | C47: 3612.3 | D47: 3599.10 | E47: 3558.20 | F47: 3504.10 | G47: 3463.20 | H47: 3653.20 | I47: 3694.10 | J47: 3748.20 | K47: 3640 | L47: 3545 | M47: 0.64945
A48: 38 | B48: ATUL | C48: 6219.8 | D48: 6241.00 | E48: 6038.55 | F48: 5857.30 | G48: 5654.85 | H48: 6422.25 | I48: 6624.70 | J48: 6805.95 | K48: 6443.45 | L48: 6059.75 | M48: 1.45466
A49: 39 | B49: AUBANK | C49: 736.7 | D49: 743.57 | E49: 725.13 | F49: 713.57 | G49: 695.13 | H49: 755.13 | I49: 773.57 | J49: 785.13 | K49: 762 | L49: 732 | M49: 14.66947
A50: 40 | B50: AUROPHARMA | C50: 868.9 | D50: 873.28 | E50: 861.32 | F50: 853.73 | G50: 841.77 | H50: 880.87 | I50: 892.83 | J50: 900.42 | K50: 885.25 | L50: 865.7 | M50: 23.3668
A51: 41 | B51: AVANTIFEED | C51: 558.9 | D51: 563.18 | E51: 550.72 | F51: 542.53 | G51: 530.07 | H51: 571.37 | I51: 583.83 | J51: 592.02 | K51: 575.65 | L51: 555 | M51: 11.20611
A52: 42 | B52: AXISBANK | C52: 509.2 | D52: 499.42 | E52: 485.83 | F52: 462.47 | G52: 448.88 | H52: 522.78 | I52: 536.37 | J52: 559.73 | K52: 513 | L52: 476.05 | M52: 591.80165
A53: 43 | B53: BAJAJ-AUTO | C53: 3014.15 | D53: 3026.20 | E53: 2989.95 | F53: 2965.75 | G53: 2929.50 | H53: 3050.40 | I53: 3086.65 | J53: 3110.85 | K53: 3062.45 | L53: 3002 | M53: 6.79405
A54: 44 | B54: BAJAJCON | C54: 179.3 | D54: 179.85 | E54: 177.55 | F54: 175.80 | G54: 173.50 | H54: 181.60 | I54: 183.90 | J54: 185.65 | K54: 182.15 | L54: 178.1 | M54: 6.62963
A55: 45 | B55: BAJAJELEC | C55: 523.3 | D55: 522.07 | E55: 513.23 | F55: 503.17 | G55: 494.33 | H55: 532.13 | I55: 540.97 | J55: 551.03 | K55: 530.9 | L55: 512 | M55: 7.29211
A56: 46 | B56: BAJAJFINSV | C56: 6545.55 | D56: 6570.18 | E56: 6490.37 | F56: 6435.18 | G56: 6355.37 | H56: 6625.37 | I56: 6705.18 | J56: 6760.37 | K56: 6650 | L56: 6515 | M56: 4.90168
A57: 47 | B57: BAJAJHLDNG | C57: 2782.15 | D57: 2809.05 | E57: 2738.10 | F57: 2694.05 | G57: 2623.10 | H57: 2853.10 | I57: 2924.05 | J57: 2968.10 | K57: 2880 | L57: 2765 | M57: 0.53007
A58: 48 | B58: BAJFINANCE | C58: 3670.8 | D58: 3658.62 | E58: 3629.23 | F58: 3587.67 | G58: 3558.28 | H58: 3700.18 | I58: 3729.57 | J58: 3771.13 | K58: 3688 | L58: 3617.05 | M58: 42.51575
A59: 49 | B59: BALKRISIND | C59: 1379.7 | D59: 1389.40 | E59: 1365.80 | F59: 1351.90 | G59: 1328.30 | H59: 1403.30 | I59: 1426.90 | J59: 1440.80 | K59: 1413 | L59: 1375.5 | M59: 4.40254
A60: 50 | B60: BALMLAWRIE | C60: 119.05 | D60: 119.45 | E60: 118.35 | F60: 117.65 | G60: 116.55 | H60: 120.15 | I60: 121.25 | J60: 121.95 | K60: 120.55 | L60: 118.75 | M60: 2.60791
A61: 51 | B61: BALRAMCHIN | C61: 155.4 | D61: 156.63 | E61: 153.77 | F61: 152.13 | G61: 149.27 | H61: 158.27 | I61: 161.13 | J61: 162.77 | K61: 159.5 | L61: 155 | M61: 17.06008
A62: 52 | B62: BANDHANBNK | C62: 320.05 | D62: 320.05 | E62: 313.10 | F62: 306.15 | G62: 299.20 | H62: 327.00 | I62: 333.95 | J62: 340.90 | K62: 327 | L62: 313.1 | M62: 432.19718
A63: 53 | B63: BANKBARODA | C63: 51.6 | D63: 50.90 | E63: 49.60 | F63: 47.60 | G63: 46.30 | H63: 52.90 | I63: 54.20 | J63: 56.20 | K63: 52.2 | L63: 48.9 | M63: 1016.56705
A64: 54 | B64: BANKINDIA | C64: 52.55 | D64: 52.05 | E64: 50.60 | F64: 48.65 | G64: 47.20 | H64: 54.00 | I64: 55.45 | J64: 57.40 | K64: 53.5 | L64: 50.1 | M64: 142.48949
A65: 55 | B65: BASF | C65: 1559.05 | D65: 1573.35 | E65: 1535.70 | F65: 1512.35 | G65: 1474.70 | H65: 1596.70 | I65: 1634.35 | J65: 1657.70 | K65: 1611 | L65: 1550 | M65: 0.48786
A66: 56 | B66: BATAINDIA | C66: 1340.75 | D66: 1347.93 | E66: 1323.87 | F66: 1306.98 | G66: 1282.92 | H66: 1364.82 | I66: 1388.88 | J66: 1405.77 | K66: 1372 | L66: 1331.05 | M66: 10.7167
A67: 57 | B67: BAYERCROP | C67: 6017.5 | D67: 6057.12 | E67: 5965.38 | F67: 5913.27 | G67: 5821.53 | H67: 6109.23 | I67: 6200.97 | J67: 6253.08 | K67: 6148.85 | L67: 6005 | M67: 0.23137
A68: 58 | B68: BBTC | C68: 1483.5 | D68: 1498.27 | E68: 1456.58 | F68: 1429.67 | G68: 1387.98 | H68: 1525.18 | I68: 1566.87 | J68: 1593.78 | K68: 1539.95 | L68: 1471.35 | M68: 2.34328
A69: 59 | B69: BDL | C69: 424.85 | D69: 427.77 | E69: 418.78 | F69: 412.72 | G69: 403.73 | H69: 433.83 | I69: 442.82 | J69: 448.88 | K69: 436.75 | L69: 421.7 | M69: 16.47827
A70: 60 | B70: BEL | C70: 112.05 | D70: 112.53 | E70: 110.32 | F70: 108.58 | G70: 106.37 | H70: 114.27 | I70: 116.48 | J70: 118.22 | K70: 114.75 | L70: 110.8 | M70: 162.02183
A71: 61 | B71: BEML | C71: 711.5 | D71: 713.63 | E71: 702.37 | F71: 693.23 | G71: 681.97 | H71: 722.77 | I71: 734.03 | J71: 743.17 | K71: 724.9 | L71: 704.5 | M71: 9.62756
A72: 62 | B72: BERGEPAINT | C72: 564.3 | D72: 563.27 | E72: 558.03 | F72: 551.77 | G72: 546.53 | H72: 569.53 | I72: 574.77 | J72: 581.03 | K72: 568.5 | L72: 557 | M72: 9.37871
A73: 63 | B73: BHARATFORG | C73: 502.25 | D73: 507.88 | E73: 493.67 | F73: 485.08 | G73: 470.87 | H73: 516.47 | I73: 530.68 | J73: 539.27 | K73: 522.1 | L73: 499.3 | M73: 39.39607
A74: 64 | B74: BHARATRAS | C74: 9676.1 | D74: 9743.73 | E74: 9587.47 | F74: 9498.83 | G74: 9342.57 | H74: 9832.37 | I74: 9988.63 | J74: 10077.27 | K74: 9900 | L74: 9655.1 | M74: 0.03971
A75: 65 | B75: BHARTIARTL | C75: 523.45 | D75: 521.70 | E75: 513.85 | F75: 504.25 | G75: 496.40 | H75: 531.30 | I75: 539.15 | J75: 548.75 | K75: 529.55 | L75: 512.1 | M75: 218.08591
A76: 66 | B76: BHEL | C76: 41.65 | D76: 41.28 | E76: 40.47 | F76: 39.28 | G76: 38.47 | H76: 42.47 | I76: 43.28 | J76: 44.47 | K76: 42.1 | L76: 40.1 | M76: 1336.53715
A77: 67 | B77: BIOCON | C77: 391.55 | D77: 391.07 | E77: 388.48 | F77: 385.42 | G77: 382.83 | H77: 394.13 | I77: 396.72 | J77: 399.78 | K77: 393.65 | L77: 388 | M77: 28.49943
A78: 68 | B78: BIRLACORPN | C78: 642.8 | D78: 641.97 | E78: 635.93 | F78: 629.07 | G78: 623.03 | H78: 648.83 | I78: 654.87 | J78: 661.73 | K78: 648 | L78: 635.1 | M78: 2.43523
A79: 69 | B79: BLISSGVS | C79: 155.25 | D79: 155.88 | E79: 153.27 | F79: 151.28 | G79: 148.67 | H79: 157.87 | I79: 160.48 | J79: 162.47 | K79: 158.5 | L79: 153.9 | M79: 6.12283
A80: 70 | B80: BLUEDART | C80: 2256 | D80: 2239.22 | E80: 2184.43 | F80: 2112.87 | G80: 2058.08 | H80: 2310.78 | I80: 2365.57 | J80: 2437.13 | K80: 2294 | L80: 2167.65 | M80: 0.83448
A81: 71 | B81: BLUESTARCO | C81: 689.95 | D81: 690.87 | E81: 668.08 | F81: 646.22 | G81: 623.43 | H81: 712.73 | I81: 735.52 | J81: 757.38 | K81: 713.65 | L81: 669 | M81: 3.82236
A82: 72 | B82: BOMDYEING | C82: 73.05 | D82: 74.03 | E82: 71.62 | F82: 70.18 | G82: 67.77 | H82: 75.47 | I82: 77.88 | J82: 79.32 | K82: 76.45 | L82: 72.6 | M82: 29.64572
A83: 73 | B83: BOSCHLTD | C83: 14007.65 | D83: 14086.22 | E83: 13872.43 | F83: 13737.22 | G83: 13523.43 | H83: 14221.43 | I83: 14435.22 | J83: 14570.43 | K83: 14300 | L83: 13951 | M83: 0.30109
A84: 74 | B84: BPCL | C84: 415.05 | D84: 416.85 | E84: 411.70 | F84: 408.35 | G84: 403.20 | H84: 420.20 | I84: 425.35 | J84: 428.70 | K84: 422 | L84: 413.5 | M84: 87.44341
A85: 75 | B85: BRIGADE | C85: 181.6 | D85: 182.37 | E85: 179.23 | F85: 176.87 | G85: 173.73 | H85: 184.73 | I85: 187.87 | J85: 190.23 | K85: 185.5 | L85: 180 | M85: 2.31356
A86: 76 | B86: BRITANNIA | C86: 3793.85 | D86: 3802.82 | E86: 3778.03 | F86: 3762.22 | G86: 3737.43 | H86: 3818.63 | I86: 3843.42 | J86: 3859.23 | K86: 3827.6 | L86: 3787 | M86: 5.12488
A87: 77 | B87: BSE | C87: 520.65 | D87: 519.12 | E87: 512.53 | F87: 504.42 | G87: 497.83 | H87: 527.23 | I87: 533.82 | J87: 541.93 | K87: 525.7 | L87: 511 | M87: 5.72791
A88: 78 | B88: BSOFT | C88: 172.8 | D88: 173.50 | E88: 170.30 | F88: 167.80 | G88: 164.60 | H88: 176.00 | I88: 179.20 | J88: 181.70 | K88: 176.7 | L88: 171 | M88: 14.62951
A89: 79 | B89: CADILAHC | C89: 388.85 | D89: 390.05 | E89: 386.35 | F89: 383.85 | G89: 380.15 | H89: 392.55 | I89: 396.25 | J89: 398.75 | K89: 393.75 | L89: 387.55 | M89: 24.3436
A90: 80 | B90: CANBK | C90: 114.8 | D90: 112.33 | E90: 108.77 | F90: 102.73 | G90: 99.17 | H90: 118.37 | I90: 121.93 | J90: 127.97 | K90: 115.9 | L90: 106.3 | M90: 473.67334
A91: 81 | B91: CANFINHOME | C91: 387.2 | D91: 387.98 | E91: 383.42 | F91: 379.63 | G91: 375.07 | H91: 391.77 | I91: 396.33 | J91: 400.12 | K91: 392.55 | L91: 384.2 | M91: 8.47657
A92: 82 | B92: CAPLIPOINT | C92: 546.7 | D92: 553.42 | E92: 538.28 | F92: 529.87 | G92: 514.73 | H92: 561.83 | I92: 576.97 | J92: 585.38 | K92: 568.55 | L92: 545 | M92: 3.4735
A93: 83 | B93: CARBORUNIV | C93: 274.05 | D93: 275.43 | E93: 270.92 | F93: 267.78 | G93: 263.27 | H93: 278.57 | I93: 283.08 | J93: 286.22 | K93: 279.95 | L93: 272.3 | M93: 1.05245
A94: 84 | B94: CARERATING | C94: 412.95 | D94: 412.25 | E94: 403.70 | F94: 394.45 | G94: 385.90 | H94: 421.50 | I94: 430.05 | J94: 439.30 | K94: 420.8 | L94: 403 | M94: 2.28679
A95: 85 | B95: CASTROLIND | C95: 122.4 | D95: 122.67 | E95: 121.93 | F95: 121.47 | G95: 120.73 | H95: 123.13 | I95: 123.87 | J95: 124.33 | K95: 123.4 | L95: 122.2 | M95: 5.5466
A96: 86 | B96: CCL | C96: 268.7 | D96: 270.58 | E96: 263.42 | F96: 258.13 | G96: 250.97 | H96: 275.87 | I96: 283.03 | J96: 288.32 | K96: 277.75 | L96: 265.3 | M96: 1.92584
A97: 87 | B97: CDSL | C97: 425.6 | D97: 425.20 | E97: 414.40 | F97: 403.20 | G97: 392.40 | H97: 436.40 | I97: 447.20 | J97: 458.40 | K97: 436 | L97: 414 | M97: 19.01543
A98: 88 | B98: CEATLTD | C98: 937.45 | D98: 938.13 | E98: 926.32 | F98: 915.18 | G98: 903.37 | H98: 949.27 | I98: 961.08 | J98: 972.22 | K98: 949.95 | L98: 927 | M98: 4.86417
A99: 89 | B99: CENTRALBK | C99: 17.85 | D99: 17.95 | E99: 17.70 | F99: 17.55 | G99: 17.30 | H99: 18.10 | I99: 18.35 | J99: 18.50 | K99: 18.2 | L99: 17.8 | M99: 23.48208
A100: 90 | B100: CENTURYPLY | C100: 158 | D100: 160.53 | E100: 150.62 | F100: 143.23 | G100: 133.32 | H100: 167.92 | I100: 177.83 | J100: 185.22 | K100: 170.45 | L100: 153.15 | M100: 34.26995
A101: 91 | B101: CENTURYTEX | C101: 362.4 | D101: 364.48 | E101: 357.07 | F101: 351.73 | G101: 344.32 | H101: 369.82 | I101: 377.23 | J101: 382.57 | K101: 371.9 | L101: 359.15 | M101: 30.24494
A102: 92 | B102: CERA | C102: 2567.45 | D102: 2579.15 | E102: 2518.30 | F102: 2469.15 | G102: 2408.30 | H102: 2628.30 | I102: 2689.15 | J102: 2738.30 | K102: 2640 | L102: 2530 | M102: 0.05715
A103: 93 | B103: CESC | C103: 626.05 | D103: 633.82 | E103: 613.78 | F103: 601.52 | G103: 581.48 | H103: 646.08 | I103: 666.12 | J103: 678.38 | K103: 653.85 | L103: 621.55 | M103: 3.58227
A104: 94 | B104: CGCL | C104: 224.1 | D104: 224.73 | E104: 222.02 | F104: 219.93 | G104: 217.22 | H104: 226.82 | I104: 229.53 | J104: 231.62 | K104: 227.45 | L104: 222.65 | M104: 0.69526
A105: 95 | B105: CHAMBLFERT | C105: 153.55 | D105: 155.18 | E105: 151.37 | F105: 149.18 | G105: 145.37 | H105: 157.37 | I105: 161.18 | J105: 163.37 | K105: 159 | L105: 153 | M105: 13.67421
A106: 96 | B106: CHENNPETRO | C106: 81.65 | D106: 82.20 | E106: 80.55 | F106: 79.45 | G106: 77.80 | H106: 83.30 | I106: 84.95 | J106: 86.05 | K106: 83.85 | L106: 81.1 | M106: 6.23881
A107: 97 | B107: CHOLAFIN | C107: 249.75 | D107: 249.70 | E107: 240.40 | F107: 231.05 | G107: 221.75 | H107: 259.05 | I107: 268.35 | J107: 277.70 | K107: 259 | L107: 240.35 | M107: 177.83814
A108: 98 | B108: CHOLAHLDNG | C108: 435.55 | D108: 437.27 | E108: 429.53 | F108: 423.52 | G108: 415.78 | H108: 443.28 | I108: 451.02 | J108: 457.03 | K108: 445 | L108: 431.25 | M108: 5.67269
A109: 99 | B109: CIPLA | C109: 748.6 | D109: 755.43 | E109: 739.87 | F109: 731.13 | G109: 715.57 | H109: 764.17 | I109: 779.73 | J109: 788.47 | K109: 771 | L109: 746.7 | M109: 82.06125
A110: 100 | B110: COALINDIA | C110: 139.05 | D110: 140.03 | E110: 137.67 | F110: 136.28 | G110: 133.92 | H110: 141.42 | I110: 143.78 | J110: 145.17 | K110: 142.4 | L110: 138.65 | M110: 90.56537
A111: 101 | B111: COCHINSHIP | C111: 354.25 | D111: 359.20 | E111: 347.55 | F111: 340.85 | G111: 329.20 | H111: 365.90 | I111: 377.55 | J111: 384.25 | K111: 370.85 | L111: 352.5 | M111: 5.80092
A112: 102 | B112: COFORGE | C112: 2001.45 | D112: 1990.37 | E112: 1956.28 | F112: 1911.12 | G112: 1877.03 | H112: 2035.53 | I112: 2069.62 | J112: 2114.78 | K112: 2024.45 | L112: 1945.2 | M112: 1.56148
A113: 103 | B113: COLPAL | C113: 1390.2 | D113: 1396.30 | E113: 1381.60 | F113: 1373.00 | G113: 1358.30 | H113: 1404.90 | I113: 1419.60 | J113: 1428.20 | K113: 1411 | L113: 1387.7 | M113: 7.5118
A114: 104 | B114: CONCOR | C114: 409.1 | D114: 405.35 | E114: 397.80 | F114: 386.50 | G114: 378.95 | H114: 416.65 | I114: 424.20 | J114: 435.50 | K114: 412.9 | L114: 394.05 | M114: 55.27749
A115: 105 | B115: COROMANDEL | C115: 812.3 | D115: 814.77 | E115: 799.53 | F115: 786.77 | G115: 771.53 | H115: 827.53 | I115: 842.77 | J115: 855.53 | K115: 830 | L115: 802 | M115: 7.79095
A116: 106 | B116: CREDITACC | C116: 696.9 | D116: 685.63 | E116: 671.27 | F116: 645.63 | G116: 631.27 | H116: 711.27 | I116: 725.63 | J116: 751.27 | K116: 700 | L116: 660 | M116: 2.53612
A117: 107 | B117: CRISIL | C117: 1867.7 | D117: 1865.37 | E117: 1844.33 | F117: 1820.97 | G117: 1799.93 | H117: 1888.73 | I117: 1909.77 | J117: 1933.13 | K117: 1886.4 | L117: 1842 | M117: 0.41432
A118: 108 | B118: CROMPTON | C118: 270.25 | D118: 269.93 | E118: 267.32 | F118: 264.38 | G118: 261.77 | H118: 272.87 | I118: 275.48 | J118: 278.42 | K118: 272.55 | L118: 267 | M118: 6.16853
A119: 109 | B119: CSBBANK | C119: 234.85 | D119: 236.90 | E119: 228.45 | F119: 222.05 | G119: 213.60 | H119: 243.30 | I119: 251.75 | J119: 258.15 | K119: 245.35 | L119: 230.5 | M119: 8.09205
A120: 110 | B120: CUB | C120: 150 | D120: 147.07 | E120: 142.13 | F120: 134.27 | G120: 129.33 | H120: 154.93 | I120: 159.87 | J120: 167.73 | K120: 152 | L120: 139.2 | M120: 113.3293
A121: 111 | B121: CUMMINSIND | C121: 471.75 | D121: 470.58 | E121: 466.17 | F121: 460.58 | G121: 456.17 | H121: 476.17 | I121: 480.58 | J121: 486.17 | K121: 475 | L121: 465 | M121: 9.76134
A122: 112 | B122: CYIENT | C122: 400.9 | D122: 401.17 | E122: 393.73 | F122: 386.57 | G122: 379.13 | H122: 408.33 | I122: 415.77 | J122: 422.93 | K122: 408.6 | L122: 394 | M122: 5.2539
A123: 113 | B123: DABUR | C123: 489.1 | D123: 490.92 | E123: 486.18 | F123: 483.27 | G123: 478.53 | H123: 493.83 | I123: 498.57 | J123: 501.48 | K123: 495.65 | L123: 488 | M123: 18.54758
A124: 114 | B124: DALBHARAT | C124: 749.55 | D124: 748.18 | E124: 740.37 | F124: 731.18 | G124: 723.37 | H124: 757.37 | I124: 765.18 | J124: 774.37 | K124: 756 | L124: 739 | M124: 0.8502
A125: 115 | B125: DBCORP | C125: 81.1 | D125: 81.30 | E125: 80.30 | F125: 79.50 | G125: 78.50 | H125: 82.10 | I125: 83.10 | J125: 83.90 | K125: 82.3 | L125: 80.5 | M125: 4.04284
A126: 116 | B126: DBL | C126: 393.55 | D126: 396.62 | E126: 389.23 | F126: 384.92 | G126: 377.53 | H126: 400.93 | I126: 408.32 | J126: 412.63 | K126: 404 | L126: 392.3 | M126: 1.66023
A127: 117 | B127: DCAL | C127: 185.45 | D127: 188.18 | E127: 181.87 | F127: 178.28 | G127: 171.97 | H127: 191.77 | I127: 198.08 | J127: 201.67 | K127: 194.5 | L127: 184.6 | M127: 3.37678
A128: 118 | B128: DCBBANK | C128: 94.55 | D128: 93.82 | E128: 92.13 | F128: 89.72 | G128: 88.03 | H128: 96.23 | I128: 97.92 | J128: 100.33 | K128: 95.5 | L128: 91.4 | M128: 86.6546
A129: 119 | B129: DCMSHRIRAM | C129: 380.7 | D129: 385.57 | E129: 372.18 | F129: 363.67 | G129: 350.28 | H129: 394.08 | I129: 407.47 | J129: 415.98 | K129: 398.95 | L129: 377.05 | M129: 0.90987
A130: 120 | B130: DEEPAKNTR | C130: 747.8 | D130: 753.63 | E130: 739.27 | F130: 730.73 | G130: 716.37 | H130: 762.17 | I130: 776.53 | J130: 785.07 | K130: 768 | L130: 745.1 | M130: 8.68792
A131: 121 | B131: DELTACORP | C131: 116.65 | D131: 117.55 | E131: 115.35 | F131: 114.05 | G131: 111.85 | H131: 118.85 | I131: 121.05 | J131: 122.35 | K131: 119.75 | L131: 116.25 | M131: 14.27329
A132: 122 | B132: DHANUKA | C132: 827.2 | D132: 839.40 | E132: 808.80 | F132: 790.40 | G132: 759.80 | H132: 857.80 | I132: 888.40 | J132: 906.80 | K132: 870 | L132: 821 | M132: 1.10559
A133: 123 | B133: DISHTV | C133: 11.65 | D133: 11.85 | E133: 11.20 | F133: 10.75 | G133: 10.10 | H133: 12.30 | I133: 12.95 | J133: 13.40 | K133: 12.5 | L133: 11.4 | M133: 512.12791
A134: 124 | B134: DIVISLAB | C134: 3272.85 | D134: 3276.58 | E134: 3255.27 | F134: 3237.68 | G134: 3216.37 | H134: 3294.17 | I134: 3315.48 | J134: 3333.07 | K134: 3297.9 | L134: 3259 | M134: 6.36725
A135: 125 | B135: DIXON | C135: 8313 | D135: 8475.67 | E135: 8127.33 | F135: 7941.67 | G135: 7593.33 | H135: 8661.33 | I135: 9009.67 | J135: 9195.33 | K135: 8824 | L135: 8290 | M135: 0.86077
A136: 126 | B136: DLF | C136: 173.05 | D136: 174.95 | E136: 170.20 | F136: 167.35 | G136: 162.60 | H136: 177.80 | I136: 182.55 | J136: 185.40 | K136: 179.7 | L136: 172.1 | M136: 251.28213
A137: 127 | B137: DMART | C137: 2319.4 | D137: 2332.10 | E137: 2287.30 | F137: 2255.20 | G137: 2210.40 | H137: 2364.20 | I137: 2409.00 | J137: 2441.10 | K137: 2376.9 | L137: 2300 | M137: 6.1776
A138: 128 | B138: DRREDDY | C138: 4374.3 | D138: 4400.37 | E138: 4334.73 | F138: 4295.17 | G138: 4229.53 | H138: 4439.93 | I138: 4505.57 | J138: 4545.13 | K138: 4466 | L138: 4360.8 | M138: 11.62854
A139: 129 | B139: ECLERX | C139: 771.6 | D139: 778.90 | E139: 762.70 | F139: 753.80 | G139: 737.60 | H139: 787.80 | I139: 804.00 | J139: 812.90 | K139: 795.1 | L139: 770 | M139: 0.63381
A140: 130 | B140: EDELWEISS | C140: 84.25 | D140: 84.33 | E140: 82.17 | F140: 80.08 | G140: 77.92 | H140: 86.42 | I140: 88.58 | J140: 90.67 | K140: 86.5 | L140: 82.25 | M140: 37.21608
A141: 131 | B141: EICHERMOT | C141: 2213.6 | D141: 2223.20 | E141: 2190.40 | F141: 2167.20 | G141: 2134.40 | H141: 2246.40 | I141: 2279.20 | J141: 2302.40 | K141: 2256 | L141: 2200 | M141: 14.70743
A142: 132 | B142: EIDPARRY | C142: 290.6 | D142: 291.25 | E142: 287.85 | F142: 285.10 | G142: 281.70 | H142: 294.00 | I142: 297.40 | J142: 300.15 | K142: 294.65 | L142: 288.5 | M142: 3.36889
A143: 133 | B143: EIHOTEL | C143: 93.5 | D143: 93.50 | E143: 92.10 | F143: 90.70 | G143: 89.30 | H143: 94.90 | I143: 96.30 | J143: 97.70 | K143: 94.9 | L143: 92.1 | M143: 28.78241
A144: 134 | B144: ELGIEQUIP | C144: 227.75 | D144: 228.58 | E144: 225.17 | F144: 222.58 | G144: 219.17 | H144: 231.17 | I144: 234.58 | J144: 237.17 | K144: 232 | L144: 226 | M144: 0.69005
A145: 135 | B145: EMAMILTD | C145: 353.8 | D145: 356.22 | E145: 349.63 | F145: 345.47 | G145: 338.88 | H145: 360.38 | I145: 366.97 | J145: 371.13 | K145: 362.8 | L145: 352.05 | M145: 4.71049
A146: 136 | B146: ENDURANCE | C146: 1126.4 | D146: 1119.80 | E146: 1101.65 | F146: 1076.90 | G146: 1058.75 | H146: 1144.55 | I146: 1162.70 | J146: 1187.45 | K146: 1137.95 | L146: 1095.05 | M146: 0.96307
A147: 137 | B147: ENGINERSIN | C147: 70.75 | D147: 71.28 | E147: 70.07 | F147: 69.38 | G147: 68.17 | H147: 71.97 | I147: 73.18 | J147: 73.87 | K147: 72.5 | L147: 70.6 | M147: 45.00308
A148: 138 | B148: EQUITAS | C148: 57.9 | D148: 57.60 | E148: 56.30 | F148: 54.70 | G148: 53.40 | H148: 59.20 | I148: 60.50 | J148: 62.10 | K148: 58.9 | L148: 56 | M148: 178.1534
A149: 139 | B149: ERIS | C149: 517.8 | D149: 523.82 | E149: 509.13 | F149: 500.47 | G149: 485.78 | H149: 532.48 | I149: 547.17 | J149: 555.83 | K149: 538.5 | L149: 515.15 | M149: 1.13485
A150: 140 | B150: ESABINDIA | C150: 1457.4 | D150: 1474.12 | E150: 1428.23 | F150: 1399.07 | G150: 1353.18 | H150: 1503.28 | I150: 1549.17 | J150: 1578.33 | K150: 1520 | L150: 1444.95 | M150: 0.06835
A151: 141 | B151: ESCORTS | C151: 1141.1 | D151: 1148.38 | E151: 1124.72 | F151: 1108.33 | G151: 1084.67 | H151: 1164.77 | I151: 1188.43 | J151: 1204.82 | K151: 1172.05 | L151: 1132 | M151: 15.69698
A152: 142 | B152: ESSELPACK | C152: 292.9 | D152: 294.63 | E152: 290.27 | F152: 287.63 | G152: 283.27 | H152: 297.27 | I152: 301.63 | J152: 304.27 | K152: 299 | L152: 292 | M152: 0.84217
A153: 143 | B153: EXIDEIND | C153: 172.35 | D153: 174.00 | E153: 169.60 | F153: 166.85 | G153: 162.45 | H153: 176.75 | I153: 181.15 | J153: 183.90 | K153: 178.4 | L153: 171.25 | M153: 77.27585
A154: 144 | B154: FCONSUMER | C154: 11.45 | D154: 11.33 | E154: 11.22 | F154: 10.98 | G154: 10.87 | H154: 11.57 | I154: 11.68 | J154: 11.92 | K154: 11.45 | L154: 11.1 | M154: 406.13366
A155: 145 | B155: FDC | C155: 329.05 | D155: 331.18 | E155: 322.37 | F155: 315.68 | G155: 306.87 | H155: 337.87 | I155: 346.68 | J155: 353.37 | K155: 340 | L155: 324.5 | M155: 2.59833
A156: 146 | B156: FEDERALBNK | C156: 60.45 | D156: 59.28 | E156: 57.42 | F156: 54.38 | G156: 52.52 | H156: 62.32 | I156: 64.18 | J156: 67.22 | K156: 61.15 | L156: 56.25 | M156: 1312.79166
A157: 147 | B157: FINCABLES | C157: 301.8 | D157: 302.38 | E157: 295.97 | F157: 290.13 | G157: 283.72 | H157: 308.22 | I157: 314.63 | J157: 320.47 | K157: 308.8 | L157: 296.55 | M157: 3.86891
A158: 148 | B158: FINEORG | C158: 2699.65 | D158: 2719.22 | E158: 2641.43 | F158: 2583.22 | G158: 2505.43 | H158: 2777.43 | I158: 2855.22 | J158: 2913.43 | K158: 2797 | L158: 2661 | M158: 0.43918
A159: 149 | B159: FINPIPE | C159: 517.95 | D159: 517.32 | E159: 510.63 | F159: 503.32 | G159: 496.63 | H159: 524.63 | I159: 531.32 | J159: 538.63 | K159: 524 | L159: 510 | M159: 1.01654
A160: 150 | B160: FLUOROCHEM | C160: 550.55 | D160: 549.02 | E160: 526.53 | F160: 502.52 | G160: 480.03 | H160: 573.03 | I160: 595.52 | J160: 619.53 | K160: 571.5 | L160: 525 | M160: 3.63913
A161: 151 | B161: FORTIS | C161: 133.15 | D161: 134.08 | E161: 132.07 | F161: 130.98 | G161: 128.97 | H161: 135.17 | I161: 137.18 | J161: 138.27 | K161: 136.1 | L161: 133 | M161: 8.61716
A162: 152 | B162: FRETAIL | C162: 135.3 | D162: 136.10 | E162: 131.85 | F162: 128.40 | G162: 124.15 | H162: 139.55 | I162: 143.80 | J162: 147.25 | K162: 140.35 | L162: 132.65 | M162: 340.85907
A163: 153 | B163: FSL | C163: 65.2 | D163: 65.08 | E163: 64.17 | F163: 63.13 | G163: 62.22 | H163: 66.12 | I163: 67.03 | J163: 68.07 | K163: 66 | L163: 64.05 | M163: 39.36939
A164: 154 | B164: GAIL | C164: 99.1 | D164: 99.47 | E164: 98.43 | F164: 97.77 | G164: 96.73 | H164: 100.13 | I164: 101.17 | J164: 101.83 | K164: 100.5 | L164: 98.8 | M164: 87.17459
A165: 155 | B165: GALAXYSURF | C165: 1830.15 | D165: 1827.72 | E165: 1790.43 | F165: 1750.72 | G165: 1713.43 | H165: 1867.43 | I165: 1904.72 | J165: 1944.43 | K165: 1865 | L165: 1788 | M165: 0.39053
A166: 156 | B166: GARFIBRES | C166: 1909.15 | D166: 1928.13 | E166: 1876.27 | F166: 1843.38 | G166: 1791.52 | H166: 1961.02 | I166: 2012.88 | J166: 2045.77 | K166: 1980 | L166: 1895.25 | M166: 0.1859
A167: 157 | B167: GEPIL | C167: 493.3 | D167: 496.45 | E167: 487.90 | F167: 482.50 | G167: 473.95 | H167: 501.85 | I167: 510.40 | J167: 515.80 | K167: 505 | L167: 491.05 | M167: 0.18094
A168: 158 | B168: GESHIP | C168: 271.8 | D168: 275.43 | E168: 267.87 | F168: 263.93 | G168: 256.37 | H168: 279.37 | I168: 286.93 | J168: 290.87 | K168: 283 | L168: 271.5 | M168: 1.27001
A169: 159 | B169: GET&D | C169: 109.65 | D169: 110.57 | E169: 108.13 | F169: 106.62 | G169: 104.18 | H169: 112.08 | I169: 114.52 | J169: 116.03 | K169: 113 | L169: 109.05 | M169: 0.62704
A170: 160 | B170: GHCL | C170: 165.65 | D170: 165.28 | E170: 159.57 | F170: 153.48 | G170: 147.77 | H170: 171.37 | I170: 177.08 | J170: 183.17 | K170: 171 | L170: 159.2 | M170: 3.92644
A171: 161 | B171: GICRE | C171: 154.6 | D171: 156.57 | E171: 151.28 | F171: 147.97 | G171: 142.68 | H171: 159.88 | I171: 165.17 | J171: 168.48 | K171: 161.85 | L171: 153.25 | M171: 7.97469
A172: 162 | B172: GILLETTE | C172: 5629.7 | D172: 5643.57 | E172: 5587.13 | F172: 5544.57 | G172: 5488.13 | H172: 5686.13 | I172: 5742.57 | J172: 5785.13 | K172: 5700 | L172: 5601 | M172: 0.18614
A173: 163 | B173: GLAXO | C173: 1583.15 | D173: 1582.72 | E173: 1561.43 | F173: 1539.72 | G173: 1518.43 | H173: 1604.43 | I173: 1625.72 | J173: 1647.43 | K173: 1604 | L173: 1561 | M173: 0.83032
A174: 164 | B174: GLENMARK | C174: 493.95 | D174: 495.62 | E174: 489.33 | F174: 484.72 | G174: 478.43 | H174: 500.23 | I174: 506.52 | J174: 511.13 | K174: 501.9 | L174: 491 | M174: 20.29973
A175: 165 | B175: GMDCLTD | C175: 49.95 | D175: 50.35 | E175: 49.30 | F175: 48.65 | G175: 47.60 | H175: 51.00 | I175: 52.05 | J175: 52.70 | K175: 51.4 | L175: 49.7 | M175: 17.79872
A176: 166 | B176: GMMPFAUDLR | C176: 5844 | D176: 5867.27 | E176: 5801.73 | F176: 5759.47 | G176: 5693.93 | H176: 5909.53 | I176: 5975.07 | J176: 6017.33 | K176: 5932.8 | L176: 5825 | M176: 0.18293
A177: 167 | B177: GMRINFRA | C177: 25.75 | D177: 26.47 | E177: 24.68 | F177: 23.62 | G177: 21.83 | H177: 27.53 | I177: 29.32 | J177: 30.38 | K177: 28.25 | L177: 25.4 | M177: 1174.22995
A178: 168 | B178: GNFC | C178: 218.8 | D178: 220.75 | E178: 216.05 | F178: 213.30 | G178: 208.60 | H178: 223.50 | I178: 228.20 | J178: 230.95 | K178: 225.45 | L178: 218 | M178: 7.28174
A179: 169 | B179: GODFRYPHLP | C179: 1002.7 | D179: 1009.08 | E179: 993.62 | F179: 984.53 | G179: 969.07 | H179: 1018.17 | I179: 1033.63 | J179: 1042.72 | K179: 1024.55 | L179: 1000 | M179: 1.55822
A180: 170 | B180: GODREJAGRO | C180: 490.1 | D180: 491.75 | E180: 485.90 | F180: 481.70 | G180: 475.85 | H180: 495.95 | I180: 501.80 | J180: 506.00 | K180: 497.6 | L180: 487.55 | M180: 1.01467
A181: 171 | B181: GODREJCP | C181: 670.95 | D181: 675.63 | E181: 665.32 | F181: 659.68 | G181: 649.37 | H181: 681.27 | I181: 691.58 | J181: 697.22 | K181: 685.95 | L181: 670 | M181: 9.59825
A182: 172 | B182: GODREJIND | C182: 448.5 | D182: 445.62 | E182: 438.93 | F182: 429.37 | G182: 422.68 | H182: 455.18 | I182: 461.87 | J182: 471.43 | K182: 452.3 | L182: 436.05 | M182: 5.05213
A183: 173 | B183: GODREJPROP | C183: 902.9 | D183: 905.73 | E183: 891.57 | F183: 880.23 | G183: 866.07 | H183: 917.07 | I183: 931.23 | J183: 942.57 | K183: 919.9 | L183: 894.4 | M183: 9.66869
A184: 174 | B184: GPPL | C184: 83 | D184: 83.48 | E184: 82.07 | F184: 81.13 | G184: 79.72 | H184: 84.42 | I184: 85.83 | J184: 86.77 | K184: 84.9 | L184: 82.55 | M184: 0.91963
A185: 175 | B185: GRANULES | C185: 309.3 | D185: 310.93 | E185: 306.37 | F185: 303.43 | G185: 298.87 | H185: 313.87 | I185: 318.43 | J185: 321.37 | K185: 315.5 | L185: 308 | M185: 20.60359
A186: 176 | B186: GRAPHITE | C186: 202.75 | D186: 204.88 | E186: 199.87 | F186: 196.98 | G186: 191.97 | H186: 207.77 | I186: 212.78 | J186: 215.67 | K186: 209.9 | L186: 202 | M186: 7.42185
A187: 177 | B187: GRASIM | C187: 701.15 | D187: 700.88 | E187: 684.27 | F187: 667.38 | G187: 650.77 | H187: 717.77 | I187: 734.38 | J187: 751.27 | K187: 717.5 | L187: 684 | M187: 73.87214
A188: 178 | B188: GREAVESCOT | C188: 85.2 | D188: 86.90 | E188: 83.00 | F188: 80.80 | G188: 76.90 | H188: 89.10 | I188: 93.00 | J188: 95.20 | K188: 90.8 | L188: 84.7 | M188: 29.04266
A189: 179 | B189: GRINDWELL | C189: 516.5 | D189: 520.47 | E189: 510.93 | F189: 505.37 | G189: 495.83 | H189: 526.03 | I189: 535.57 | J189: 541.13 | K189: 530 | L189: 514.9 | M189: 0.19919
A190: 180 | B190: GRSE | C190: 213.35 | D190: 213.08 | E190: 210.17 | F190: 206.98 | G190: 204.07 | H190: 216.27 | I190: 219.18 | J190: 222.37 | K190: 216 | L190: 209.9 | M190: 5.34688
A191: 181 | B191: GSFC | C191: 68.85 | D191: 69.58 | E191: 67.82 | F191: 66.78 | G191: 65.02 | H191: 70.62 | I191: 72.38 | J191: 73.42 | K191: 71.35 | L191: 68.55 | M191: 9.94484
A192: 182 | B192: GSPL | C192: 212.75 | D192: 215.30 | E192: 209.25 | F192: 205.75 | G192: 199.70 | H192: 218.80 | I192: 224.85 | J192: 228.35 | K192: 221.35 | L192: 211.8 | M192: 7.08195
A193: 183 | B193: GUJALKALI | C193: 378.1 | D193: 376.82 | E193: 366.38 | F193: 354.67 | G193: 344.23 | H193: 388.53 | I193: 398.97 | J193: 410.68 | K193: 387.25 | L193: 365.1 | M193: 18.48363
A194: 184 | B194: GUJGASLTD | C194: 320.9 | D194: 322.13 | E194: 316.77 | F194: 312.63 | G194: 307.27 | H194: 326.27 | I194: 331.63 | J194: 335.77 | K194: 327.5 | L194: 318 | M194: 4.81098
A195: 185 | B195: GULFOILLUB | C195: 673 | D195: 677.67 | E195: 665.33 | F195: 657.67 | G195: 645.33 | H195: 685.33 | I195: 697.67 | J195: 705.33 | K195: 690 | L195: 670 | M195: 0.51767
A196: 186 | B196: HAL | C196: 1010.6 | D196: 1008.73 | E196: 983.47 | F196: 956.33 | G196: 931.07 | H196: 1035.87 | I196: 1061.13 | J196: 1088.27 | K196: 1034 | L196: 981.6 | M196: 82.93655
A197: 187 | B197: HATHWAY | C197: 35.5 | D197: 35.47 | E197: 35.03 | F197: 34.57 | G197: 34.13 | H197: 35.93 | I197: 36.37 | J197: 36.83 | K197: 35.9 | L197: 35 | M197: 4.18822
A198: 188 | B198: HATSUN | C198: 771.45 | D198: 776.48 | E198: 752.97 | F198: 734.48 | G198: 710.97 | H198: 794.97 | I198: 818.48 | J198: 836.97 | K198: 800 | L198: 758 | M198: 0.3154
A199: 189 | B199: HAVELLS | C199: 639.25 | D199: 645.35 | E199: 631.10 | F199: 622.95 | G199: 608.70 | H199: 653.50 | I199: 667.75 | J199: 675.90 | K199: 659.6 | L199: 637.2 | M199: 14.78637
A200: 190 | B200: HCLTECH | C200: 706.45 | D200: 708.77 | E200: 700.88 | F200: 695.32 | G200: 687.43 | H200: 714.33 | I200: 722.22 | J200: 727.78 | K200: 716.65 | L200: 703.2 | M200: 54.16682
A201: 191 | B201: HDFC | C201: 1883.25 | D201: 1878.35 | E201: 1867.70 | F201: 1852.15 | G201: 1841.50 | H201: 1893.90 | I201: 1904.55 | J201: 1920.10 | K201: 1889 | L201: 1862.8 | M201: 49.03981
A202: 192 | B202: HDFCAMC | C202: 2501.25 | D202: 2499.45 | E202: 2476.80 | F202: 2452.35 | G202: 2429.70 | H202: 2523.90 | I202: 2546.55 | J202: 2571.00 | K202: 2522.1 | L202: 2475 | M202: 3.23851
A203: 193 | B203: HDFCBANK | C203: 1114.5 | D203: 1111.50 | E203: 1098.00 | F203: 1081.50 | G203: 1068.00 | H203: 1128.00 | I203: 1141.50 | J203: 1158.00 | K203: 1125 | L203: 1095 | M203: 193.49069
A204: 194 | B204: HDFCLIFE | C204: 589.35 | D204: 593.67 | E204: 583.83 | F204: 578.32 | G204: 568.48 | H204: 599.18 | I204: 609.02 | J204: 614.53 | K204: 603.5 | L204: 588.15 | M204: 36.38732
A205: 195 | B205: HEG | C205: 873.15 | D205: 879.93 | E205: 853.32 | F205: 833.48 | G205: 806.87 | H205: 899.77 | I205: 926.38 | J205: 946.22 | K205: 906.55 | L205: 860.1 | M205: 5.07357
A206: 196 | B206: HEIDELBERG | C206: 195.8 | D206: 197.67 | E206: 192.33 | F206: 188.87 | G206: 183.53 | H206: 201.13 | I206: 206.47 | J206: 209.93 | K206: 203 | L206: 194.2 | M206: 8.00929
... 321 more rows

Sheet Bulk Deals
E6: Back To Main Page
A7: Subject : | B7: BULK DEAL | D7: =Main!B10 -> 2020-08-31
A9: Date | B9: Scrip code | C9: Scrip Name | D9: Client Name | E9: Buy / Sell | F9: Quantity Traded | G9: Trade Price / Wt.Avg.trade price | H9: Exchange
A10: 2020-08-28 | B10: 524412 | C10: AREYDRG | D10: VIKAS ECOTECH LIMITED | E10: BUY | F10: 250,000 | G10: 38.04 | H10: BSE
A11: 2020-08-28 | B11: 524412 | C11: AREYDRG | D11: ALPHA LEON ENTERPRISES LLP | E11: BUY | F11: 400,010 | G11: 34.45 | H11: BSE
A12: 2020-08-28 | B12: 524412 | C12: AREYDRG | D12: ALPHA LEON ENTERPRISES LLP | E12: SELL | F12: 400,010 | G12: 37.73 | H12: BSE
A13: 2020-08-28 | B13: 542911 | C13: ASSAMENT | D13: DHIRAJ KUMAR JAISWAL | E13: BUY | F13: 9,050 | G13: 78.5 | H13: BSE
A14: 2020-08-28 | B14: 513059 | C14: GSAUTO | D14: MAHENDRA GIRDHARILAL WADHWANI | E14: BUY | F14: 100,000 | G14: 5.56 | H14: BSE
A15: 2020-08-28 | B15: 506640 | C15: GUJCMDS | D15: BIJAY SARAF | E15: BUY | F15: 1,650 | G15: 175 | H15: BSE
A16: 2020-08-28 | B16: 506640 | C16: GUJCMDS | D16: SILKON TRADES LLP | E16: BUY | F16: 99 | G16: 169.43 | H16: BSE
A17: 2020-08-28 | B17: 506640 | C17: GUJCMDS | D17: SILKON TRADES LLP | E17: SELL | F17: 1,655 | G17: 174.95 | H17: BSE
A18: 2020-08-28 | B18: 532467 | C18: HAZOOR | D18: EAUGU UDYOG LIMITED | E18: SELL | F18: 190,000 | G18: 0.48 | H18: BSE
A19: 2020-08-28 | B19: 541627 | C19: HITECHWIND | D19: KARAN BHARATBHAI KAHAR | E19: BUY | F19: 10,827 | G19: 15.03 | H19: BSE
A20: 2020-08-28 | B20: 541627 | C20: HITECHWIND | D20: KARAN BHARATBHAI KAHAR | E20: SELL | F20: 28,455 | G20: 15.01 | H20: BSE
A21: 2020-08-28 | B21: 541627 | C21: HITECHWIND | D21: VISHNU B SHARMA | E21: BUY | F21: 28,402 | G21: 15.01 | H21: BSE
A22: 2020-08-28 | B22: 541627 | C22: HITECHWIND | D22: VISHNU B SHARMA | E22: SELL | F22: 1,700 | G22: 15.5 | H22: BSE
A23: 2020-08-28 | B23: 539097 | C23: HKG | D23: ANUPAM GUPTA HUF | E23: BUY | F23: 20,000 | G23: 140 | H23: BSE
A24: 2020-08-28 | B24: 540515 | C24: KANUNGO | D24: KEVAL SAVANT | E24: SELL | F24: 25,000 | G24: 12.9 | H24: BSE
A25: 2020-08-28 | B25: 500298 | C25: NATPEROX | D25: THE BOMBAY BURMAH TRADING CORPORATION LTD | E25: BUY | F25: 224,000 | G25: 2187.3 | H25: BSE
A26: 2020-08-28 | B26: 500298 | C26: NATPEROX | D26: THE BOMBAY DYEING AND MANUFACTURING COMPANY LTD | E26: SELL | F26: 224,000 | G26: 2187.3 | H26: BSE
A27: 2020-08-28 | B27: 512217 | C27: PRISMMEDI | D27: MANISH NITIN THAKUR | E27: BUY | F27: 9,523 | G27: 13.93 | H27: BSE
A28: 2020-08-28 | B28: 512217 | C28: PRISMMEDI | D28: MANISH NITIN THAKUR | E28: SELL | F28: 55,523 | G28: 13.52 | H28: BSE
A29: 2020-08-28 | B29: 512217 | C29: PRISMMEDI | D29: ADITYA SOLANKI | E29: BUY | F29: 60,000 | G29: 13.51 | H29: BSE
A30: 2020-08-28 | B30: 513043 | C30: REMIEDEL | D30: BAJRANG FINANCE LIMITED | E30: BUY | F30: 500,467 | G30: 16.8 | H30: BSE
A31: 2020-08-28 | B31: 513043 | C31: REMIEDEL | D31: HANUMAN FORGING AND ENGINEERING PRIVATE LIMITED | E31: SELL | F31: 500,000 | G31: 16.8 | H31: BSE
A32: 2020-08-28 | B32: 540203 | C32: SFL | D32: DSP MUTUAL FUND | E32: BUY | F32: 590,000 | G32: 1365 | H32: BSE
A33: 2020-08-28 | B33: 540203 | C33: SFL | D33: TUSHAAR GAUTAM | E33: SELL | F33: 1,000,000 | G33: 1365 | H33: BSE
A34: 2020-08-28 | B34: 517201 | C34: SWITCHTE | D34: RADHEY SHYAM MITTAL | E34: BUY | F34: 15,000 | G34: 30.8 | H34: BSE
A35: 2020-08-28 | B35: 517201 | C35: SWITCHTE | D35: MADHU BALA MITTAL | E35: SELL | F35: 15,000 | G35: 30.8 | H35: BSE
A36: 2020-08-28 | B36: 538607 | C36: TOYAMIND | D36: CHAITANYA DEEPAK VAIDYA | E36: BUY | F36: 1,200,000 | G36: 4.65 | H36: BSE
A37: 2020-08-28 | B37: 538607 | C37: TOYAMIND | D37: TALISMAN SECURITIES PRIVATE LIMITED | E37: SELL | F37: 1,624,000 | G37: 4.65 | H37: BSE
A38: 2020-08-28 | B38: 539222 | C38: VMV | D38: DEVISANJAYBHANDARI | E38: BUY | F38: 30,000 | G38: 38.45 | H38: BSE
A39: 2020-08-28 | B39: 539222 | C39: VMV | D39: DEVISANJAYBHANDARI | E39: SELL | F39: 30,000 | G39: 38.88 | H39: BSE
A40: 2020-08-28 | B40: AKASH | C40: Akash Infra-Projects Ltd | D40: SILKON TRADES LLP | E40: BUY | F40: 2,828 | G40: 215.33 | H40: NSE
A41: 2020-08-28 | B41: FEDERALBNK | C41: Federal Bank Ltd. | D41: TOWER RESEARCH CAPITAL MARKETS INDIA PRIVATE LIMITED | E41: BUY | F41: 13,310,704 | G41: 59.51 | H41: NSE
A42: 2020-08-28 | B42: HARRMALAYA | C42: Harrisons Malayalam Ltd | D42: ORION STOCKS LTD | E42: BUY | F42: 121,746 | G42: 101.08 | H42: NSE
A43: 2020-08-28 | B43: IDEA | C43: Vodafone Idea Limited | D43: HRTI PRIVATE LIMITED | E43: BUY | F43: 180,928,006 | G43: 9.83 | H43: NSE
A44: 2020-08-28 | B44: IEX | C44: Indian Energy Exc Ltd | D44: PPFAS MUTUAL FUND A/C PPFAS LONG TERM VALUE FUND | E44: BUY | F44: 2,437,780 | G44: 190 | H44: NSE
A45: 2020-08-28 | B45: INDTERRAIN | C45: Ind Terrain Fashions Ltd | D45: RADHEY HEALTH CARE PRIVATE LIMITED | E45: BUY | F45: 330,886 | G45: 34.96 | H45: NSE
A46: 2020-08-28 | B46: MAANALU | C46: Maan Aluminium Limited | D46: ASHOK KUMAR GUPTA HUF | E46: BUY | F46: 23,609 | G46: 77.44 | H46: NSE
A47: 2020-08-28 | B47: MANGALAM | C47: Mangalam Drugs And Organi | D47: ALPHA LEON ENTERPRISES LLP | E47: BUY | F47: 84,191 | G47: 155.32 | H47: NSE
A48: 2020-08-28 | B48: MARINE | C48: Marine Electrical (I) Ltd | D48: SHREE SHIVSHAKTI PROJECT CONSULTANT PRIVATE LIMITE | E48: BUY | F48: 154,000 | G48: 104.67 | H48: NSE
A49: 2020-08-28 | B49: NDRAUTO | C49: NDR Auto Components Ltd | D49: ALPHA LEON ENTERPRISES LLP | E49: BUY | F49: 27,428 | G49: 206.05 | H49: NSE
A50: 2020-08-28 | B50: PATINTLOG | C50: Patel Integrated Logistic | D50: KONARK TOWERS PRIVATE LIMITED | E50: BUY | F50: 88,659 | G50: 31.35 | H50: NSE
A51: 2020-08-28 | B51: PATINTLOG | C51: Patel Integrated Logistic | D51: PANGHAT BARTER PRIVATE LIMITED | E51: BUY | F51: 89,950 | G51: 30.11 | H51: NSE
A52: 2020-08-28 | B52: PATINTLOG | C52: Patel Integrated Logistic | D52: ASHPRA ENTERPRISE | E52: BUY | F52: 82,946 | G52: 31.32 | H52: NSE
A53: 2020-08-28 | B53: PATINTLOG | C53: Patel Integrated Logistic | D53: RISHABH STOCKS PRIVATE LIMITED | E53: BUY | F53: 87,500 | G53: 31.51 | H53: NSE
A54: 2020-08-28 | B54: RBLBANK | C54: RBL Bank Limited | D54: TOWER RESEARCH CAPITAL MARKETS INDIA PRIVATE LIMITED | E54: BUY | F54: 3,587,914 | G54: 210.55 | H54: NSE
A55: 2020-08-28 | B55: SAIL | C55: Steel Authority of India | D55: HRTI PRIVATE LIMITED | E55: BUY | F55: 28,796,189 | G55: 41.52 | H55: NSE
A56: 2020-08-28 | B56: SOUTHBANK | C56: South Indian Bank Ltd. | D56: HI GROWTH CORPORATE SERVICES PVT LTD | E56: BUY | F56: 9,285,000 | G56: 7.63 | H56: NSE
A57: 2020-08-28 | B57: ZEEMEDIA | C57: Zee News Limited | D57: ALPHA LEON ENTERPRISES LLP | E57: BUY | F57: 2,589,361 | G57: 7 | H57: NSE
A58: 2020-08-28 | B58: AKASH | C58: Akash Infra-Projects Ltd | D58: SILKON TRADES LLP | E58: SELL | F58: 92,001 | G58: 215.21 | H58: NSE
A59: 2020-08-28 | B59: FEDERALBNK | C59: Federal Bank Ltd. | D59: TOWER RESEARCH CAPITAL MARKETS INDIA PRIVATE LIMITED | E59: SELL | F59: 13,709,118 | G59: 59.65 | H59: NSE
A60: 2020-08-28 | B60: HARRMALAYA | C60: Harrisons Malayalam Ltd | D60: ORION STOCKS LTD | E60: SELL | F60: 102,303 | G60: 100.28 | H60: NSE
A61: 2020-08-28 | B61: IDEA | C61: Vodafone Idea Limited | D61: HRTI PRIVATE LIMITED | E61: SELL | F61: 180,928,006 | G61: 9.83 | H61: NSE
A62: 2020-08-28 | B62: IEX | C62: Indian Energy Exc Ltd | D62: RURAL ELECTRIFICATION CORPORATION LIMITED | E62: SELL | F62: 2,601,205 | G62: 190.12 | H62: NSE
A63: 2020-08-28 | B63: INDTERRAIN | C63: Ind Terrain Fashions Ltd | D63: RADHEY HEALTH CARE PRIVATE LIMITED | E63: SELL | F63: 150,000 | G63: 35.22 | H63: NSE
A64: 2020-08-28 | B64: ISEC | C64: ICICI Securities Limited | D64: ICICI BANK LTD. (INVESTMENT) | E64: SELL | F64: 6,442,000 | G64: 480.95 | H64: NSE
A65: 2020-08-28 | B65: MAANALU | C65: Maan Aluminium Limited | D65: ASHOK KUMAR GUPTA HUF | E65: SELL | F65: 37,001 | G65: 78.63 | H65: NSE
A66: 2020-08-28 | B66: MANGALAM | C66: Mangalam Drugs And Organi | D66: ALPHA LEON ENTERPRISES LLP | E66: SELL | F66: 71,680 | G66: 154.83 | H66: NSE
A67: 2020-08-28 | B67: MARINE | C67: Marine Electrical (I) Ltd | D67: SHREE SHIVSHAKTI PROJECT CONSULTANT PRIVATE LIMITE | E67: SELL | F67: 148,000 | G67: 105.54 | H67: NSE
A68: 2020-08-28 | B68: NDRAUTO | C68: NDR Auto Components Ltd | D68: ALPHA LEON ENTERPRISES LLP | E68: SELL | F68: 30,928 | G68: 224.58 | H68: NSE
A69: 2020-08-28 | B69: PATINTLOG | C69: Patel Integrated Logistic | D69: PANGHAT BARTER PRIVATE LIMITED | E69: SELL | F69: 10,000 | G69: 32.3 | H69: NSE
A70: 2020-08-28 | B70: PATINTLOG | C70: Patel Integrated Logistic | D70: CENTRAL BANK OF INDIA (CAPITAL MARKET SERVICE BRANCH) | E70: SELL | F70: 785,500 | G70: 31.08 | H70: NSE
A71: 2020-08-28 | B71: PATINTLOG | C71: Patel Integrated Logistic | D71: RISHABH STOCKS PRIVATE LIMITED | E71: SELL | F71: 14,612 | G71: 30.2 | H71: NSE
A72: 2020-08-28 | B72: PATINTLOG | C72: Patel Integrated Logistic | D72: KONARK TOWERS PRIVATE LIMITED | E72: SELL | F72: 18,659 | G72: 29.11 | H72: NSE
A73: 2020-08-28 | B73: RBLBANK | C73: RBL Bank Limited | D73: TOWER RESEARCH CAPITAL MARKETS INDIA PRIVATE LIMITED | E73: SELL | F73: 3,609,543 | G73: 210.65 | H73: NSE
A74: 2020-08-28 | B74: SAIL | C74: Steel Authority of India | D74: HRTI PRIVATE LIMITED | E74: SELL | F74: 28,796,189 | G74: 41.47 | H74: NSE
A75: 2020-08-28 | B75: SOUTHBANK | C75: South Indian Bank Ltd. | D75: HI GROWTH CORPORATE SERVICES PVT LTD | E75: SELL | F75: 8,871,000 | G75: 7.63 | H75: NSE
A76: 2020-08-28 | B76: ZEEMEDIA | C76: Zee News Limited | D76: ALPHA LEON ENTERPRISES LLP | E76: SELL | F76: 2,300,361 | G76: 7 | H76: NSE

Sheet Call Tracker (Equity & F&O)
M5: Back To Main Page
A6: Retail Research Technical Calls & Fundamental Performance Report for the month of Aug-2020
M7: =Main!B10 -> 2020-08-31
B8: Positional Call
A9: Sr.no | B9: Date | D9: Company | E9: Rec | F9: Rec Price | G9: Stop Loss*** | H9: Call Closed At | I9: Target | J9: Remark | K9: Profit / Loss per Share | L9: All charges | M9: Net Gain / Loss % | N9: Status | O9: Closed Date
A10: 1 | B10: 2020-06-29 | D10: BATAINDIA | E10: Buy<> | F10: 1296 | G10: 1,231.00 | H10: 1,338.00 | I10: 1400-1450 | J10: Profit of Rs.42/- | K10: =H10-F10 -> 42 | L10: =(F10*-0.8)/100 -> -10.37 | M10: =(K10+L10)/F10 -> 2.44% | N10: Successful | O10: 2020-08-24 | R10: H
A11: 2 | B11: 2020-07-02 | D11: LT | E11: Buy<> | F11: 932 | G11: 874.00 | H11: 986.00 | I11: 1030-1070 | J11: Profit of Rs.54/- | K11: 54 | L11: -7.46 | M11: =(K11+L11)/F11 -> 4.99% | N11: Successful | O11: 2020-08-13 | R11: H
A12: 3 | B12: 2020-07-06 | D12: VINATIORGA | E12: Buy | F12: 1000 | G12: 935.00 | H12: 1,055.00 | I12: 1080-1120 | J12: Profit of Rs.55/- | K12: =H12-F12 -> 55 | L12: -8.00 | M12: =(K12+L12)/F12 -> 4.70% | N12: Successful | O12: 2020-08-21 | R12: N
A13: 4 | B13: 2020-07-10 | D13: CUMMINSIND | E13: Buy | F13: 396 | G13: 370.00 | H13: 420.00 | I13: 440-450 | J13: Profit of Rs.24/- | K13: 24 | L13: -3.17 | M13: 5.26% | N13: Successful | O13: 2020-08-07 | R13: N
A14: 5 | B14: 2020-07-14 | D14: ENGINERSIN | E14: Buy{} | F14: 70.5 | G14: 64.50 | H14: 69.25 | I14: 80-84 | J14: Loss of Rs.1.25/- | K14: =H14-F14 -> -1.25 | L14: =(F14*-0.8)/100 -> -0.56 | M14: =(K14+L14)/F14 -> -2.57% | N14: Unsuccessful | O14: 2020-08-03 | R14: H
A15: 6 | B15: 2020-07-22 | D15: NESTLEIND | E15: Buy | F15: 17000-17060 | G15: 15950 | I15: 18500-19000 | J15: Open | R15: H
A16: 7 | B16: 2020-07-27 | D16: EXIDEIND | E16: Buy | F16: 155 | G16: 145 | H16: 155.00 | I16: 175 | J16: Neutral | K16: =H16-F16 -> 0 | L16: =(F16*-0.8)/100 -> -1.24 | M16: =(K16+L16)/F16 -> -0.80% | N16: Neutral | O16: 2020-08-03 | R16: N
A17: 8 | B17: 2020-07-29 | D17: CROMPTON | E17: Buy | F17: 245 | G17: 230.00 | H17: 262.00 | I17: 275 | J17: Profit of Rs.17/- | K17: 17 | L17: -1.96 | M17: 6.14% | N17: Successful | O17: 2020-08-06 | R17: N
A18: 9 | B18: 2020-08-03 | D18: SUNPHARMA | E18: Buy | F18: 520 | G18: 478.00 | H18: 559.00 | I18: 580-600 | J18: Profit of Rs.39/- | K18: 39 | L18: -4.16 | M18: 6.70% | N18: Successful | O18: 2020-08-28 | R18: H
A19: 10 | B19: 2020-08-05 | D19: BHARATFORG | E19: Buy | F19: 398 | G19: 374.00 | H19: 430.00 | I19: 450 | J19: Profit of Rs.32/- | K19: =H19-F19 -> 32 | L19: =(F19*-0.8)/100 -> -3.18 | M19: =(K19+L19)/F19 -> 7.24% | N19: Successful | O19: 2020-08-10 | R19: N
A20: 11 | B20: 2020-08-06 | D20: EXIDEIND | E20: Buy | F20: 153 | G20: 141.00 | H20: 162.50 | I20: 175 | J20: Profit of Rs.9.5/- | K20: =H20-F20 -> 9.5 | L20: =(F20*-0.8)/100 -> -1.22 | M20: =(K20+L20)/F20 -> 5.41% | N20: Successful | O20: 2020-08-07 | R20: N
A21: 12 | B21: 2020-08-10 | D21: ASIANPAINT | E21: Buy | F21: 1790 | G21: 1,695.00 | H21: 1,895.00 | I21: 1950-2000 | J21: Profit of Rs.105/- | K21: 105 | L21: -14.32 | M21: 5.07% | N21: Successful | O21: 2020-08-19 | R21: H
A22: 13 | B22: 2020-08-10 | D22: ULTRACEMCO | E22: Buy | F22: 3975 | G22: 3,720.00 | H22: 4,205.00 | I22: 4400-4500 | J22: Profit of Rs.230/- | K22: 230 | L22: -31.80 | M22: 4.99% | N22: Successful | O22: 2020-08-19 | R22: H
A23: 14 | B23: 2020-08-10 | D23: MGL | E23: Buy | F23: 957 | G23: 895.00 | H23: 1,012.50 | I23: 1050-1070 | J23: Profit of Rs.55.5/- | K23: =H23-F23 -> 55.5 | L23: =(F23*-0.8)/100 -> -7.66 | M23: =(K23+L23)/F23 -> 5.00% | N23: Successful | O23: 2020-08-20 | R23: N
A24: 15 | B24: 2020-08-13 | D24: SUPREMEIND | E24: Buy | F24: 1203 | G24: 1,140.00 | H24: 1,275.00 | I24: 1300-1320 | J24: Profit of Rs.72/- | K24: 72 | L24: -9.62 | M24: 5.19% | N24: Successful | O24: 2020-08-19 | R24: H
A25: 16 | B25: 2020-08-14 | D25: CONCOR | E25: Buy | F25: 376 | G25: 349.00 | H25: 397.50 | I25: 420-430 | J25: Profit of Rs.21.5/- | K25: 21.5 | L25: -3.01 | M25: 4.92% | N25: Successful | O25: 2020-08-19 | R25: N
A26: 17 | B26: 2020-08-14 | D26: ITC | E26: Buy | F26: 197.5-198.5 | G26: 187 | I26: 218-220 | J26: Open | R26: A
A27: 18 | B27: 2020-08-14 | D27: BPCL | E27: Sell | F27: 412.50 | G27: 438 | H27: 405.00 | I27: 370-360 | J27: Profit of Rs.7.5/- | K27: =F27-H27 -> 7.5 | L27: =(F27*-0.8)/100 -> -3.30 | M27: =(K27+L27)/F27 -> 1.02% | N27: Neutral | O27: 2020-08-20 | R27: A
A28: 19 | B28: 2020-08-14 | D28: HEROMOTOCO | E28: Sell | F28: 2790 | G28: 2930 | H28: 2930 | I28: 2650-2600 | J28: Loss of Rs.140/- | K28: =F28-H28 -> -140 | L28: =(F28*-0.8)/100 -> -22.32 | M28: =(K28+L28)/F28 -> -5.82% | N28: Unsuccessful | O28: 2020-08-17 | R28: A
A29: 20 | B29: 2020-08-17 | D29: PIDILITIND | E29: Buy | F29: 1360 | G29: 1,280.00 | H29: 1,440.00 | I29: 1500-1530 | J29: Profit of Rs.80/- | K29: =H29-F29 -> 80 | L29: =(F29*-0.8)/100 -> -10.88 | M29: 5.08% | N29: Successful | O29: 2020-08-19 | R29: N
A30: 21 | B30: 2020-08-19 | D30: WHIRLPOOL | E30: Buy | F30: 2005 | G30: 1,870.00 | H30: 2,135.00 | I30: 2200-2300 | J30: Profit of Rs.130/- | K30: =H30-F30 -> 130 | L30: =(F30*-0.8)/100 -> -16.04 | M30: =(K30+L30)/F30 -> 5.68% | N30: Successful | O30: 2020-08-21 | R30: H
A31: 22 | B31: 2020-08-20 | D31: THERMAX | E31: Buy | F31: 785 | G31: 730.00 | H31: 825.00 | I31: 880-900 | J31: Part Profit of Rs.40/- | K31: 40 | L31: -6.28 | M31: 4.30% | N31: Successful | O31: 2020-08-21 | R31: H
A32: 23 | B32: 2020-08-21 | D32: INDIACEM | E32: Buy | F32: 117.5 | G32: 110.00 | H32: 124.50 | I32: 130-135 | J32: Profit of Rs.7/- | K32: =H32-F32 -> 7 | L32: =(F32*-0.8)/100 -> -0.94 | M32: =(K32+L32)/F32 -> 5.16% | N32: Successful | O32: 2020-08-27 | R32: H
A33: 24 | B33: 2020-08-21 | D33: VGUARD | E33: Buy | F33: 172 | G33: 160.00 | H33: 180.50 | I33: 195 | J33: Part Profit of Rs.8.5/- | K33: =H33-F33 -> 8.5 | L33: =(F33*-0.8)/100 -> -1.38 | M33: =(K33+L33)/F33 -> 4.14% | N33: Successful | O33: 2020-08-27 | R33: N
A34: 25 | B34: 2020-08-25 | D34: MIDHANI | E34: Buy | F34: 226-229 | G34: 217 | I34: 245-250 | J34: Open | R34: H
A35: 26 | B35: 2020-08-28 | D35: GSPL | E35: Buy | F35: 213-215 | G35: 199 | I35: 235-245 | J35: Open | R35: H
A36: 27 | B36: 2020-08-28 | D36: PEL | E36: Buy | F36: 1510-1520 | G36: 1415 | I36: 1700-1730 | J36: Open | R36: N
A37: 28 | B37: 2020-08-28 | D37: WHIRLPOOL | E37: Buy | F37: 2135-2150 | G37: 1980 | I37: 2400-2500 | J37: Open | R37: H
A39: CLBS = Closing Basis ***
A40: Dividend adjusted <> | F40: Reinitiated $
A41: Part book {} | F41: Revised stoploss #
B43: Momentum Call
A44: Sr.no | B44: Date | D44: Company | E44: Rec | F44: Rec Price | G44: Stop Loss | H44: Call Closed At | I44: Target | J44: Remark | K44: Profit / Loss per Share/Lot | L44: All charges | M44: Net Gain / Loss % | N44: Status | O44: Closed Date
A45: 1 | B45: 2020-07-30 | D45: CONCOR | E45: Buy | F45: 446.5 | G45: 431 | H45: 463 | I45: 475 | J45: Profit of Rs.16.5/- | K45: =H45-F45 -> 16.5 | L45: =(F45*-0.8)/100 -> -3.57 | M45: =(K45+L45)/F45 -> 2.90% | N45: Successful | O45: 2020-08-04 | R45: N
A46: 2 | B46: 2020-07-31 | D46: BEML | E46: Buy | F46: 641 | G46: 625 | H46: 657 | I46: 670-675 | J46: Profit of Rs.16/- | K46: 16 | L46: -5.13 | M46: 1.70% | N46: Successful | O46: 2020-08-04 | R46: N
A47: 3 | B47: 2020-07-31 | D47: BIOCON | E47: Buy | F47: 410 | G47: 399 | H47: 399 | I47: 430 | J47: Loss of Rs.11/- | K47: -11 | L47: -3.28 | M47: -3.48% | N47: Unsuccessful | O47: 2020-08-07 | R47: N
A48: 4 | B48: 2020-08-03 | D48: BHARTIARTL | E48: Buy | F48: 551 | G48: 534 | H48: 564 | I48: 575-580 | J48: Profit of Rs.13/- | K48: 13 | L48: -4.41 | M48: 1.56% | N48: Successful | O48: 2020-08-10 | R48: H
A49: 5 | B49: 2020-08-03 | D49: CIPLA | E49: Buy | F49: 705 | G49: 688 | H49: 717 | I49: 730-735 | J49: Profit of Rs.12/- | K49: =H49-F49 -> 12 | L49: =(F49*-0.07)/100 -> -0.49 | M49: =(K49+L49)/F49 -> 1.63% | N49: Successful | O49: 2020-08-03 | R49: H
A50: 6 | B50: 2020-08-03 | D50: TCS | E50: Buy | F50: 2247.5 | G50: 2190 | H50: 2299.5 | I50: 2350 | J50: Profit of Rs.52/- | K50: 52 | L50: =(F50*-0.8)/100 -> -17.98 | M50: 1.51% | N50: Successful | O50: 2020-08-05 | R50: N
A51: 7 | B51: 2020-08-03 | D51: HDFCBANK | E51: Buy | F51: 1001 | G51: 970 | H51: 1034 | I51: 1050-1060 | J51: Profit of Rs.33/- | K51: =H51-F51 -> 33 | L51: =(F51*-0.8)/100 -> -8.01 | M51: =(K51+L51)/F51 -> 2.50% | N51: Successful | O51: 2020-08-04 | R51: H
A52: 8 | B52: 2020-08-04 | D52: PGHL | E52: Buy | F52: 4385 | G52: 4280 | H52: 4490 | I52: 4600-4650 | J52: Profit of Rs.105/- | K52: =H52-F52 -> 105 | L52: =(F52*-0.8)/100 -> -35.08 | M52: =(K52+L52)/F52 -> 1.59% | N52: Successful | O52: 2020-08-07 | R52: H
A53: 9 | B53: 2020-08-05 | D53: DABUR | E53: Buy | F53: 504 | G53: 489 | H53: 518 | I53: 520-530 | J53: Profit of Rs.14/- | K53: =H53-F53 -> 14 | L53: =(F53*-0.8)/100 -> -4.03 | M53: =(K53+L53)/F53 -> 1.98% | N53: Successful | O53: 2020-08-10 | R53: H
A54: 10 | B54: 2020-08-05 | D54: CENTURYTEX | E54: Buy | F54: 299 | G54: 290 | H54: 304 | I54: 320 | J54: Profit of Rs.5/- | K54: =H54-F54 -> 5 | L54: =(F54*-0.07)/100 -> -0.21 | M54: =(K54+L54)/F54 -> 1.60% | N54: Successful | O54: 2020-08-05 | R54: N
A55: 11 | B55: 2020-08-07 | D55: TATASTEEL | E55: Sell | F55: 403 | G55: 415 | H55: 417 | I55: 385-380 | J55: Loss of Rs.14/- | K55: =F55-H55 -> -14 | L55: =(F55*-0.8)/100 -> -3.22 | M55: -4.27% | N55: Unsuccessful | O55: 2020-08-11 | R55: H
A56: 12 | B56: 2020-08-07 | D56: FINCABLES | E56: Buy | F56: 273 | G56: 264 | H56: 281.5 | I56: 294 | J56: Profit of Rs.8.5/- | K56: =H56-F56 -> 8.5 | L56: =(F56*-0.8)/100 -> -2.18 | M56: 2.31% | N56: Successful | O56: 2020-08-14 | R56: N
A57: 13 | B57: 2020-08-10 | D57: UBL | E57: Buy | F57: 963 | G57: 938 | H57: 986.5 | I57: 1000-1010 | J57: Profit of Rs.23.5/- | K57: =H57-F57 -> 23.5 | L57: =(F57*-0.8)/100 -> -7.70 | M57: =(K57+L57)/F57 -> 1.64% | N57: Successful | O57: 2020-08-13 | R57: H
A58: 14 | B58: 2020-08-10 | D58: GODREJPROP | E58: Buy | F58: 895 | G58: 868 | H58: 868 | I58: 940 | J58: Loss of Rs.27/- | K58: -27 | L58: -7.16 | M58: -3.82% | N58: Unsuccessful | O58: 2020-08-07 | R58: N
A59: 15 | B59: 2020-08-10 | D59: PGHL | E59: Buy | F59: 4510 | G59: 4350 | H59: 4640 | I59: 4800-4900 | J59: Profit of Rs.130/- | K59: =H59-F59 -> 130 | L59: =(F59*-0.8)/100 -> -36.08 | M59: =(K59+L59)/F59 -> 2.08% | N59: Successful | O59: 2020-08-11 | R59: H
A60: 16 | B60: 2020-08-10 | D60: IGL | E60: Buy | F60: 389.5 | G60: 378 | H60: 403 | I60: 410 | J60: Profit of Rs.13.5/- | K60: =H60-F60 -> 13.5 | L60: =(F60*-0.8)/100 -> -3.12 | M60: =(K60+L60)/F60 -> 2.67% | N60: Successful | O60: 2020-08-13 | R60: H
A61: 17 | B61: 2020-08-12 | D61: IRCTC | E61: Buy | F61: 1355 | G61: 1315 | H61: 1375 | I61: 1400-1420 | J61: Profit of Rs.20/- | K61: =H61-F61 -> 20 | L61: =(F61*-0.07)/100 -> -0.95 | M61: =(K61+L61)/F61 -> 1.41% | N61: Successful | O61: 2020-08-12 | R61: H
A62: 18 | B62: 2020-08-12 | D62: CROMPTON | E62: Buy | F62: 253.5 | G62: 245 | H62: 262.5 | I62: 265-270 | J62: Profit of Rs.9/- | K62: 9 | L62: =(F62*-0.8)/100 -> -2.03 | M62: 2.75% | N62: Successful | O62: 2020-08-18 | R62: N
A63: 19 | B63: 2020-08-13 | D63: BHARTIARTL | E63: Buy | F63: 533 | G63: 519 | H63: 544.5 | I63: 555-560 | J63: Profit of Rs.11.5/- | K63: =H63-F63 -> 11.5 | L63: =(F63*-0.07)/100 -> -0.37 | M63: =(K63+L63)/F63 -> 2.09% | N63: Successful | O63: 2020-08-13 | R63: H
A64: 20 | B64: 2020-08-13 | D64: IGL | E64: Buy | F64: 396 | G64: 385 | H64: 406 | I64: 415-420 | J64: Profit of Rs.10/- | K64: 10 | L64: =(F64*-0.8)/100 -> -3.17 | M64: 1.73% | N64: Successful | O64: 2020-08-20 | R64: H
A65: 21 | B65: 2020-08-14 | D65: CADILAHC | E65: Buy | F65: 390.5 | G65: 379.5 | H65: 397.5 | I65: 405-410 | J65: Profit of Rs.7/- | K65: =H65-F65 -> 7 | L65: =(F65*-0.07)/100 -> -0.27 | M65: =(K65+L65)/F65 -> 1.72% | N65: Successful | O65: 2020-08-14 | R65: H
A66: 22 | B66: 2020-08-14 | D66: TORNTPHARM | E66: Buy | F66: 2825 | G66: 2760 | H66: 2875 | I66: 2900-2950 | J66: Profit of Rs.50/- | K66: =H66-F66 -> 50 | L66: =(F66*-0.07)/100 -> -1.98 | M66: =(K66+L66)/F66 -> 1.70% | N66: Successful | O66: 2020-08-14 | R66: N
A67: 23 | B67: 2020-08-14 | D67: TATASTEEL | E67: Sell | F67: 430.5 | G67: 445 | H67: 422 | I67: 410-400 | J67: Profit of Rs.8.5/- | K67: =F67-H67 -> 8.5 | L67: =(F67*-0.07)/100 -> -0.30 | M67: 1.90% | N67: Successful | O67: 2020-08-14 | R67: H
A68: 24 | B68: 2020-08-17 | D68: LICHSGFIN | E68: Sell | F68: 267.5 | G68: 274 | H68: 266.5 | I68: 255-250 | J68: Profit of Rs.1/- | K68: =F68-H68 -> 1 | L68: =(F68*-0.07)/100 -> -0.19 | M68: =(K68+L68)/F68 -> 0.30% | N68: Neutral | O68: 2020-08-17 | R68: H
A69: 25 | B69: 2020-08-17 | D69: CENTURYTEXT | E69: Buy | F69: 310 | G69: 300 | H69: 315 | I69: 325-330 | J69: Profit of Rs.5/- | K69: =H69-F69 -> 5 | L69: =(F69*-0.07)/100 -> -0.22 | M69: 1.54% | N69: Successful | O69: 2020-08-17 | R69: H
A70: 26 | B70: 2020-08-17 | D70: TATASTEEL | E70: Sell | F70: 425.5 | G70: 435 | H70: 424.5 | I70: 410-400 | J70: Profit of Rs.1/- | K70: =F70-H70 -> 1 | L70: =(F70*-0.7)/100 -> -2.98 | M70: =(K70+L70)/F70 -> -0.46% | N70: Neutral | O70: 2020-08-25 | R70: H
A71: 27 | B71: 2020-08-19 | D71: BATAINDIA | E71: Buy | F71: 1260 | G71: 1220 | H71: 1290 | I71: 1330 | J71: Profit of Rs.30/- | K71: =H71-F71 -> 30 | L71: =(F71*-0.8)/100 -> -10.08 | M71: =(K71+L71)/F71 -> 1.58% | N71: Successful | O71: 2020-08-20 | R71: N
A72: 28 | B72: 2020-08-19 | D72: BHARTIARTL | E72: Buy | F72: 532 | G72: 515 | H72: 514 | I72: 555-565 | J72: Loss of Rs.18/- | K72: -18 | L72: -4.26 | M72: -4.18% | N72: Unsuccessful | O72: 2020-08-24 | R72: H
A73: 29 | B73: 2020-08-19 | D73: BHARATFORG | E73: Buy | F73: 496 | G73: 481 | H73: 508 | I73: 520 | J73: Profit of Rs.12/- | K73: =H73-F73 -> 12 | L73: =(F73*-0.8)/100 -> -3.97 | M73: =(K73+L73)/F73 -> 1.62% | N73: Successful | O73: 2020-08-24 | R73: N
A74: 30 | B74: 2020-08-19 | D74: BANKBARODA | E74: Buy | F74: 47.15 | G74: 45.8 | H74: 48.25 | I74: 49-50 | J74: Profit of Rs.1.1/- | K74: =H74-F74 -> 1.1 | L74: =(F74*-0.8)/100 -> -0.38 | M74: =(K74+L74)/F74 -> 1.53% | N74: Successful | O74: 2020-08-21 | R74: H
A75: 31 | B75: 2020-08-19 | D75: VGUARD | E75: Buy | F75: 164.25 | G75: 159.8 | H75: 167.75 | I75: 172 | J75: Profit of Rs.3.5/- | K75: =H75-F75 -> 3.5 | L75: =(F75*-0.07)/100 -> -0.11 | M75: =(K75+L75)/F75 -> 2.06% | N75: Successful | O75: 2020-08-19 | R75: N
A76: 32 | B76: 2020-08-20 | D76: ASTERDM | E76: Buy | F76: 133.5 | G76: 129.5 | H76: 136.25 | I76: 140-142 | J76: Profit of Rs.2.75/- | K76: =H76-F76 -> 2.75 | L76: =(F76*-0.07)/100 -> -0.09 | M76: =(K76+L76)/F76 -> 1.99% | N76: Successful | O76: 2020-08-20 | R76: N
A77: 33 | B77: 2020-08-20 | D77: HINDALCO | E77: Sell | F77: 199.5 | G77: 205 | H77: 194.5 | I77: 192-190 | J77: Profit of Rs.5/- | K77: =F77-H77 -> 5 | L77: =(F77*-0.8)/100 -> -1.60 | M77: 1.71% | N77: Successful | O77: 2020-08-24 | R77: H
A78: 34 | B78: 2020-08-21 | D78: JYOTHYLAB | E78: Buy | F78: 151.5 | G78: 147 | H78: 147.5 | I78: 158-160 | J78: Loss of Rs.4/- | K78: =H78-F78 -> -4 | L78: =(F78*-0.8)/100 -> -1.21 | M78: -3.44% | N78: Unsuccessful | O78: 2020-08-24 | R78: N
A79: 35 | B79: 2020-08-21 | D79: DABUR | E79: Buy | F79: 491-493 | G79: 477 | I79: 510-515 | J79: Open | R79: H
A80: 36 | B80: 2020-08-24 | D80: HINDPETRO | E80: Buy | F80: 212-213 | G80: 207 | I80: 224 | J80: Open | R80: N
A81: 37 | B81: 2020-08-25 | D81: HINDUNILVR | E81: Buy | F81: 2200 | G81: 2150 | H81: 2153.5 | I81: 2300 | J81: Loss of Rs.46.5/- | K81: =H81-F81 -> -46.5 | L81: =(F81*-0.8)/100 -> -17.60 | M81: =(K81+L81)/F81 -> -2.91% | N81: Unsuccessful | O81: 2020-08-28 | R81: N | S81: 5
A82: 38 | B82: 2020-08-25 | D82: TCS | E82: Buy | F82: 2255 | G82: 2190 | H82: 2272.5 | I82: 2350 | J82: Profit of Rs.17.5/- | K82: =H82-F82 -> 17.5 | L82: =(F82*-0.8)/100 -> -18.04 | M82: =(K82+L82)/F82 -> -0.02% | N82: Neutral | O82: 2020-08-27 | R82: N | S82: 17
A83: 39 | B83: 2020-08-25 | D83: VIPIND | E83: Buy | F83: 293.5 | G83: 287 | H83: 287 | I83: 305 | J83: Loss of Rs.6.5/- | K83: =H83-F83 -> -6.5 | L83: =(F83*-0.07)/100 -> -0.21 | M83: =(K83+L83)/F83 -> -2.28% | N83: Unsuccessful | O83: 2020-08-25 | R83: N
A84: 40 | B84: 2020-08-26 | D84: CEATLTD | E84: Buy | F84: 902.5 | G84: 870 | H84: 927.5 | I84: 960 | J84: Profit of Rs.25/- | K84: 25 | L84: =(F84*-0.07)/100 -> -0.63 | M84: 2.70% | N84: Successful | O84: 2020-08-26 | R84: N
A85: 41 | B85: 2020-08-27 | D85: HDFC | E85: Buy | F85: 1850 | G85: 1810 | H85: 1880 | I85: 1920-1940 | J85: Profit of Rs.30/- | K85: =H85-F85 -> 30 | L85: =(F85*-0.07)/100 -> -1.30 | M85: =(K85+L85)/F85 -> 1.55% | N85: Successful | O85: 2020-08-27 | R85: H
A86: 42 | B86: 2020-08-27 | D86: TORNTPHARM | E86: Buy | F86: 2765-2770 | G86: 2685 | I86: 2900-2925 | J86: Open | R86: N
A87: 43 | B87: 2020-08-27 | D87: LUPIN | E87: Buy | F87: 985-990 | G87: 960 | I87: 1050 | J87: Open | R87: H
A88: 44 | B88: 2020-08-28 | D88: LT | E88: Buy | F88: 986-990 | G88: 960 | I88: 1050 | J88: Open | R88: H
A96: CLBS = Closing Basis *** | H96: *
A97: Dividend adjusted <> | F97: Reinitiated $
F98: Revised stoploss #
A100: Master Trade High Risk
A101: Sr.no | B101: Date | D101: Company | E101: Rec | F101: Rec Price | G101: Stop Loss | H101: Call Closed At | I101: Target | J101: Remark | K101: Profit / Loss per share | L101: All charges | M101: Gain / Loss per Lot | N101: Lot | O101: Status | P101: Closed Date
A102: 1 | B102: 2020-07-31 | D102: AMBUJACEM AUG FUT | E102: Sell | F102: 220.25 | G102: 225 | H102: 224.5 | I102: 210 | J102: Loss of Rs.4.25/- | K102: -4.25 | L102: =(220.25*3000)*-0.07% -> -462.5 | M102: =+N102*K102+L102 -> -13212.5 | N102: 3000 | O102: Unsuccessful | P102: 2020-08-03 | R102: H
A103: 2 | B103: 2020-08-11 | D103: HEROMOTOCO AUG FUT | E103: Buy | F103: 2734.5 | G103: 2695 | H103: 2760 | I103: 2800-2810 | J103: Profit of Rs.25.5/- | K103: =H103-F103 -> 25.5 | L103: =(H103*N103)*0.07% -> 579.6 | M103: =(K103*N103)-L103 -> 7070.4 | N103: 300 | O103: Successful | P103: 2020-08-12 | R103: N
A104: 3 | B104: 2020-08-14 | D104: NIFTY AUG FUT | E104: Sell | F104: 11335 | G104: 11410 | H104: 11245 | I104: 11200 | J104: Profit of Rs.90/- | K104: =F104-H104 -> 90 | L104: =(H104*N104)*0.07% -> 590.36 | M104: =(K104*N104)-L104 -> 6159.64 | N104: 75 | O104: Successful | P104: 2020-08-14 | R104: A
A105: 4 | B105: 2020-08-17 | D105: MARUTI AUG FUT | E105: Sell | F105: 6725 | G105: 6830 | H105: 6830 | I105: 6550-6500 | J105: Loss of Rs.105/- | K105: =F105-H105 -> -105 | L105: =(H105*N105)*0.07% -> 478.10 | M105: =(K105*N105)-L105 -> -10978.10 | N105: 100 | O105: Unsuccessful | P105: 2020-08-18 | R105: H
A106: 5 | B106: 2020-08-18 | D106: NIFTY AUG FUT | E106: Sell | F106: 11325 | G106: 11410 | H106: 11400 | I106: 11200 | J106: Loss of Rs.75/- | K106: =F106-H106 -> -75 | L106: =(H106*N106)*0.07% -> 598.50 | M106: =(K106*N106)-L106 -> -6223.50 | N106: 75 | O106: Unsuccessful | P106: 2020-08-18 | R106: H
A107: 6 | B107: 2020-08-28 | D107: TCS SEP FUT | E107: Buy | F107: 2270-2274 | G107: 2230 | I107: 2450 | J107: Open | R107: N
A113: Master Trade Medium Risk
A114: Sr.no | B114: Date | D114: Company | E114: Rec | F114: Rec Price | G114: Stop Loss | H114: Call Closed At | I114: Target | J114: Remark | K114: Profit/ Loss per lot | L114: All charges | M114: Gain / Loss per Lot | N114: Lot | O114: Status | P114: Closed Date
A115: 1 | B115: 2020-07-31 | D115: ITC 210 CE AUG | E115: Buy | F115: 2.2 | G115: 0.5 | H115: 2.9 | I115: 5-6.0 | J115: Profit of Rs.0.70/- | K115: =H115-F115 -> 0.7 | L115: 100 | M115: =(K115*N115)-100 -> 2140 | N115: 3200 | O115: Successful | P115: 2020-08-11 | R115: H
A116: 2 | B116: 2020-08-05 | D116: MARUTI 6000 PE AUG | E116: Buy | F116: 70 | H116: 0 | I116: 150-170 | J116: Loss of Rs.70/- | K116: =H116-F116 -> -70 | L116: 100 | M116: =(K116*N116)-100 -> -7100 | N116: 100 | O116: Unsuccessful | P116: 2020-08-27 | R116: H
A117: 3 | B117: 2020-08-11 | D117: NIFTY 11300 PE 27 AUG | E117: Buy | F117: 162.5 | J117: Loss of Rs.67.50/- | K117: =H117-F117 -> -162.5 | L117: 100 | M117: =(K117*N117)-100 -> -12287.5 | N117: 75 | O117: Unsuccessful | P117: 2020-08-27 | R117: H
D118: NIFTY 11100 PE 27 AUG | E118: Sell | F118: 95 | K118: 95 | L118: 100 | M118: =(K118*N118)-100 -> 7025 | N118: 75
A119: 4 | B119: 2020-08-13 | D119: NIFTY 11300 PE 13-AUG | E119: Buy | F119: 15.5 | H119: 30 | I119: 50 | J119: Profit of Rs.14.5/- | K119: =H119-F119 -> 14.5 | L119: 100 | M119: =(K119*N119)-100 -> 987.5 | N119: 75 | O119: Successful | P119: 2020-08-13 | R119: A
A120: 5 | B120: 2020-08-14 | D120: NIFTY 11300 PE 20-AUG | E120: Buy | F120: 77.5 | G120: 40 | H120: 108.5 | I120: 150 | J120: Profit of Rs.31/- | K120: 31 | L120: 100 | M120: 2225 | N120: 75 | O120: Successful | P120: 2020-08-14 | R120: A
A121: 6 | B121: 2020-08-20 | D121: NIFTY 11300 PE 20-AUG | E121: Buy | F121: 16 | H121: 29 | I121: 50 | J121: Profit of Rs.13/- | K121: 13 | L121: 100 | M121: 875 | N121: 75 | O121: Successful | P121: 2020-08-20 | R121: N
A122: 7 | B122: 2020-08-21 | D122: NIFTY 11350 PE 27-AUG | E122: Buy | F122: 74.5 | G122: 35 | H122: 79 | I122: 150 | J122: Profit of Rs.4.5/- | K122: 4.5 | L122: 100 | M122: 237.5 | N122: 75 | O122: Successful | P122: 2020-08-21 | R122: H
A123: 8 | B123: 2020-08-24 | D123: BANKBARODA 49 CE | E123: Buy | F123: 0.55 | H123: 0.75 | I123: 1.20-1.50 | J123: Profit of Rs.0.2/- | K123: 0.2 | L123: 100 | M123: 1600 | N123: 8500 | O123: Successful | P123: 2020-08-24 | R123: H
A124: 9 | B124: 2020-08-24 | D124: NIFTY 11400 PE 27-AUG | E124: Buy | F124: 57 | G124: 18 | H124: 18 | I124: 100-120 | J124: Loss of Rs.39/- | K124: -39 | L124: 100 | M124: -3025 | N124: 75 | O124: Unsuccessful | P124: 2020-08-26 | R124: H
A125: 10 | B125: 2020-08-24 | D125: AMARAJABAT 740 PE AUG | E125: Buy | F125: 7.5 | G125: 2.5 | H125: 9.5 | I125: 15-16 | J125: Profit of Rs.2/- | K125: 2 | L125: 100 | M125: 1900 | N125: 1000 | O125: Successful | P125: 2020-08-24 | R125: N
A126: 11 | B126: 2020-08-25 | D126: M&M 600 PE 27-AUG | E126: Buy | F126: 3.75 | H126: 5.1 | I126: 8 | J126: Profit of Rs.1.35/- | K126: 1.35 | L126: 100 | M126: 1790 | N126: 1400 | O126: Successful | P126: 2020-08-25 | R126: H
A127: 12 | B127: 2020-08-25 | D127: M&M 610 PE 27-AUG | E127: Buy | F127: 6.5 | G127: 1.5 | H127: 2.75 | I127: 13-15 | J127: Loss of Rs.3.75/- | K127: -3.75 | L127: 100 | M127: -5350 | N127: 1400 | O127: Unsuccessful | P127: 2020-08-26 | R127: H
A131: Techno -Funda (positional)
A132: Sr.no | B132: Date | D132: Company | E132: Rec | F132: Rec Price | G132: Stop Loss*** | H132: Call Closed At | I132: Target | J132: Remark | K132: Profit / Loss per Share | L132: Gain / Loss % | M132: Status | N132: Closed Date | O132: NSE Closed Price
A133: 1 | B133: 2020-08-28 | D133: CCL | E133: Buy | F133: 265-269 | G133: 245 | I133: 310-320 | J133: Open | R133: H
A135: CLBS = Closing Basis *** | F135: Reinitiated $
A136: Dividend adjusted <> | F136: Revised stoploss #
B141: Investment Idea
A142: Sr.no | B142: Date | D142: Company | E142: Rec | F142: Rec Price | G142: Point of Review | H142: Close Rate | I142: Target | J142: Remark | K142: Profit / Loss per Share | L142: Gain / Loss % | M142: Status | N142: Closed Date
A143: 1 | B143: 2013-11-01 | D143: L&T Finance Holding | E143: Accu | F143: 82.00 | G143: - | H143: 100 | I143: 100.00 | J143: Target Achieved | K143: =H143-F143 -> 18.00 | L143: =K143/F143 -> 21.95% | M143: Successful | N143: 2016-10-14
A144: 2 | B144: 2014-06-04 | D144: Finolex Inds | E144: Buy | F144: 257.00 | G144: - | H144: 300 | I144: 300.00 | J144: Target Achieved | K144: 43.00 | L144: 16.73% | M144: Successful | N144: 2014-07-02
A145: 3 | B145: 2014-07-08 | D145: JK Cement | E145: Buy | F145: 393.00 | G145: - | H145: 468 | I145: 468.00 | J145: Target Achieved | K145: 75.00 | L145: 19.08% | M145: Successful | N145: 2014-08-12
A146: 4 | B146: 2014-08-06 | D146: Finolex Cables | E146: Buy | F146: 205.00 | G146: - | H146: 275 | I146: 250.00 | J146: Target Achieved | K146: 70.00 | L146: 34.15% | M146: Successful | N146: 2014-11-19
A147: 5 | B147: 2014-09-04 | D147: Exide Inds | E147: Buy | F147: 162.00 | G147: - | H147: 190 | I147: 190.00 | J147: Target Achieved | K147: 28.00 | L147: 17.28% | M147: Successful | N147: 2015-01-02
A148: 6 | B148: 2014-09-04 | D148: Deepak Nitrite | E148: Buy | F148: 75.00 | G148: - | H148: 91.5 | I148: 95-100 | J148: Profit of Rs.16.50/- | K148: 16.50 | L148: 22.00% | M148: Successful | N148: 2014-11-11
A149: 7 | B149: 2014-10-01 | D149: Mercks | E149: Buy | F149: 850.00 | G149: - | H149: 982.5 | I149: 1050.00 | J149: Profit of Rs.132.50/- | K149: 132.50 | L149: 15.59% | M149: Successful | N149: 2015-02-04
A150: 8 | B150: 2014-10-01 | D150: Grindwell Norton | E150: Buy | F150: 475.00 | G150: - | H150: 515 | I150: 600.00 | J150: Profit of Rs.40/- | K150: 40.00 | L150: 8.42% | M150: Successful | N150: 2014-10-27
A151: 9 | B151: 2014-10-01 | D151: Snowman Logistics | E151: Buy | F151: 86.00 | G151: - | H151: 99 | I151: 140.00 | J151: Profit of Rs.13.00/- | K151: 13.00 | L151: 15.12% | M151: Successful | N151: 2014-10-27
A152: 10 | B152: 2014-10-14 | D152: Birla Corp | E152: Buy | F152: 496.60 | G152: - | H152: 621 | I152: 580.00 | J152: Target Achieved | K152: 124.40 | L152: 25.05% | M152: Successful | N152: 2016-08-23
A153: 11 | B153: 2014-10-14 | D153: Ultratech Cem | E153: Buy | F153: 2481.90 | G153: - | H153: 2840 | I153: 2870.00 | J153: Profit of Rs.358.10/- | K153: 358.10 | L153: 14.43% | M153: Successful | N153: 2015-01-13
A154: 12 | B154: 2014-10-16 | D154: Sintex Inds | E154: Buy | F154: 84.50 | G154: - | H154: 93 | I154: 110.00 | J154: Profit of Rs.8.50/- | K154: 8.50 | L154: 10.06% | M154: Successful | N154: 2014-10-27
A155: 13 | B155: 2014-10-16 | D155: HSIL | E155: Buy | F155: 401.00 | G155: - | H155: 428 | I155: 450.00 | J155: Profit of Rs.27.00/- | K155: 27.00 | L155: 6.73% | M155: Successful | N155: 2015-01-16
A156: 14 | B156: 2014-10-16 | D156: Eveready Inds | E156: Buy | F156: 101.00 | G156: - | H156: 112 | I156: 120.00 | J156: Profit of Rs.11.00/- | K156: 11.00 | L156: 10.89% | M156: Successful | N156: 2014-10-27
A157: 15 | B157: 2014-11-11 | D157: Pennar Inds | E157: Buy | F157: 59.00 | G157: - | H157: 76 | I157: 76.00 | J157: Target Achieved | K157: 17.00 | L157: 28.81% | M157: Successful | N157: 2017-10-24
A158: 16 | B158: 2014-11-11 | D158: Snowman Logistics | E158: Buy | F158: 99.00 | G158: - | H158: 120 | I158: 120.00 | J158: Profit of Rs.21/- | K158: 21.00 | L158: 21.21% | M158: Successful | N158: 2014-11-17
A159: 17 | B159: 2014-11-13 | D159: Dharamsi Morarji Chem | E159: Buy | F159: 22.00 | G159: - | H159: 33.55 | I159: 32.00 | J159: Profit of Rs 11.55/- | K159: 11.55 | L159: 52.50% | M159: Successful | N159: 2015-07-03
A160: 18 | B160: 2014-12-03 | D160: Tatachem | E160: Buy | F160: 440.00 | G160: - | H160: 520 | I160: 520.00 | J160: Profit of Rs 80.00/- | K160: 80.00 | L160: 18.18% | M160: Successful | N160: 2015-07-23
A161: 19 | B161: 2014-12-03 | D161: Advanta | E161: Buy | F161: 360.00 | G161: - | H161: 427 | I161: 425.00 | J161: Profit of Rs.67.00/- | K161: 67.00 | L161: 18.61% | M161: Successful | N161: 2015-02-23
A162: 20 | B162: 2015-01-08 | D162: GDL | E162: Buy | F162: 360.00 | G162: - | H162: 455 | I162: 420.00 | J162: Profit of Rs.95.00/- | K162: 95.00 | L162: 26.39% | M162: Successful | N162: 2015-01-20
A163: 21 | B163: 2015-01-08 | D163: NRB Bearing | E163: Buy | F163: 130.00 | H163: 175.5 | I163: 165.00 | J163: Profit of Rs 45.50/- | K163: 45.50 | L163: 35.00% | M163: Successful | N163: 2017-12-19
A164: 22 | B164: 2015-02-05 | D164: GSFC | E164: Accu | F164: 98.00 | H164: 120 | I164: 120.00 | J164: Target Achieved | K164: 22.00 | L164: 22.45% | M164: Successful | N164: 2017-01-18
A165: 23 | B165: 2015-02-05 | D165: Sundrmfast | E165: Accu | F165: 196.00 | H165: 262 | I165: 255.00 | J165: Target Achieved | K165: 66.00 | L165: 33.67% | M165: Successful | N165: 2016-08-17
A166: 24 | B166: 2015-03-04 | D166: GPPL | E166: Accu | F166: 235 | H166: 77.00 | I166: 280-285 | J166: Loss of Rs.158/- | K166: -158.00 | L166: -67.23% | M166: Unsuccessful | N166: 2019-02-26
A167: 25 | B167: 2015-03-04 | D167: ORIENTCEM | E167: Accu | F167: 185.00 | H167: 224 | I167: 220-225 | J167: Target Achieved | K167: 39.00 | L167: 21.08% | M167: Successful | N167: 2016-10-04
A168: 26 | B168: 2015-03-27 | D168: PFS | E168: Accu | F168: 49.5 | H168: 15.85 | I168: 67.00 | J168: Loss of Rs.33.65/- | K168: -33.65 | L168: -68% | M168: Unsuccessful | N168: 2019-06-11
A169: 27 | B169: 2015-03-30 | D169: Walchandnagar Ind Ltd | E169: Accu | F169: 183.50 | H169: 219 | I169: 218.00 | J169: Profit of Rs.35.50/- | K169: 35.50 | L169: 19.35% | M169: Successful | N169: 2015-04-09
A170: 28 | B170: 2015-04-20 | D170: Kalpataru Power Transmission Ltd | E170: Accu | F170: =(227+237)/2 -> 232.00 | H170: 298 | I170: 298.00 | J170: Target Achieved | K170: 66.00 | L170: 28.45% | M170: Successful | N170: 2017-03-29
A171: 29 | B171: 2015-05-04 | D171: Mastek Ltd | E171: Buy | F171: 385.00 | H171: =212.5+331 -> 543.5 | I171: 510.00 | J171: Profit of Rs 158.50/- | K171: 158.50 | L171: 41.17% | M171: Successful | N171: 2015-08-19
A172: 30 | B172: 2015-05-04 | D172: Suprajit Eng | E172: Buy | F172: 115.50 | H172: 146 | I172: 142.00 | J172: Profit of Rs 30.50/- | K172: 30.50 | L172: 26.41% | M172: Successful | N172: 2015-07-17
A173: 31 | B173: 2015-05-27 | D173: TCI | E173: Buy | F173: 237.50 | H173: 279.5 | I173: 278.00 | J173: Target Achieved | K173: 42.00 | L173: 17.68% | M173: Successful | N173: 2015-08-06
A174: 32 | B174: 2015-06-19 | D174: HSIL | E174: Accu | F174: 340.00 | H174: 448 | I174: 448.00 | J174: Target Achieved | K174: 108.00 | L174: 31.76% | M174: Successful | N174: 2017-10-10
A175: 33 | B175: 2015-07-06 | D175: Capital First | E175: Accu | F175: 390.00 | H175: 460 | I175: 460.00 | J175: Target Achieved | K175: =H175-F175 -> 70.00 | L175: =K175/F175 -> 17.95% | M175: Successful | N175: 2016-04-18
A176: 34 | B176: 2015-07-10 | D176: Dolphin OffShore | E176: Accu | F176: 122.5 | H176: 61.00 | I176: 172.00 | J176: Loss of Rs.61.50/- | K176: -61.50 | L176: -50.20% | M176: Unsuccessful | N176: 2018-08-21
A177: 35 | B177: 2015-08-03 | D177: Allcargo logistics | E177: Accu | F177: 297.50 | H177: 350 | I177: 360.00 | J177: Profit of Rs 52.50/- | K177: 52.50 | L177: 17.65% | M177: Successful | N177: 2015-08-16
A178: 36 | B178: 2015-08-03 | D178: Camline Fine | E178: Accu | F178: 115.50 | H178: 149 | I178: 140.00 | J178: Profit of Rs 33.50/- | K178: 33.50 | L178: 29.00% | M178: Successful | N178: 2017-01-05
A179: 37 | B179: 2015-09-04 | D179: TCI | E179: Accu | F179: 226.00 | H179: 292 | I179: 292.00 | J179: Target Achieved | K179: 66.00 | L179: 29.20% | M179: Successful | N179: 2015-10-09
A180: 38 | B180: 2015-09-07 | D180: Kalpataru Power Transmission Ltd | E180: Accu | F180: 232.50 | H180: 312.5 | I180: 310.00 | J180: Target Achieved | K180: 80.00 | L180: 34.41% | M180: Successful | N180: 2017-03-29
A181: 39 | B181: 2015-09-21 | D181: LLOYD ELECTRIC & ENG LTD | E181: Accu | F181: 196.50 | H181: 238 | I181: 238.00 | J181: Target Achieved | K181: 41.50 | L181: 21.12% | M181: Successful | N181: 2015-10-14
A182: 40 | B182: 2015-09-24 | D182: L&T Finance Holding | E182: Accu | F182: 65.00 | H182: 82 | I182: 82.00 | J182: Target Achieved | K182: 17.00 | L182: 26.15% | M182: Successful | N182: 2016-07-27
A183: 41 | B183: 2015-10-14 | D183: KEC International ltd | E183: Accu | F183: 144.00 | H183: 182.5 | I183: 181.00 | J183: Target Achieved | K183: 38.50 | L183: 26.74% | M183: Successful | N183: 2017-03-23
A184: 42 | B184: 2015-10-14 | D184: Gruh Finance | E184: Accu | F184: 264.00 | H184: 311 | I184: 311.00 | J184: Target Achieved | K184: 47.00 | L184: 17.80% | M184: Successful | N184: 2016-08-22
A185: 43 | B185: 2015-11-10 | D185: Pidilitind | E185: Buy | F185: 549.50 | H185: 630 | I185: 630.00 | J185: Target Achieved | K185: 80.50 | L185: 14.65% | M185: Successful | N185: 2016-02-19
A186: 44 | B186: 2015-12-04 | D186: Zensar Technology | E186: Accu | F186: 1027.50 | H186: 1315 | I186: 1250.00 | J186: Target Achieved | K186: 287.50 | L186: 27.98% | M186: Successful | N186: 2018-05-24
A187: 45 | B187: 2015-12-29 | D187: Vinati Organics Ltd | E187: Accu | F187: 465.00 | H187: 540 | I187: 540.00 | J187: Target Achieved | K187: 75.00 | L187: 16.13% | M187: Successful | N187: 2016-06-09
A188: 46 | B188: 2016-01-11 | D188: GSFC | E188: Buy | F188: 81.00 | H188: 110 | I188: 110.00 | J188: Target Achieved | K188: 29.00 | L188: 35.80% | M188: Successful | N188: 2017-01-10
A189: 47 | B189: 2016-01-13 | D189: SSWL | E189: Buy | F189: 417.50 | H189: 547 | I189: 535.00 | J189: Target Achieved | K189: 129.50 | L189: 31.02% | M189: Successful | N189: 2016-07-27
A190: 48 | B190: 2016-02-08 | D190: Persistent System Ltd | E190: Accu | F190: 650.00 | H190: 800 | I190: 800.00 | J190: Target Achieved | K190: 150.00 | L190: 23.08% | M190: Successful | N190: 2018-02-23
A191: 49 | B191: 2016-03-04 | D191: UPL | E191: Accu | F191: 437.50 | H191: 504.5 | I191: 522.00 | J191: Profit of Rs.67/- | K191: 67.00 | L191: 15.31% | M191: Successful | N191: 2016-04-20
A192: 50 | B192: 2016-03-09 | D192: Ashoka Buildcon Ltd | E192: Accu | F192: 189.50 | H192: 218 | I192: 218.00 | J192: Target Achieved | K192: 28.50 | L192: 15.04% | M192: Successful | N192: 2017-10-26
A193: 51 | B193: 2016-04-11 | D193: PTC INDIA FIN SERV LTD | E193: Accu | F193: 36.5 | H193: 15.85 | I193: 60.00 | J193: Loss of Rs.20.65/- | K193: -20.65 | L193: -56.58% | M193: Unsuccessful | N193: 2019-06-11
A194: 52 | B194: 2016-04-12 | D194: CAMLINFINE $ | E194: Accu | F194: 93.00 | H194: 149 | I194: 140.00 | J194: Profit of Rs 56/- | K194: 56.00 | L194: 60.22% | M194: Successful | N194: 2017-01-05
A195: 53 | B195: 2016-04-12 | D195: Greaves Cotton Ltd. | E195: Accu | F195: 130.00 | H195: 150 | I195: 150-155 | J195: Target Achieved | K195: 20.00 | L195: 15.38% | M195: Successful | N195: 2016-07-13
A196: 54 | B196: 2016-04-13 | D196: DHFL | E196: Accu | F196: 196.00 | H196: 299 | I196: 299.00 | J196: Target Achieved | K196: 103.00 | L196: 52.55% | M196: Successful | N196: 2016-09-07
A197: 55 | B197: 2016-04-13 | D197: Magma | E197: Accu | F197: 88.00 | H197: 103 | I197: 103.00 | J197: Target Achieved | K197: 15.00 | L197: 17.05% | M197: Successful | N197: 2016-06-09
A198: 56 | B198: 2016-05-02 | D198: KEC International ltd $ | E198: Accu | F198: 127.50 | H198: 148 | I198: 148-150 | J198: Target Achieved | K198: =H198-F198 -> 20.50 | L198: =K198/F198 -> 16.08% | M198: Successful | N198: 2016-07-13
A199: 57 | B199: 2016-05-03 | D199: Mindtree | E199: Accu | F199: 675.00 | H199: 815 | I199: 790-800 | J199: Target Achieved | K199: =H199-F199 -> 140.00 | L199: =K199/F199 -> 20.74% | M199: Successful | N199: 2018-02-23
A200: 58 | B200: 2016-06-01 | D200: Atulauto | E200: Accu | F200: 500 | H200: 232.50 | I200: 565-570 | J200: Loss of Rs.267.50 /- | K200: =H200-F200 -> -267.50 | L200: =K200/F200 -> -53.50% | M200: Unsuccessful | N200: 2019-09-27
A201: 59 | B201: 2016-06-06 | D201: TRITURBINE | E201: Accu | F201: 110.00 | H201: 126.5 | I201: 125.00 | J201: Profit of Rs.16.50/- | K201: =H201-F201 -> 16.50 | L201: =K201/F201 -> 15.00% | M201: Successful | N201: 2016-07-01
A202: 60 | B202: 2016-06-17 | D202: Pennar Industries Ltd | E202: Accu | F202: 44.00 | H202: 69.5 | I202: 69.50 | J202: Profit of Rs.25.50/- | K202: =H202-F202 -> 25.50 | L202: =K202/F202 -> 57.95% | M202: Successful | N202: 2017-08-30
A203: 61 | B203: 2016-06-28 | D203: EVEREADY | E203: Accu | F203: 262.50 | H203: 340 | I203: 333.00 | J203: Profit of Rs.77.50/- | K203: 77.50 | L203: 29.52% | M203: Successful | N203: 2017-10-09
A204: 62 | B204: 2016-06-28 | D204: FIEMIND | E204: Accu | F204: 840.00 | H204: 1230 | I204: 1230.00 | J204: Target Achieved | K204: 390.00 | L204: 46.43% | M204: Successful | N204: 2016-10-06
A205: 63 | B205: 2016-07-05 | D205: Bajaj Corp Ltd | E205: Accu | F205: 395 | H205: =(468.5+342.5)/2 -> 405.50 | I205: 510.00 | J205: Profit of Rs.10.50/- | K205: =H205-F205 -> 10.50 | L205: =K205/F205 -> 3% | M205: Neutral | N205: 2019-05-21
A206: 64 | B206: 2016-08-02 | D206: GPPL $ | E206: Buy | F206: =169.5-12.8 -> 156.7 | H206: 77.00 | I206: 198-200 | J206: Loss of Rs.79.7/- | K206: -79.70 | L206: -50.86% | M206: Unsuccessful | N206: 2019-02-26
A207: 65 | B207: 2016-08-04 | D207: WONDERLA HOLIDAYS LTD | E207: Accu | F207: 400 | H207: 305.00 | I207: 475.00 | J207: Loss of Rs.95/- | K207: -95.00 | L207: -23.75% | M207: Unsuccessful | N207: 2019-05-21
A208: 66 | B208: 2016-08-11 | D208: CAMLINFINE | E208: Accu | F208: 86.50 | H208: 130 | I208: 130.00 | J208: Profit of Rs.43.50/- | K208: 43.50 | L208: 50.29% | M208: Successful | N208: 2017-12-22
A209: 67 | B209: 2016-08-18 | D209: GRANULES | E209: Accu | F209: 133.5 | H209: 126.50 | I209: 178.00 | J209: Exit | K209: -7.00 | L209: -5.24% | M209: Unsuccessful | N209: 2016-09-02
A210: 68 | B210: 2016-08-31 | D210: VA TECH WABAG | E210: Accu | F210: 560.00 | H210: 725 | I210: 725.00 | J210: Target Achieved | K210: 165.00 | L210: 29.46% | M210: Successful | N210: 2016-03-27
A211: 69 | B211: 2016-09-01 | D211: SKIPPER LIMITED | E211: Accu | F211: 160.50 | H211: 210 | I211: 210.00 | J211: Target Achieved | K211: 49.50 | L211: 30.84% | M211: Successful | N211: 2017-05-16
A212: 70 | B212: 2016-10-03 | D212: IFBIND | E212: Accu | F212: 430.00 | H212: 596 | I212: 575.00 | J212: Profit of Rs.166/- | K212: 166.00 | L212: 38.60% | M212: Successful | N212: 2017-02-03
A213: 71 | B213: 2016-10-14 | D213: ASIANTILES | E213: Accu | F213: 280.00 | H213: 345 | I213: 345.00 | J213: Target Achieved | K213: =H213-F213 -> 65.00 | L213: =K213/F213 -> 23.21% | M213: Successful | N213: 2017-03-20
A214: 72 | B214: 2016-10-14 | D214: DEEPIND | E214: Accu | F214: 245.00 | H214: 325.5 | I214: 330.00 | J214: Profit of Rs.80.5/- | K214: 80.50 | L214: =K214/F214 -> 32.86% | M214: Successful | N214: 2017-02-03
A215: 73 | B215: 2016-10-17 | D215: DCBBANK | E215: Accu | F215: 125.00 | H215: 160 | I215: 160.00 | J215: Target Achieved | K215: 35.00 | L215: 28.00% | M215: Successful | N215: 2017-03-09
A216: 74 | B216: 2016-10-17 | D216: ORIENTREF | E216: Accu | F216: 114.00 | H216: 145 | I216: 145.00 | J216: Target Achieved | K216: 31.00 | L216: =K216/F216 -> 27.19% | M216: Successful | N216: 2017-05-04
A217: 75 | B217: 2016-10-17 | D217: GANECOS | E217: Accu | F217: 212.00 | H217: 280 | I217: 276.00 | J217: Profit of Rs.68/- | K217: 68.00 | L217: =K217/F217 -> 32.08% | M217: Successful | N217: 2017-05-03
A218: 76 | B218: 2016-11-04 | D218: NBCC | E218: Accu | F218: 155.00 | H218: 210 | I218: 210.00 | J218: Profit of Rs.55/- | K218: 55.00 | L218: =K218/F218 -> 35.48% | M218: Successful | N218: 2017-07-28
A219: 77 | B219: 2016-12-06 | D219: PRECAM | E219: Accu | F219: 150.5 | H219: 72.50 | I219: 174.00 | J219: Loss of Rs.78/- | K219: -78.00 | L219: -51.83% | M219: Unsuccessful | N219: 2018-08-21
A220: 78 | B220: 2016-12-08 | D220: INFRATEL | E220: Accu | F220: 380.00 | H220: 478 | I220: 468.00 | J220: Target Achieved | K220: =H220-F220 -> 98.00 | L220: =K220/F220 -> 25.79% | M220: Successful | N220: 2017-10-17
A221: 79 | B221: 2016-12-30 | D221: GODREJPROP | E221: Accu | F221: 305.00 | H221: 375 | I221: 375.00 | J221: Target Achieved | K221: =H221-F221 -> 70.00 | L221: =K221/F221 -> 22.95% | M221: Successful | N221: 2017-02-02
A222: 80 | B222: 2017-01-04 | D222: DEEPAKNTR | E222: Accu | F222: 99.50 | H222: 158 | I222: 158.00 | J222: Target Achieved | K222: =H222-F222 -> 58.50 | L222: =K222/F222 -> 58.79% | M222: Successful | N222: 2017-06-12
A223: 81 | B223: 2017-01-04 | D223: DEEPAKNTR | E223: Accu | F223: 99.50 | H223: 158 | I223: 158.00 | J223: Target Achieved | K223: 58.50 | L223: 58.79% | M223: Successful | N223: 2017-06-12
A224: 82 | B224: 2017-02-20 | D224: RECLTD | E224: Accu | F224: 140.50 | H224: 220 | I224: 220.00 | J224: Target Achieved | K224: =H224-F224 -> 79.50 | L224: =K224/F224 -> 56.58% | M224: Successful | N224: 2017-05-09
A225: 83 | B225: 2017-02-20 | D225: SUBROS | E225: Accu | F225: 202.50 | H225: 234 | I225: 234.00 | J225: Target Achieved | K225: 31.50 | L225: 15.56% | M225: Successful | N225: 2017-04-11
A226: 84 | B226: 2017-03-24 | D226: VRLLOG | E226: Accu | F226: 300.50 | H226: 417.5 | I226: 420.00 | J226: Profit of Rs.117/- | K226: =H226-F226 -> 117.00 | L226: =K226/F226 -> 38.94% | M226: Successful | N226: 2017-12-01
A227: 85 | B227: 2017-03-24 | D227: FIEMIND | E227: Accu | F227: 850.00 | H227: 1042.5 | I227: 1023.00 | J227: Profit of Rs 192.50/- | K227: 192.50 | L227: 22.65% | M227: Successful | N227: 2017-04-05
... 70 more rows

Sheet Sheet2 (hidden)
A1: SYMBOL | B1: SERIES | C1: OPEN | D1: HIGH | E1: LOW | F1: CLOSE | G1: LAST | H1: PREVCLOSE | I1: TOTTRDQTY | J1: TOTTRDVAL | K1: TIMESTAMP | L1: TOTALTRADES | M1: ISIN | N1: ISIN
A2: 20MICRONS | B2: EQ | C2: 27.9 | D2: 29 | E2: 25.9 | F2: 26.2 | G2: 25.9 | H2: 27.5 | I2: 80527 | J2: 2193820.55 | K2: 2020-04-08 | L2: 1099 | M2: INE144J01027
A3: 21STCENMGM | B3: EQ | C3: 10.15 | D3: 10.5 | E3: 10.1 | F3: 10.4 | G3: 10.5 | H3: 10.3 | I3: 3205 | J3: 32728.25 | K3: 2020-04-08 | L3: 28 | M3: INE253B01015
A4: 3IINFOTECH | B4: EQ | C4: 1.35 | D4: 1.35 | E4: 1.2 | F4: 1.25 | G4: 1.25 | H4: 1.35 | I4: 2793301 | J4: 3578364.95 | K4: 2020-04-08 | L4: 46535 | M4: INE748C01020
A5: 3MINDIA | B5: EQ | C5: 18950 | D5: 19170 | E5: 18155.05 | F5: 18318.2 | G5: 18270 | H5: 18755.7 | I5: 9926 | J5: 183605811.2 | K5: 2020-04-08 | L5: 4453 | M5: INE470A01017
A6: 3PLAND | B6: EQ | C6: 3.7 | D6: 3.85 | E6: 3.7 | F6: 3.85 | G6: 3.85 | H6: 3.7 | I6: 406 | J6: 1557.85 | K6: 2020-04-08 | L6: 9 | M6: INE105C01023
A7: 5PAISA | B7: EQ | C7: 119.95 | D7: 134 | E7: 115 | F7: 123.35 | G7: 120.5 | H7: 116.4 | I7: 6500 | J7: 793277.05 | K7: 2020-04-08 | L7: 265 | M7: INE618L01018
A8: 63MOONS | B8: EQ | C8: 50.7 | D8: 55.45 | E8: 50.7 | F8: 53.7 | G8: 53.55 | H8: 50.7 | I8: 72221 | J8: 3890984.7 | K8: 2020-04-08 | L8: 3078 | M8: INE111B01023
A9: A2ZINFRA | B9: EQ | C9: 3.15 | D9: 3.25 | E9: 3.1 | F9: 3.15 | G9: 3.15 | H9: 3.15 | I9: 116011 | J9: 367778.85 | K9: 2020-04-08 | L9: 227 | M9: INE619I01012
A10: AARTIDRUGS | B10: EQ | C10: 627 | D10: 669.3 | E10: 605 | F10: 631.6 | G10: 625 | H10: 607.85 | I10: 75970 | J10: 48223549.15 | K10: 2020-04-08 | L10: 5720 | M10: INE767A01016
A11: AARTIIND | B11: EQ | C11: 839.95 | D11: 909.8 | E11: 818 | F11: 854.9 | G11: 864 | H11: 830.7 | I11: 477805 | J11: 419092386.9 | K11: 2020-04-08 | L11: 50045 | M11: INE769A01020
A12: AARVEEDEN | B12: EQ | C12: 8.95 | D12: 9.25 | E12: 7.85 | F12: 8.35 | G12: 8.45 | H12: 8.1 | I12: 9251 | J12: 77100.1 | K12: 2020-04-08 | L12: 94 | M12: INE273D01019
A13: AAVAS | B13: EQ | C13: 1101 | D13: 1183 | E13: 1101 | F13: 1135.2 | G13: 1137 | H13: 1142.35 | I13: 24179 | J13: 28073100.85 | K13: 2020-04-08 | L13: 3631 | M13: INE216P01012
A14: ABAN | B14: EQ | C14: 15.7 | D14: 16.2 | E14: 15.7 | F14: 16.2 | G14: 16.2 | H14: 15.45 | I14: 37609 | J14: 608439.6 | K14: 2020-04-08 | L14: 288 | M14: INE421A01028
A15: ABB | B15: EQ | C15: 935 | D15: 965 | E15: 910 | F15: 930.7 | G15: 928 | H15: 931.35 | I15: 87757 | J15: 82358527.9 | K15: 2020-04-08 | L15: 4699 | M15: INE117A01022
A16: ABBOTINDIA | B16: EQ | C16: 16799.45 | D16: 18250 | E16: 16750 | F16: 17481.1 | G16: 17488 | H16: 16699.7 | I16: 57991 | J16: 1023745502 | K16: 2020-04-08 | L16: 21022 | M16: INE358A01014
A17: ABCAPITAL | B17: EQ | C17: 45 | D17: 47.9 | E17: 44.25 | F17: 45.6 | G17: 45.7 | H17: 45.1 | I17: 1253267 | J17: 57952493.6 | K17: 2020-04-08 | L17: 7317 | M17: INE674K01013
A18: ABFRL | B18: EQ | C18: 148 | D18: 152.8 | E18: 146.75 | F18: 149 | G18: 148 | H18: 149.85 | I18: 416099 | J18: 62371769.1 | K18: 2020-04-08 | L18: 10148 | M18: INE647O01011
A19: ABSLNN50ET | B19: EQ | C19: 244 | D19: 248 | E19: 210 | F19: 235 | G19: 235 | H19: 244 | I19: 56 | J19: 12779.4 | K19: 2020-04-08 | L19: 13 | M19: INF209KB1B87
A20: ACC | B20: EQ | C20: 1000 | D20: 1029.9 | E20: 941.25 | F20: 956.05 | G20: 958 | H20: 1009.95 | I20: 2153627 | J20: 2101320389 | K20: 2020-04-08 | L20: 79728 | M20: INE012A01025
A21: ACCELYA | B21: EQ | C21: 874.3 | D21: 886 | E21: 862 | F21: 880.45 | G21: 879.95 | H21: 874.3 | I21: 10865 | J21: 9557704.55 | K21: 2020-04-08 | L21: 923 | M21: INE793A01012
A22: ACE | B22: EQ | C22: 32.75 | D22: 35.2 | E22: 32.55 | F22: 33.25 | G22: 33.35 | H22: 32.95 | I22: 244708 | J22: 8296578.4 | K22: 2020-04-08 | L22: 2925 | M22: INE731H01025
A23: ADANIENT | B23: EQ | C23: 136.85 | D23: 147.15 | E23: 134.9 | F23: 138.1 | G23: 137.5 | H23: 138.15 | I23: 3237290 | J23: 456492273.1 | K23: 2020-04-08 | L23: 23696 | M23: INE423A01024
A24: ADANIGAS | B24: EQ | C24: 93.9 | D24: 96.35 | E24: 90.5 | F24: 90.8 | G24: 90.65 | H24: 94 | I24: 1888606 | J24: 176837924.4 | K24: 2020-04-08 | L24: 14517 | M24: INE399L01023
A25: ADANIGREEN | B25: EQ | C25: 166.85 | D25: 166.85 | E25: 162 | F25: 166.45 | G25: 166.85 | H25: 158.95 | I25: 702014 | J25: 116248737 | K25: 2020-04-08 | L25: 10187 | M25: INE364U01010
A26: ADANIPORTS | B26: EQ | C26: 248 | D26: 255.85 | E26: 242.75 | F26: 250.85 | G26: 249.7 | H26: 248.1 | I26: 6897883 | J26: 1724830525 | K26: 2020-04-08 | L26: 81499 | M26: INE742F01042
A27: ADANIPOWER | B27: EQ | C27: 28.65 | D27: 31.15 | E27: 27.5 | F27: 28.95 | G27: 28.85 | H27: 28.8 | I27: 12308064 | J27: 361987996.9 | K27: 2020-04-08 | L27: 23153 | M27: INE814H01011
A28: ADANITRANS | B28: EQ | C28: 196.65 | D28: 202 | E28: 190 | F28: 193.65 | G28: 193.5 | H28: 198.3 | I28: 306320 | J28: 59783940.3 | K28: 2020-04-08 | L28: 4236 | M28: INE931S01010
A29: ADFFOODS | B29: EQ | C29: 187.85 | D29: 192.25 | E29: 184 | F29: 187.7 | G29: 187.3 | H29: 183.1 | I29: 22107 | J29: 4185556.05 | K29: 2020-04-08 | L29: 773 | M29: INE982B01019
A30: ADHUNIKIND | B30: EQ | C30: 13.3 | D30: 13.3 | E30: 13.3 | F30: 13.3 | G30: 13.3 | H30: 12.7 | I30: 5518 | J30: 73389.4 | K30: 2020-04-08 | L30: 21 | M30: INE452L01012
A31: ADLABS | B31: EQ | C31: 2.75 | D31: 2.85 | E31: 2.75 | F31: 2.85 | G31: 2.85 | H31: 2.75 | I31: 19360 | J31: 54965.35 | K31: 2020-04-08 | L31: 72 | M31: INE172N01012
A32: ADORWELD | B32: EQ | C32: 195.7 | D32: 201.9 | E32: 193.95 | F32: 195.1 | G32: 194.45 | H32: 196.75 | I32: 1438 | J32: 283768.75 | K32: 2020-04-08 | L32: 94 | M32: INE045A01017
A33: ADROITINFO | B33: EQ | C33: 5.5 | D33: 5.7 | E33: 5.45 | F33: 5.7 | G33: 5.7 | H33: 5.7 | I33: 691 | J33: 3857 | K33: 2020-04-08 | L33: 25 | M33: INE737B01033
A34: ADSL | B34: EQ | C34: 13.05 | D34: 13.2 | E34: 12.4 | F34: 12.5 | G34: 12.45 | H34: 12.7 | I34: 16203 | J34: 205559.25 | K34: 2020-04-08 | L34: 143 | M34: INE102I01027
A35: ADVANIHOTR | B35: EQ | C35: 30.1 | D35: 33 | E35: 30.1 | F35: 31.8 | G35: 31.5 | H35: 30.65 | I35: 5340 | J35: 169948.95 | K35: 2020-04-08 | L35: 193 | M35: INE199C01026
A36: ADVENZYMES | B36: EQ | C36: 140.2 | D36: 146.55 | E36: 137.95 | F36: 139.2 | G36: 139.75 | H36: 136.55 | I36: 77441 | J36: 11046136.15 | K36: 2020-04-08 | L36: 1990 | M36: INE837H01020
A37: AEGISCHEM | B37: EQ | C37: 150 | D37: 158.5 | E37: 147.1 | F37: 156.35 | G37: 156.05 | H37: 144.1 | I37: 175470 | J37: 27041093.9 | K37: 2020-04-08 | L37: 4268 | M37: INE208C01025
A38: AFFLE | B38: BE | C38: 1050 | D38: 1053.45 | E38: 1030 | F38: 1053.45 | G38: 1053.45 | H38: 1003.3 | I38: 8191 | J38: 8619737.5 | K38: 2020-04-08 | L38: 470 | M38: INE00WC01019
A39: AGARIND | B39: EQ | C39: 49.8 | D39: 52.85 | E39: 49.05 | F39: 52.25 | G39: 52.5 | H39: 49.95 | I39: 7826 | J39: 404450.25 | K39: 2020-04-08 | L39: 207 | M39: INE204E01012
A40: AGCNET | B40: BE | C40: 224.35 | D40: 235.55 | E40: 213.25 | F40: 234.7 | G40: 235.55 | H40: 224.35 | I40: 2524 | J40: 573063 | K40: 2020-04-08 | L40: 70 | M40: INE676A01019
A41: AGRITECH | B41: EQ | C41: 23.95 | D41: 23.95 | E41: 23.95 | F41: 23.95 | G41: 23.95 | H41: 22.85 | I41: 504 | J41: 12070.8 | K41: 2020-04-08 | L41: 18 | M41: INE449G01018
A42: AGROPHOS | B42: EQ | C42: 5.7 | D42: 5.7 | E42: 5.2 | F42: 5.7 | G42: 5.7 | H42: 5.45 | I42: 40596 | J42: 227201.55 | K42: 2020-04-08 | L42: 340 | M42: INE740V01019
A43: AHLEAST | B43: EQ | C43: 133.15 | D43: 141.85 | E43: 128.15 | F43: 131.55 | G43: 128.35 | H43: 131.5 | I43: 3303 | J43: 439718.1 | K43: 2020-04-08 | L43: 350 | M43: INE926K01017
A44: AHLUCONT | B44: EQ | C44: 145.95 | D44: 148 | E44: 136 | F44: 146.3 | G44: 148 | H44: 144.1 | I44: 153910 | J44: 21077811.2 | K44: 2020-04-08 | L44: 995 | M44: INE758C01029
A45: AHLWEST | B45: EQ | C45: 289.9 | D45: 289.9 | E45: 270.95 | F45: 275 | G45: 275 | H45: 277 | I45: 238 | J45: 67030 | K45: 2020-04-08 | L45: 91 | M45: INE915K01010
A46: AIAENG | B46: EQ | C46: 1259.45 | D46: 1291 | E46: 1229 | F46: 1255.85 | G46: 1268 | H46: 1249.9 | I46: 73842 | J46: 92756824.05 | K46: 2020-04-08 | L46: 10503 | M46: INE212H01026
A47: AIONJSW | B47: EQ | C47: 10.9 | D47: 11.1 | E47: 10.2 | F47: 11.1 | G47: 11.1 | H47: 10.6 | I47: 90347 | J47: 996144.95 | K47: 2020-04-08 | L47: 180 | M47: INE743C01021
A48: AIRAN | B48: EQ | C48: 9.8 | D48: 10.3 | E48: 9.75 | F48: 9.8 | G48: 9.75 | H48: 9.85 | I48: 1826 | J48: 18127.1 | K48: 2020-04-08 | L48: 25 | M48: INE645W01026
A49: AJANTPHARM | B49: EQ | C49: 1325.75 | D49: 1450 | E49: 1325 | F49: 1367.5 | G49: 1363 | H49: 1340.2 | I49: 166582 | J49: 233126032.5 | K49: 2020-04-08 | L49: 8748 | M49: INE031B01049
A50: AJMERA | B50: EQ | C50: 64.95 | D50: 70.5 | E50: 64.6 | F50: 68.4 | G50: 69.9 | H50: 64.65 | I50: 31766 | J50: 2167947.5 | K50: 2020-04-08 | L50: 909 | M50: INE298G01027
A51: AKASH | B51: BE | C51: 90 | D51: 90 | E51: 90 | F51: 90 | G51: 90 | H51: 90.95 | I51: 500 | J51: 45000 | K51: 2020-04-08 | L51: 1 | M51: INE737W01013
A52: AKSHARCHEM | B52: EQ | C52: 174.75 | D52: 177.6 | E52: 165.3 | F52: 169.7 | G52: 167.15 | H52: 165.25 | I52: 3130 | J52: 531878.25 | K52: 2020-04-08 | L52: 293 | M52: INE542B01011
A53: AKSHOPTFBR | B53: EQ | C53: 3.6 | D53: 3.6 | E53: 3.6 | F53: 3.6 | G53: 3.6 | H53: 3.45 | I53: 27750 | J53: 99900 | K53: 2020-04-08 | L53: 45 | M53: INE523B01011
A54: AKZOINDIA | B54: EQ | C54: 2084.95 | D54: 2133 | E54: 2030 | F54: 2047.9 | G54: 2040 | H54: 2086.75 | I54: 12835 | J54: 26789836.95 | K54: 2020-04-08 | L54: 2242 | M54: INE133A01011
A55: ALANKIT | B55: EQ | C55: 12.9 | D55: 12.9 | E55: 12.9 | F55: 12.9 | G55: 12.9 | H55: 12.3 | I55: 14247 | J55: 183786.3 | K55: 2020-04-08 | L55: 75 | M55: INE914E01040
A56: ALBERTDAVD | B56: EQ | C56: 338.8 | D56: 364.75 | E56: 338.8 | F56: 353.15 | G56: 352 | H56: 341.15 | I56: 24334 | J56: 8579416.55 | K56: 2020-04-08 | L56: 1220 | M56: INE155C01010
A57: ALCHEM | B57: BE | C57: 1.4 | D57: 1.4 | E57: 1.4 | F57: 1.4 | G57: 1.4 | H57: 1.35 | I57: 8608 | J57: 12051.2 | K57: 2020-04-08 | L57: 18 | M57: INE964B01033
A58: ALEMBICLTD | B58: EQ | C58: 43.7 | D58: 48.05 | E58: 39.7 | F58: 45.05 | G58: 45.5 | H58: 42.15 | I58: 695128 | J58: 31779132.75 | K58: 2020-04-08 | L58: 6991 | M58: INE426A01027
A59: ALICON | B59: EQ | C59: 195.95 | D59: 196 | E59: 181.05 | F59: 184.75 | G59: 184 | H59: 189.25 | I59: 3909 | J59: 722322.5 | K59: 2020-04-08 | L59: 123 | M59: INE062D01024
A60: ALKALI | B60: EQ | C60: 29.95 | D60: 31.75 | E60: 29.65 | F60: 31.75 | G60: 31.75 | H60: 28.9 | I60: 9346 | J60: 289594.95 | K60: 2020-04-08 | L60: 349 | M60: INE773I01017
A61: ALKEM | B61: EQ | C61: 2360 | D61: 2736.5 | E61: 2326.2 | F61: 2671.15 | G61: 2639 | H61: 2324.05 | I61: 371259 | J61: 967330461.6 | K61: 2020-04-08 | L61: 44106 | M61: INE540L01014
A62: ALKYLAMINE | B62: EQ | C62: 1236.6 | D62: 1398 | E62: 1222.2 | F62: 1334.05 | G62: 1334 | H62: 1232.45 | I62: 41501 | J62: 55061848.25 | K62: 2020-04-08 | L62: 3832 | M62: INE150B01021
A63: ALLCARGO | B63: EQ | C63: 63.05 | D63: 65.85 | E63: 63 | F63: 65.7 | G63: 65.85 | H63: 59.9 | I63: 300794 | J63: 19569467.05 | K63: 2020-04-08 | L63: 3098 | M63: INE418H01029
A64: ALLSEC | B64: EQ | C64: 131.7 | D64: 131.9 | E64: 129.35 | F64: 131.9 | G64: 131.9 | H64: 125.65 | I64: 1335 | J64: 175836.2 | K64: 2020-04-08 | L64: 37 | M64: INE835G01018
A65: ALOKINDS | B65: EQ | C65: 4.7 | D65: 4.7 | E65: 4.7 | F65: 4.7 | G65: 4.7 | H65: 4.5 | I65: 1698707 | J65: 7983922.9 | K65: 2020-04-08 | L65: 397 | M65: INE270A01029
A66: ALPA | B66: EQ | C66: 18.55 | D66: 20.15 | E66: 17.8 | F66: 20.15 | G66: 20.15 | H66: 16.8 | I66: 131233 | J66: 2593665.9 | K66: 2020-04-08 | L66: 858 | M66: INE385I01010
A67: ALPHAGEO | B67: EQ | C67: 126 | D67: 137.5 | E67: 126 | F67: 134.45 | G67: 133.3 | H67: 129.7 | I67: 22258 | J67: 2986986.5 | K67: 2020-04-08 | L67: 783 | M67: INE137C01018
A68: ALPSINDUS | B68: EQ | C68: 0.65 | D68: 0.75 | E68: 0.65 | F68: 0.75 | G68: 0.7 | H68: 0.7 | I68: 25369 | J68: 18108.8 | K68: 2020-04-08 | L68: 33 | M68: INE093B01015
A69: AMARAJABAT | B69: EQ | C69: 501.1 | D69: 513.65 | E69: 488.45 | F69: 502.05 | G69: 504.9 | H69: 501.1 | I69: 755312 | J69: 378881689.9 | K69: 2020-04-08 | L69: 18162 | M69: INE885A01032
A70: AMBER | B70: EQ | C70: 1189.9 | D70: 1199 | E70: 1072 | F70: 1108.05 | G70: 1109.25 | H70: 1189.9 | I70: 93512 | J70: 105805912.2 | K70: 2020-04-08 | L70: 14252 | M70: INE371P01015
A71: AMBIKCO | B71: EQ | C71: 539.25 | D71: 559 | E71: 531.05 | F71: 545.2 | G71: 536.4 | H71: 537.25 | I71: 3988 | J71: 2168349.4 | K71: 2020-04-08 | L71: 406 | M71: INE540G01014
A72: AMBUJACEM | B72: EQ | C72: 158.5 | D72: 159.5 | E72: 148.2 | F72: 149.7 | G72: 149.55 | H72: 159 | I72: 10421438 | J72: 1597618498 | K72: 2020-04-08 | L72: 84074 | M72: INE079A01024
A73: AMDIND | B73: EQ | C73: 9.9 | D73: 10.5 | E73: 9.5 | F73: 9.8 | G73: 9.55 | H73: 10 | I73: 17757 | J73: 177659.15 | K73: 2020-04-08 | L73: 707 | M73: INE005I01014
A74: AMJLAND | B74: EQ | C74: 14.3 | D74: 14.95 | E74: 13.7 | F74: 14 | G74: 14 | H74: 14.25 | I74: 12523 | J74: 176065.3 | K74: 2020-04-08 | L74: 106 | M74: INE606A01024
A75: AMRUTANJAN | B75: EQ | C75: 326 | D75: 352 | E75: 320.1 | F75: 345.45 | G75: 344.3 | H75: 324 | I75: 278725 | J75: 95586275.35 | K75: 2020-04-08 | L75: 9075 | M75: INE098F01031
A76: ANANTRAJ | B76: EQ | C76: 19.55 | D76: 20.15 | E76: 18.6 | F76: 18.75 | G76: 18.8 | H76: 19.55 | I76: 184694 | J76: 3509270.8 | K76: 2020-04-08 | L76: 1012 | M76: INE242C01024
A77: ANDHRACEMT | B77: EQ | C77: 1.8 | D77: 1.9 | E77: 1.7 | F77: 1.85 | G77: 1.9 | H77: 1.75 | I77: 105618 | J77: 196578.05 | K77: 2020-04-08 | L77: 227 | M77: INE666E01012
A78: ANDHRAPAP | B78: EQ | C78: 148.55 | D78: 148.55 | E78: 147 | F78: 148.55 | G78: 148.55 | H78: 141.5 | I78: 2622 | J78: 389210.05 | K78: 2020-04-08 | L78: 70 | M78: INE435A01028
A79: ANDHRSUGAR | B79: EQ | C79: 206.95 | D79: 212 | E79: 195 | F79: 206.05 | G79: 205.85 | H79: 203.55 | I79: 35494 | J79: 7286675.25 | K79: 2020-04-08 | L79: 1328 | M79: INE715B01013
A80: ANIKINDS | B80: EQ | C80: 7.25 | D80: 7.25 | E80: 6.65 | F80: 6.8 | G80: 6.8 | H80: 6.95 | I80: 4994 | J80: 34701.65 | K80: 2020-04-08 | L80: 35 | M80: INE087B01017
A81: ANKITMETAL | B81: EQ | C81: 0.4 | D81: 0.45 | E81: 0.35 | F81: 0.45 | G81: 0.45 | H81: 0.4 | I81: 64810 | J81: 27213.05 | K81: 2020-04-08 | L81: 29 | M81: INE106I01010
A82: ANSALAPI | B82: EQ | C82: 3.65 | D82: 3.8 | E82: 3.65 | F82: 3.8 | G82: 3.8 | H82: 3.65 | I82: 3974 | J82: 15023.75 | K82: 2020-04-08 | L82: 28 | M82: INE436A01026
A83: ANSALHSG | B83: EQ | C83: 3 | D83: 3 | E83: 2.8 | F83: 2.9 | G83: 2.9 | H83: 2.9 | I83: 31510 | J83: 91846.6 | K83: 2020-04-08 | L83: 64 | M83: INE880B01015
A84: ANUP | B84: EQ | C84: 304.75 | D84: 323.7 | E84: 303.1 | F84: 313.2 | G84: 313.05 | H84: 312.75 | I84: 11786 | J84: 3732090.6 | K84: 2020-04-08 | L84: 460 | M84: INE294Z01018
A85: APARINDS | B85: EQ | C85: 296.95 | D85: 300.35 | E85: 290.6 | F85: 295.85 | G85: 295.5 | H85: 296.05 | I85: 6051 | J85: 1806443.45 | K85: 2020-04-08 | L85: 427 | M85: INE372A01015
A86: APCL | B86: EQ | C86: 102.4 | D86: 102.4 | E86: 95.2 | F86: 97.35 | G86: 97 | H86: 98.5 | I86: 3739 | J86: 362867.6 | K86: 2020-04-08 | L86: 79 | M86: INE071F01012
A87: APCOTEXIND | B87: EQ | C87: 87.55 | D87: 94.85 | E87: 86 | F87: 87.5 | G87: 86.1 | H87: 87.45 | I87: 13115 | J87: 1175575.25 | K87: 2020-04-08 | L87: 323 | M87: INE116A01032
A88: APEX | B88: EQ | C88: 190 | D88: 201.65 | E88: 185.1 | F88: 201.65 | G88: 201.65 | H88: 183.35 | I88: 141806 | J88: 27768799.35 | K88: 2020-04-08 | L88: 3293 | M88: INE346W01013
A89: APLAPOLLO | B89: EQ | C89: 1245 | D89: 1274 | E89: 1220 | F89: 1259.5 | G89: 1258 | H89: 1231.75 | I89: 21152 | J89: 26442272.1 | K89: 2020-04-08 | L89: 3032 | M89: INE702C01019
A90: APLLTD | B90: EQ | C90: 630 | D90: 702.65 | E90: 615.5 | F90: 640.85 | G90: 626 | H90: 610.2 | I90: 540272 | J90: 353935242.1 | K90: 2020-04-08 | L90: 30323 | M90: INE901L01018
A91: APOLLO | B91: EQ | C91: 45.5 | D91: 56 | E91: 45.25 | F91: 54.3 | G91: 53.55 | H91: 46.7 | I91: 68951 | J91: 3631629.4 | K91: 2020-04-08 | L91: 1694 | M91: INE713T01010
A92: APOLLOHOSP | B92: EQ | C92: 1225.9 | D92: 1338.4 | E92: 1211 | F92: 1263.95 | G92: 1261 | H92: 1225.95 | I92: 2070270 | J92: 2654141027 | K92: 2020-04-08 | L92: 156926 | M92: INE437A01024
A93: APOLLOPIPE | B93: EQ | C93: 279.5 | D93: 304 | E93: 262.95 | F93: 281.3 | G93: 281 | H93: 280.1 | I93: 12940 | J93: 3607793.25 | K93: 2020-04-08 | L93: 543 | M93: INE126J01016
A94: APOLLOTYRE | B94: EQ | C94: 83.5 | D94: 87.15 | E94: 82 | F94: 83.4 | G94: 83.15 | H94: 83.5 | I94: 2950752 | J94: 248872037.1 | K94: 2020-04-08 | L94: 19408 | M94: INE438A01022
A95: APOLSINHOT | B95: EQ | C95: 460.35 | D95: 460.4 | E95: 421.1 | F95: 439.8 | G95: 436 | H95: 438.6 | I95: 694 | J95: 306874.65 | K95: 2020-04-08 | L95: 84 | M95: INE451F01024
A96: APTECHT | B96: EQ | C96: 85.3 | D96: 87.7 | E96: 83.55 | F96: 84.6 | G96: 84.3 | H96: 85.3 | I96: 106721 | J96: 9133416.7 | K96: 2020-04-08 | L96: 2385 | M96: INE266F01018
A97: ARCHIDPLY | B97: EQ | C97: 16.55 | D97: 17 | E97: 16.45 | F97: 16.85 | G97: 16.95 | H97: 16.75 | I97: 4083 | J97: 68300.2 | K97: 2020-04-08 | L97: 63 | M97: INE877I01016
A98: ARCHIES | B98: EQ | C98: 9.4 | D98: 9.5 | E98: 9 | F98: 9.05 | G98: 9.15 | H98: 9.45 | I98: 24343 | J98: 224667.6 | K98: 2020-04-08 | L98: 150 | M98: INE731A01020
A99: ARCOTECH | B99: EQ | C99: 0.9 | D99: 0.95 | E99: 0.85 | F99: 0.9 | G99: 0.9 | H99: 0.9 | I99: 51482 | J99: 47500.05 | K99: 2020-04-08 | L99: 77 | M99: INE574I01035
A100: ARENTERP | B100: EQ | C100: 12.65 | D100: 12.65 | E100: 12.05 | F100: 12.05 | G100: 12.05 | H100: 12.65 | I100: 63 | J100: 765.15 | K100: 2020-04-08 | L100: 4 | M100: INE610C01014
A101: ARIES | B101: EQ | C101: 44.4 | D101: 47.6 | E101: 42.65 | F101: 43.6 | G101: 44 | H101: 44.4 | I101: 50875 | J101: 2250478.25 | K101: 2020-04-08 | L101: 1080 | M101: INE298I01015
A102: ARIHANT | B102: EQ | C102: 12.05 | D102: 12.55 | E102: 11.6 | F102: 12.15 | G102: 12.5 | H102: 12.05 | I102: 964 | J102: 11418.15 | K102: 2020-04-08 | L102: 27 | M102: INE413D01011
A103: ARIHANTSUP | B103: EQ | C103: 21.4 | D103: 21.45 | E103: 19.45 | F103: 19.5 | G103: 21 | H103: 20.45 | I103: 4362 | J103: 85414.05 | K103: 2020-04-08 | L103: 80 | M103: INE643K01018
A104: ARMANFIN | B104: EQ | C104: 340 | D104: 373.2 | E104: 337.7 | F104: 373.05 | G104: 373.2 | H104: 355.45 | I104: 50867 | J104: 18465582.65 | K104: 2020-04-08 | L104: 911 | M104: INE109C01017
A105: AROGRANITE | B105: EQ | C105: 21.95 | D105: 24.5 | E105: 20.85 | F105: 24.2 | G105: 24.5 | H105: 22.35 | I105: 26052 | J105: 602565.3 | K105: 2020-04-08 | L105: 183 | M105: INE210C01013
A106: ARROWGREEN | B106: BE | C106: 33.55 | D106: 35 | E106: 33.45 | F106: 33.45 | G106: 33.45 | H106: 33.85 | I106: 5735 | J106: 195198.5 | K106: 2020-04-08 | L106: 32 | M106: INE570D01018
A107: ARSHIYA | B107: EQ | C107: 7.1 | D107: 7.6 | E107: 7.1 | F107: 7.6 | G107: 7.6 | H107: 7.25 | I107: 23178 | J107: 175819.45 | K107: 2020-04-08 | L107: 63 | M107: INE968D01022
A108: ARSSINFRA | B108: EQ | C108: 11.25 | D108: 12.3 | E108: 10.9 | F108: 11.8 | G108: 11.85 | H108: 11.15 | I108: 16388 | J108: 189874.85 | K108: 2020-04-08 | L108: 107 | M108: INE267I01010
A109: ARTEMISMED | B109: EQ | C109: 140 | D109: 147 | E109: 136.3 | F109: 138 | G109: 137 | H109: 139.15 | I109: 1729 | J109: 245138.4 | K109: 2020-04-08 | L109: 31 | M109: INE025R01013
A110: ARVIND | B110: EQ | C110: 23.5 | D110: 24.4 | E110: 22.45 | F110: 23.75 | G110: 23.75 | H110: 22.2 | I110: 2137547 | J110: 50521243.45 | K110: 2020-04-08 | L110: 7057 | M110: INE034A01011
A111: ARVINDFASN | B111: EQ | C111: 139.8 | D111: 141.9 | E111: 132.2 | F111: 133.8 | G111: 134.75 | H111: 139.85 | I111: 46445 | J111: 6387304.5 | K111: 2020-04-08 | L111: 1243 | M111: INE955V01021
A112: ARVSMART | B112: EQ | C112: 64.05 | D112: 67 | E112: 64 | F112: 65.4 | G112: 65.5 | H112: 65 | I112: 10000 | J112: 656036.65 | K112: 2020-04-08 | L112: 320 | M112: INE034S01021
A113: ASAHIINDIA | B113: EQ | C113: 152 | D113: 158 | E113: 147.05 | F113: 155.5 | G113: 152.35 | H113: 153.2 | I113: 5605 | J113: 858978.65 | K113: 2020-04-08 | L113: 218 | M113: INE439A01020
A114: ASAHISONG | B114: EQ | C114: 80.8 | D114: 88.95 | E114: 80.05 | F114: 85.25 | G114: 86 | H114: 80.9 | I114: 8055 | J114: 692533.2 | K114: 2020-04-08 | L114: 314 | M114: INE228I01012
A115: ASAL | B115: EQ | C115: 14.8 | D115: 14.9 | E115: 14.5 | F115: 14.5 | G115: 14.5 | H115: 14.25 | I115: 8037 | J115: 118819.3 | K115: 2020-04-08 | L115: 36 | M115: INE900C01027
A116: ASALCBR | B116: EQ | C116: 164.9 | D116: 175 | E116: 158 | F116: 165.7 | G116: 165 | H116: 162.9 | I116: 31033 | J116: 5116102.05 | K116: 2020-04-08 | L116: 970 | M116: INE073G01016
A117: ASHAPURMIN | B117: EQ | C117: 22.1 | D117: 22.1 | E117: 22.05 | F117: 22.1 | G117: 22.1 | H117: 21.05 | I117: 8770 | J117: 193792 | K117: 2020-04-08 | L117: 43 | M117: INE348A01023
A118: ASHIANA | B118: EQ | C118: 52.9 | D118: 52.9 | E118: 49.1 | F118: 49.95 | G118: 50 | H118: 50 | I118: 69042 | J118: 3480534.3 | K118: 2020-04-08 | L118: 621 | M118: INE365D01021
A119: ASHIMASYN | B119: EQ | C119: 3.9 | D119: 3.9 | E119: 3.9 | F119: 3.9 | G119: 3.9 | H119: 3.55 | I119: 28914 | J119: 112764.6 | K119: 2020-04-08 | L119: 46 | M119: INE440A01010
A120: ASHOKA | B120: EQ | C120: 38.35 | D120: 42.7 | E120: 37.8 | F120: 42.7 | G120: 42.7 | H120: 38.85 | I120: 1577514 | J120: 65134101.3 | K120: 2020-04-08 | L120: 8475 | M120: INE442H01029
A121: ASHOKLEY | B121: EQ | C121: 39.85 | D121: 47.8 | E121: 38.75 | F121: 43.85 | G121: 43.6 | H121: 39.85 | I121: 76817768 | J121: 3355417806 | K121: 2020-04-08 | L121: 169889 | M121: INE208A01029
A122: ASIANHOTNR | B122: EQ | C122: 70 | D122: 71.8 | E122: 66 | F122: 71.55 | G122: 71.5 | H122: 65.4 | I122: 4982 | J122: 349215.55 | K122: 2020-04-08 | L122: 198 | M122: INE363A01022
A123: ASIANPAINT | B123: EQ | C123: 1623.8 | D123: 1687.8 | E123: 1600 | F123: 1608.95 | G123: 1608 | H123: 1623.8 | I123: 2382216 | J123: 3911658954 | K123: 2020-04-08 | L123: 101146 | M123: INE021A01026
A124: ASIANTILES | B124: EQ | C124: 156 | D124: 162.9 | E124: 155 | F124: 157.6 | G124: 156.5 | H124: 157.65 | I124: 19917 | J124: 3151924.4 | K124: 2020-04-08 | L124: 431 | M124: INE022I01019
A125: ASPINWALL | B125: EQ | C125: 93 | D125: 98.7 | E125: 83.55 | F125: 93 | G125: 93 | H125: 90 | I125: 413 | J125: 38837.15 | K125: 2020-04-08 | L125: 20 | M125: INE991I01015
A126: ASTEC | B126: EQ | C126: 450.65 | D126: 465.05 | E126: 440 | F126: 460.05 | G126: 460.3 | H126: 443.9 | I126: 5283 | J126: 2392645.5 | K126: 2020-04-08 | L126: 494 | M126: INE563J01010
A127: ASTERDM | B127: EQ | C127: 96 | D127: 103.5 | E127: 93.8 | F127: 99.25 | G127: 99 | H127: 94.55 | I127: 996205 | J127: 98978623.7 | K127: 2020-04-08 | L127: 4570 | M127: INE914M01019
A128: ASTRAL | B128: EQ | C128: 962 | D128: 986 | E128: 952 | F128: 955.45 | G128: 954 | H128: 973.85 | I128: 59212 | J128: 57381672.65 | K128: 2020-04-08 | L128: 7623 | M128: INE006I01046
A129: ASTRAMICRO | B129: EQ | C129: 56.9 | D129: 62.55 | E129: 55.85 | F129: 61.7 | G129: 62.55 | H129: 56.9 | I129: 253097 | J129: 15146656.55 | K129: 2020-04-08 | L129: 1961 | M129: INE386C01029
A130: ASTRAZEN | B130: EQ | C130: 2700 | D130: 2830 | E130: 2544 | F130: 2561.6 | G130: 2549 | H130: 2693.65 | I130: 38510 | J130: 104113109 | K130: 2020-04-08 | L130: 6647 | M130: INE203A01020
A131: ASTRON | B131: EQ | C131: 26.15 | D131: 29.9 | E131: 25.3 | F131: 27.5 | G131: 27.8 | H131: 27.65 | I131: 61618 | J131: 1693449.45 | K131: 2020-04-08 | L131: 1743 | M131: INE646X01014
A132: ATFL | B132: EQ | C132: 479.65 | D132: 499 | E132: 475 | F132: 481.55 | G132: 475 | H132: 479.65 | I132: 6104 | J132: 2975754.9 | K132: 2020-04-08 | L132: 411 | M132: INE209A01019
A133: ATLANTA | B133: EQ | C133: 3 | D133: 3.15 | E133: 3 | F133: 3.15 | G133: 3.15 | H133: 3 | I133: 8624 | J133: 26936.35 | K133: 2020-04-08 | L133: 28 | M133: INE285H01022
A134: ATLASCYCLE | B134: BE | C134: 30 | D134: 31.5 | E134: 29.5 | F134: 30.7 | G134: 30.7 | H134: 30 | I134: 2000 | J134: 60118.65 | K134: 2020-04-08 | L134: 42 | M134: INE446A01025
A135: ATNINTER | B135: BE | C135: 0.1 | D135: 0.1 | E135: 0.1 | F135: 0.1 | G135: 0.1 | H135: 0.1 | I135: 12716 | J135: 1271.6 | K135: 2020-04-08 | L135: 5 | M135: INE803A01027
A136: ATUL | B136: EQ | C136: 3930 | D136: 4005 | E136: 3908.35 | F136: 3951.85 | G136: 3954.95 | H136: 3927.1 | I136: 76768 | J136: 304824820.4 | K136: 2020-04-08 | L136: 11635 | M136: INE100A01010
A137: ATULAUTO | B137: EQ | C137: 151.35 | D137: 154.05 | E137: 146.8 | F137: 153.45 | G137: 153.95 | H137: 146.75 | I137: 13699 | J137: 2093863.3 | K137: 2020-04-08 | L137: 810 | M137: INE951D01028
A138: AUBANK | B138: EQ | C138: 461.2 | D138: 490 | E138: 457 | F138: 480.3 | G138: 473 | H138: 478.4 | I138: 1791057 | J138: 837589012.6 | K138: 2020-04-08 | L138: 59410 | M138: INE949L01017
A139: AURIONPRO | B139: EQ | C139: 41.75 | D139: 43.7 | E139: 40 | F139: 42.9 | G139: 42.9 | H139: 40.95 | I139: 8828 | J139: 376649.05 | K139: 2020-04-08 | L139: 213 | M139: INE132H01018
A140: AUROPHARMA | B140: EQ | C140: 432.5 | D140: 476.3 | E140: 426.3 | F140: 438.15 | G140: 438.9 | H140: 445.7 | I140: 13186213 | J140: 5925576015 | K140: 2020-04-08 | L140: 205238 | M140: INE406A01037
A141: AUSOMENT | B141: EQ | C141: 26.1 | D141: 26.1 | E141: 26.1 | F141: 26.1 | G141: 26.1 | H141: 25 | I141: 100 | J141: 2610 | K141: 2020-04-08 | L141: 1 | M141: INE218C01016
A142: AUTOAXLES | B142: EQ | C142: 413 | D142: 423.5 | E142: 398.05 | F142: 413.45 | G142: 416 | H142: 399.3 | I142: 5448 | J142: 2244823.45 | K142: 2020-04-08 | L142: 638 | M142: INE449A01011
A143: AUTOIND | B143: EQ | C143: 11.3 | D143: 11.35 | E143: 11.1 | F143: 11.35 | G143: 11.35 | H143: 10.85 | I143: 9358 | J143: 105383.05 | K143: 2020-04-08 | L143: 68 | M143: INE718H01014
A144: AUTOLITIND | B144: EQ | C144: 13.2 | D144: 14.4 | E144: 13.2 | F144: 13.8 | G144: 13.9 | H144: 13.75 | I144: 4699 | J144: 65525.8 | K144: 2020-04-08 | L144: 68 | M144: INE448A01013
A145: AVADHSUGAR | B145: EQ | C145: 143.55 | D145: 143.55 | E145: 143.55 | F145: 143.55 | G145: 143.55 | H145: 136.75 | I145: 13174 | J145: 1891127.7 | K145: 2020-04-08 | L145: 157 | M145: INE349W01017
A146: AVANTIFEED | B146: EQ | C146: 311 | D146: 341.55 | E146: 310.5 | F146: 341.35 | G146: 341.55 | H146: 310.5 | I146: 748404 | J146: 246839085.1 | K146: 2020-04-08 | L146: 23272 | M146: INE871C01038
A147: AVTNPL | B147: EQ | C147: 25.45 | D147: 27.8 | E147: 24.25 | F147: 27.25 | G147: 27 | H147: 25.05 | I147: 213540 | J147: 5643644.4 | K147: 2020-04-08 | L147: 1601 | M147: INE488D01021
A148: AXISBANK | B148: EQ | C148: 383.75 | D148: 427.7 | E148: 373.5 | F148: 391.35 | G148: 391.4 | H148: 388.85 | I148: 64930772 | J148: 2.575974593e+10 | K148: 2020-04-08 | L148: 769506 | M148: INE238A01034
A149: AXISCADES | B149: EQ | C149: 30.9 | D149: 31.5 | E149: 28.65 | F149: 31.4 | G149: 31.5 | H149: 30 | I149: 39670 | J149: 1232336.75 | K149: 2020-04-08 | L149: 621 | M149: INE555B01013
A150: AXISGOLD | B150: EQ | C150: 3969.9 | D150: 3989 | E150: 3925 | F150: 3973.3 | G150: 3983 | H150: 3919.55 | I150: 701 | J150: 2769851.6 | K150: 2020-04-08 | L150: 206 | M150: INF846K01347
A151: AXISNIFTY | B151: EQ | C151: 1000.01 | D151: 1000.01 | E151: 1000.01 | F151: 1000.01 | G151: 1000.01 | H151: 1007 | I151: 2 | J151: 2000.02 | K151: 2020-04-08 | L151: 1 | M151: INF846K01ZL0
A152: AYMSYNTEX | B152: EQ | C152: 15.5 | D152: 16.8 | E152: 15.5 | F152: 16.5 | G152: 16.5 | H152: 16.1 | I152: 2637 | J152: 43548.55 | K152: 2020-04-08 | L152: 26 | M152: INE193B01039
A153: BAFNAPH | B153: EQ | C153: 16.05 | D153: 16.05 | E153: 16.05 | F153: 16.05 | G153: 16.05 | H153: 15.3 | I153: 272 | J153: 4365.6 | K153: 2020-04-08 | L153: 8 | M153: INE878I01022
A154: BAGFILMS | B154: BE | C154: 1.75 | D154: 1.8 | E154: 1.75 | F154: 1.8 | G154: 1.8 | H154: 1.75 | I154: 3861 | J154: 6912.3 | K154: 2020-04-08 | L154: 20 | M154: INE116D01028
A155: BAJAJ-AUTO | B155: EQ | C155: 2180 | D155: 2383.45 | E155: 2168.55 | F155: 2241.7 | G155: 2260 | H155: 2280.05 | I155: 840875 | J155: 1933266167 | K155: 2020-04-08 | L155: 59866 | M155: INE917I01010
A156: BAJAJCON | B156: EQ | C156: 136 | D156: 148.65 | E156: 135.1 | F156: 137.95 | G156: 138 | H156: 138.15 | I156: 1031633 | J156: 145711259.1 | K156: 2020-04-08 | L156: 26102 | M156: INE933K01021
A157: BAJAJELEC | B157: EQ | C157: 277.3 | D157: 294.5 | E157: 277.3 | F157: 287.8 | G157: 289 | H157: 277.3 | I157: 58251 | J157: 16797537.55 | K157: 2020-04-08 | L157: 3821 | M157: INE193E01025
A158: BAJAJFINSV | B158: EQ | C158: 4575 | D158: 4950 | E158: 4537.8 | F158: 4608.5 | G158: 4604 | H158: 4724.9 | I158: 1113057 | J158: 5259493342 | K158: 2020-04-08 | L158: 158158 | M158: INE918I01018
A159: BAJAJHIND | B159: EQ | C159: 3.05 | D159: 3.05 | E159: 3.05 | F159: 3.05 | G159: 3.05 | H159: 2.95 | I159: 80900 | J159: 246745 | K159: 2020-04-08 | L159: 110 | M159: INE306A01021
A160: BAJAJHLDNG | B160: EQ | C160: 2027.95 | D160: 2073.85 | E160: 1925 | F160: 2024.75 | G160: 2025 | H160: 1978.9 | I160: 25453 | J160: 51363834.45 | K160: 2020-04-08 | L160: 6198 | M160: INE118A01012
A161: BAJFINANCE | B161: EQ | C161: 2184 | D161: 2374 | E161: 2144.15 | F161: 2332.9 | G161: 2329 | H161: 2253.35 | I161: 9109346 | J161: 2.088826331e+10 | K161: 2020-04-08 | L161: 516967 | M161: INE296A01024
A162: BALAJITELE | B162: EQ | C162: 43 | D162: 45 | E162: 40.8 | F162: 41.9 | G162: 42.15 | H162: 43.75 | I162: 194912 | J162: 8414452.4 | K162: 2020-04-08 | L162: 1677 | M162: INE794B01026
A163: BALAMINES | B163: EQ | C163: 277 | D163: 296 | E163: 260.4 | F163: 283.65 | G163: 284.45 | H163: 271.2 | I163: 70594 | J163: 20058887.5 | K163: 2020-04-08 | L163: 2337 | M163: INE050E01027
A164: BALAXI | B164: BE | C164: 82.7 | D164: 82.7 | E164: 75.05 | F164: 79.9 | G164: 79.9 | H164: 79 | I164: 1047 | J164: 78761.9 | K164: 2020-04-08 | L164: 24 | M164: INE618N01014
A165: BALKRISHNA | B165: EQ | C165: 8.6 | D165: 8.8 | E165: 8.35 | F165: 8.8 | G165: 8.8 | H165: 8.4 | I165: 7860 | J165: 67624.35 | K165: 2020-04-08 | L165: 49 | M165: INE875R01011
A166: BALKRISIND | B166: EQ | C166: 822 | D166: 862 | E166: 815 | F166: 821.35 | G166: 818.3 | H166: 823.55 | I166: 444079 | J166: 371870250.3 | K166: 2020-04-08 | L166: 24462 | M166: INE787D01026
A167: BALLARPUR | B167: EQ | C167: 0.4 | D167: 0.4 | E167: 0.3 | F167: 0.35 | G167: 0.35 | H167: 0.35 | I167: 9769871 | J167: 3419941.15 | K167: 2020-04-08 | L167: 514 | M167: INE294A01037
A168: BALMLAWRIE | B168: EQ | C168: 84 | D168: 87.9 | E168: 81 | F168: 84.75 | G168: 85.65 | H168: 85.5 | I168: 202053 | J168: 17357055.25 | K168: 2020-04-08 | L168: 3105 | M168: INE164A01016
A169: BALPHARMA | B169: EQ | C169: 38.9 | D169: 41.7 | E169: 38.9 | F169: 41.7 | G169: 41.7 | H169: 37.95 | I169: 40933 | J169: 1688199.5 | K169: 2020-04-08 | L169: 518 | M169: INE083D01012
A170: BALRAMCHIN | B170: EQ | C170: 123.85 | D170: 126.4 | E170: 123 | F170: 126.4 | G170: 126.4 | H170: 120.4 | I170: 642515 | J170: 80884980.2 | K170: 2020-04-08 | L170: 7125 | M170: INE119A01028
A171: BANARBEADS | B171: EQ | C171: 30.25 | D171: 32.5 | E171: 29.6 | F171: 29.75 | G171: 29.75 | H171: 31.5 | I171: 160 | J171: 4873.85 | K171: 2020-04-08 | L171: 26 | M171: INE655B01011
A172: BANARISUG | B172: EQ | C172: 900 | D172: 925 | E172: 880 | F172: 886.1 | G172: 880 | H172: 893.1 | I172: 410 | J172: 368979.1 | K172: 2020-04-08 | L172: 94 | M172: INE459A01010
A173: BANCOINDIA | B173: EQ | C173: 65.45 | D173: 67.5 | E173: 64.1 | F173: 65.95 | G173: 66 | H173: 65.45 | I173: 40062 | J173: 2654130.6 | K173: 2020-04-08 | L173: 1013 | M173: INE213C01025
A174: BANDHANBNK | B174: EQ | C174: 167.95 | D174: 209.05 | E174: 167.5 | F174: 193.75 | G174: 195.25 | H174: 167.25 | I174: 30692919 | J174: 5833285762 | K174: 2020-04-08 | L174: 332020 | M174: INE545U01014
A175: BANG | B175: EQ | C175: 12.05 | D175: 13.1 | E175: 11.9 | F175: 13.1 | G175: 13.1 | H175: 12.5 | I175: 1590 | J175: 20489 | K175: 2020-04-08 | L175: 31 | M175: INE863I01016
A176: BANKBARODA | B176: EQ | C176: 48 | D176: 51.5 | E176: 47.3 | F176: 48.35 | G176: 48.45 | H176: 48.15 | I176: 27159204 | J176: 1340103716 | K176: 2020-04-08 | L176: 77070 | M176: INE028A01039
A177: BANKBEES | B177: EQ | C177: 190 | D177: 205.4 | E177: 186.06 | F177: 191.28 | G177: 191.4 | H177: 192.12 | I177: 676832 | J177: 131368353.2 | K177: 2020-04-08 | L177: 10023 | M177: INF204KB15I9
A178: BANKINDIA | B178: EQ | C178: 32.7 | D178: 34.75 | E178: 32.5 | F178: 33.35 | G178: 33.25 | H178: 32.95 | I178: 1236627 | J178: 41574499.75 | K178: 2020-04-08 | L178: 6257 | M178: INE084A01016
A179: BANSWRAS | B179: EQ | C179: 77.4 | D179: 77.4 | E179: 70.2 | F179: 71.15 | G179: 70.2 | H179: 73.75 | I179: 22922 | J179: 1667255.55 | K179: 2020-04-08 | L179: 137 | M179: INE629D01012
A180: BASF | B180: EQ | C180: 1154 | D180: 1154 | E180: 1105 | F180: 1119.95 | G180: 1120.5 | H180: 1138.25 | I180: 26139 | J180: 29425244.35 | K180: 2020-04-08 | L180: 2640 | M180: INE373A01013
A181: BASML | B181: EQ | C181: 74.05 | D181: 84 | E181: 74.05 | F181: 80 | G181: 80 | H181: 78.7 | I181: 1648 | J181: 135366.45 | K181: 2020-04-08 | L181: 154 | M181: INE186H01014
A182: BATAINDIA | B182: EQ | C182: 1246.5 | D182: 1339 | E182: 1228 | F182: 1240.05 | G182: 1238.95 | H182: 1246.4 | I182: 1346088 | J182: 1726485633 | K182: 2020-04-08 | L182: 66274 | M182: INE176A01028
A183: BAYERCROP | B183: EQ | C183: 3500 | D183: 3946.6 | E183: 3499.3 | F183: 3818.15 | G183: 3772.15 | H183: 3510 | I183: 32833 | J183: 125437264 | K183: 2020-04-08 | L183: 6737 | M183: INE462A01022
A184: BBL | B184: EQ | C184: 590 | D184: 621.25 | E184: 590 | F184: 613.05 | G184: 621.25 | H184: 589.55 | I184: 9335 | J184: 5684085.45 | K184: 2020-04-08 | L184: 804 | M184: INE464A01028
A185: BBTC | B185: EQ | C185: 810 | D185: 854.3 | E185: 774 | F185: 784.2 | G185: 787.95 | H185: 788.4 | I185: 76612 | J185: 62014517.65 | K185: 2020-04-08 | L185: 5281 | M185: INE050A01025
A186: BCG | B186: EQ | C186: 3.6 | D186: 3.65 | E186: 3.55 | F186: 3.65 | G186: 3.65 | H186: 3.5 | I186: 305718 | J186: 1113234.95 | K186: 2020-04-08 | L186: 149 | M186: INE425B01027
A187: BCP | B187: EQ | C187: 10.75 | D187: 10.75 | E187: 10.5 | F187: 10.75 | G187: 10.75 | H187: 10.25 | I187: 8192 | J187: 87934.6 | K187: 2020-04-08 | L187: 28 | M187: INE905P01028
A188: BDL | B188: EQ | C188: 191 | D188: 229 | E188: 188.2 | F188: 218.2 | G188: 216.4 | H188: 191.4 | I188: 448405 | J188: 97968192.25 | K188: 2020-04-08 | L188: 13672 | M188: INE171Z01018
A189: BEARDSELL | B189: EQ | C189: 6.7 | D189: 7.3 | E189: 6.7 | F189: 7.3 | G189: 7.3 | H189: 7.05 | I189: 1250 | J189: 8417 | K189: 2020-04-08 | L189: 4 | M189: INE520H01022
A190: BEDMUTHA | B190: EQ | C190: 12.8 | D190: 13.05 | E190: 12.45 | F190: 12.45 | G190: 12.45 | H190: 13.1 | I190: 19584 | J190: 245429.15 | K190: 2020-04-08 | L190: 32 | M190: INE844K01012
A191: BEL | B191: EQ | C191: 69 | D191: 71.3 | E191: 65.1 | F191: 66.4 | G191: 66.5 | H191: 69 | I191: 16699885 | J191: 1138705070 | K191: 2020-04-08 | L191: 69587 | M191: INE263A01024
A192: BEML | B192: EQ | C192: 492 | D192: 523.5 | E192: 492 | F192: 503.6 | G192: 503 | H192: 475.95 | I192: 890527 | J192: 458689246.6 | K192: 2020-04-08 | L192: 23670 | M192: INE258A01016
A193: BEPL | B193: EQ | C193: 31 | D193: 32.75 | E193: 30.3 | F193: 31.25 | G193: 31.6 | H193: 30.25 | I193: 333595 | J193: 10578641.1 | K193: 2020-04-08 | L193: 3321 | M193: INE922A01025
A194: BERGEPAINT | B194: EQ | C194: 479.9 | D194: 487.65 | E194: 460 | F194: 463.5 | G194: 462 | H194: 479.2 | I194: 1729062 | J194: 817908730.6 | K194: 2020-04-08 | L194: 32950 | M194: INE463A01038
A195: BFINVEST | B195: EQ | C195: 258 | D195: 268.8 | E195: 244.6 | F195: 246.3 | G195: 248.95 | H195: 257.45 | I195: 4938 | J195: 1236639.95 | K195: 2020-04-08 | L195: 244 | M195: INE878K01010
A196: BFUTILITIE | B196: EQ | C196: 158.35 | D196: 158.35 | E196: 151.05 | F196: 154.05 | G196: 153.7 | H196: 150.85 | I196: 138134 | J196: 21700813.75 | K196: 2020-04-08 | L196: 1649 | M196: INE243D01012
A197: BGRENERGY | B197: EQ | C197: 22.1 | D197: 22.85 | E197: 20.95 | F197: 21.1 | G197: 21.15 | H197: 22.2 | I197: 172282 | J197: 3763089.75 | K197: 2020-04-08 | L197: 1108 | M197: INE661I01014
A198: BHAGERIA | B198: EQ | C198: 85 | D198: 91.05 | E198: 80.65 | F198: 81.6 | G198: 82.3 | H198: 84.2 | I198: 34795 | J198: 2944870.7 | K198: 2020-04-08 | L198: 925 | M198: INE354C01027
A199: BHAGYANGR | B199: EQ | C199: 14.05 | D199: 15.2 | E199: 14 | F199: 14.4 | G199: 14.4 | H199: 14.4 | I199: 1338 | J199: 19622.25 | K199: 2020-04-08 | L199: 50 | M199: INE458B01036
A200: BHAGYAPROP | B200: EQ | C200: 18 | D200: 20 | E200: 18 | F200: 20 | G200: 20 | H200: 19 | I200: 999 | J200: 19011 | K200: 2020-04-08 | L200: 5 | M200: INE363W01018
... 1470 more rows

Sheet Sheet1 (hidden)

Sheet Sheet3 (hidden)

Sheet Sheet4 (hidden)

Sheet Sheet5 (hidden)
